Workbook

Sheet INÍCIO
B1: ACERCA DESTE MODELO
B2: Utilize o livro Orçamento de Despesas Empresariais para controlar as Despesas Planeadas e Reais e as Variações.
B3: Preencha o Nome da Empresa e adicione o Logótipo.
B4: Introduza os detalhes nas tabelas na folha de cálculo Despesas Planeadas e na folha de cálculo Despesas Reais.
B5: As tabelas são atualizadas automaticamente na folha de cálculo Variações de Despesas e os gráficos são atualizados na folha de cálculo Análise de Despesas
B6: Nota:
B7: Encontram-se instruções adicionais na coluna A de cada folha de cálculo. O texto encontra-se intencionalmente oculto. Para remover o texto, selecione a coluna A e, em seguida, selecione Eliminar. Para mostrar o texto, selecione a coluna A e, em seguida, mude a cor do tipo de letra.
B8: Para saber mais sobre as tabelas, prima Shift+F10 numa tabela, selecione a opção TABELA e, em seguida, selecione TEXTO ALTERNATIVO

Sheet DESPESAS PLANEADAS
A1: Introduza os Custos com Colaboradores Planeados, os Custos de Escritório, os Custos de Marketing e os Custos de Formação ou Deslocações nas respetivas tabelas desta folha de cálculo. Os totais são calculados automaticamente. Encontram-se instruções úteis sobre como utilizar esta folha de cálculo nas células desta coluna. Prima a Seta para Baixo para começar.
A2: Introduza o Nome da Empresa na célula à direita e o logótipo na célula N2. O título desta folha de cálculo está na célula K2. | B2: Nome da Empresa | J2: Estimativas de Despesas Detalhadas | N2: O marcador de posição de logótipo encontra-se nesta célula.
A3: A sugestão está na célula K3. | J3: As células sombreadas são cálculos.
A4: A etiqueta de Despesas Planeadas encontra-se na célula à direita, os meses nas células C4 a N4, a etiqueta de Ano na célula O4 e as instruções de utilização deste modelo estão na célula R4. | B4: DESPESAS PLANEADAS | C4: JAN | D4: FEV | E4: MAR | F4: ABR | G4: MAI | H4: JUN | I4: JUL | J4: AGO | K4: SET | L4: OUT | M4: NOV | N4: DEZ | O4: ANO | R4: Sugestão: COMO UTILIZAR ESTE MODELO Introduza dados nas células brancas das folhas de cálculo DESPESAS PLANEADAS e DESPESAS REAIS, e as VARIAÇÕES DE DESPESAS e ANÁLISE DE DESPESAS serão calculadas automaticamente. Se adicionar uma linha numa folha, as restantes folhas terão de ser iguais.
A5: Introduza os Custos com Colaboradores na tabela Plano de Colaboradores a partir da célula à direita. A instrução seguinte está na célula A10. | B5: Custos com Colaboradores | C5: Jan | D5: Fev | E5: Mar | F5: Abr | G5: Mai | H5: Jun | I5: Jul | J5: Ago | K5: Set | L5: Out | M5: Nov | N5: Dez | O5: ANO
B6: Salários | C6: 85,000.00 € | D6: 85,000.00 € | E6: 85,000.00 € | F6: 87,500.00 € | G6: 87,500.00 € | H6: 87,500.00 € | I6: 87,500.00 € | J6: 92,400.00 € | K6: 92,400.00 € | L6: 92,400.00 € | M6: 92,400.00 € | N6: 92,400.00 € | O6: =SUM(C6:N6) -> 1,067,000.00 €
B7: Benefícios | C7: =C6*0.27 -> 22,950.00 € | D7: 22,950.00 € | E7: 22,950.00 € | F7: 23,625.00 € | G7: 23,625.00 € | H7: 23,625.00 € | I7: 23,625.00 € | J7: 24,948.00 € | K7: 24,948.00 € | L7: 24,948.00 € | M7: 24,948.00 € | N7: 24,948.00 € | O7: =SUM(C7:N7) -> 288,090.00 €
B8: Subtotal | C8: =SUBTOTAL(109,PlanoDeColaboradores[Jan]) -> 107,950.00 € | D8: =SUBTOTAL(109,PlanoDeColaboradores[Fev]) -> 107,950.00 € | E8: =SUBTOTAL(109,PlanoDeColaboradores[Mar]) -> 107,950.00 € | F8: =SUBTOTAL(109,PlanoDeColaboradores[Abr]) -> 111,125.00 € | G8: =SUBTOTAL(109,PlanoDeColaboradores[Mai]) -> 111,125.00 € | H8: =SUBTOTAL(109,PlanoDeColaboradores[Jun]) -> 111,125.00 € | I8: =SUBTOTAL(109,PlanoDeColaboradores[Jul]) -> 111,125.00 € | J8: =SUBTOTAL(109,PlanoDeColaboradores[Ago]) -> 117,348.00 € | K8: =SUBTOTAL(109,PlanoDeColaboradores[Set]) -> 117,348.00 € | L8: =SUBTOTAL(109,PlanoDeColaboradores[Out]) -> 117,348.00 € | M8: =SUBTOTAL(109,PlanoDeColaboradores[Nov]) -> 117,348.00 € | N8: =SUBTOTAL(109,PlanoDeColaboradores[Dez]) -> 117,348.00 € | O8: =SUBTOTAL(109,PlanoDeColaboradores[ANO]) -> 1,355,090.00 €
A10: Introduza os Custos de Escritório na tabela Plano de Escritório a partir da célula à direita. A instrução seguinte está na célula A21. | B10: Custos de Escritório | C10: Jan | D10: Fev | E10: Mar | F10: Abr | G10: Mai | H10: Jun | I10: Jul | J10: Ago | K10: Set | L10: Out | M10: Nov | N10: Dez | O10: ANO
B11: Arrendamento de escritório | C11: 9,800.00 € | D11: 9,800.00 € | E11: 9,800.00 € | F11: 9,800.00 € | G11: 9,800.00 € | H11: 9,800.00 € | I11: 9,800.00 € | J11: 9,800.00 € | K11: 9,800.00 € | L11: 9,800.00 € | M11: 9,800.00 € | N11: 9,800.00 € | O11: =SUM(C11:N11) -> 117,600.00 €
B12: Gás | D12: 400.00 € | E12: 400.00 € | F12: 100.00 € | G12: 100.00 € | H12: 100.00 € | I12: 100.00 € | J12: 100.00 € | K12: 100.00 € | L12: 100.00 € | M12: 400.00 € | N12: 400.00 € | O12: 2,300.00 €
B13: Eletricidade | C13: 300.00 € | D13: 300.00 € | E13: 300.00 € | F13: 300.00 € | G13: 300.00 € | H13: 300.00 € | I13: 300.00 € | J13: 300.00 € | K13: 300.00 € | L13: 300.00 € | M13: 300.00 € | N13: 300.00 € | O13: 3,600.00 €
B14: Água | C14: 40.00 € | D14: 40.00 € | E14: 40.00 € | F14: 40.00 € | G14: 40.00 € | H14: 40.00 € | I14: 40.00 € | J14: 40.00 € | K14: 40.00 € | L14: 40.00 € | M14: 40.00 € | N14: 40.00 € | O14: 480.00 €
B15: Telefone | C15: 250.00 € | D15: 250.00 € | E15: 250.00 € | F15: 250.00 € | G15: 250.00 € | H15: 250.00 € | I15: 250.00 € | J15: 250.00 € | K15: 250.00 € | L15: 250.00 € | M15: 250.00 € | N15: 250.00 € | O15: 3,000.00 €
B16: Internet | C16: 180.00 € | D16: 180.00 € | E16: 180.00 € | F16: 180.00 € | G16: 180.00 € | H16: 180.00 € | I16: 180.00 € | J16: 180.00 € | K16: 180.00 € | L16: 180.00 € | M16: 180.00 € | N16: 180.00 € | O16: 2,160.00 €
B17: Material de escritório | C17: 200.00 € | D17: 200.00 € | E17: 200.00 € | F17: 200.00 € | G17: 200.00 € | H17: 200.00 € | I17: 200.00 € | J17: 200.00 € | K17: 200.00 € | L17: 200.00 € | M17: 200.00 € | N17: 200.00 € | O17: 2,400.00 €
B18: Segurança | C18: 600.00 € | D18: 600.00 € | E18: 600.00 € | F18: 600.00 € | G18: 600.00 € | H18: 600.00 € | I18: 600.00 € | J18: 600.00 € | K18: 600.00 € | L18: 600.00 € | M18: 600.00 € | N18: 600.00 € | O18: 7,200.00 €
B19: Subtotal | C19: =SUBTOTAL(109,PlanoDeEscritório[Jan]) -> 11,370.00 € | D19: =SUBTOTAL(109,PlanoDeEscritório[Fev]) -> 11,770.00 € | E19: =SUBTOTAL(109,PlanoDeEscritório[Mar]) -> 11,770.00 € | F19: =SUBTOTAL(109,PlanoDeEscritório[Abr]) -> 11,470.00 € | G19: =SUBTOTAL(109,PlanoDeEscritório[Mai]) -> 11,470.00 € | H19: =SUBTOTAL(109,PlanoDeEscritório[Jun]) -> 11,470.00 € | I19: =SUBTOTAL(109,PlanoDeEscritório[Jul]) -> 11,470.00 € | J19: =SUBTOTAL(109,PlanoDeEscritório[Ago]) -> 11,470.00 € | K19: =SUBTOTAL(109,PlanoDeEscritório[Set]) -> 11,470.00 € | L19: =SUBTOTAL(109,PlanoDeEscritório[Out]) -> 11,470.00 € | M19: =SUBTOTAL(109,PlanoDeEscritório[Nov]) -> 11,770.00 € | N19: =SUBTOTAL(109,PlanoDeEscritório[Dez]) -> 11,770.00 € | O19: =SUBTOTAL(109,PlanoDeEscritório[ANO]) -> 138,740.00 €
A21: Introduza os Custos de Marketing na tabela Plano de Marketing a partir da célula à direita. A instrução seguinte está na célula A30. | B21: Custos de Marketing | C21: Jan | D21: Fev | E21: Mar | F21: Abr | G21: Mai | H21: Jun | I21: Jul | J21: Ago | K21: Set | L21: Out | M21: Nov | N21: Dez | O21: ANO
B22: Alojamento do site | C22: 500.00 € | D22: 500.00 € | E22: 500.00 € | F22: 500.00 € | G22: 500.00 € | H22: 500.00 € | I22: 500.00 € | J22: 500.00 € | K22: 500.00 € | L22: 500.00 € | M22: 500.00 € | N22: 500.00 € | O22: =SUM(C22:N22) -> 6,000.00 €
B23: Atualizações ao site | C23: 200.00 € | D23: 200.00 € | E23: 200.00 € | F23: 200.00 € | G23: 200.00 € | H23: 1,000.00 € | I23: 200.00 € | J23: 200.00 € | K23: 200.00 € | L23: 200.00 € | M23: 200.00 € | N23: 1,000.00 € | O23: 4,000.00 €
B24: Preparação de materiais de anúncio | C24: 5,000.00 € | D24: 0.00 € | E24: 0.00 € | F24: 5,000.00 € | G24: 0.00 € | H24: 0.00 € | I24: 5,000.00 € | J24: 0.00 € | K24: 0.00 € | L24: 5,000.00 € | M24: 0.00 € | N24: 0.00 € | O24: 20,000.00 €
B25: Impressão de materiais de anúncio | C25: 200.00 € | D25: 200.00 € | E25: 200.00 € | F25: 200.00 € | G25: 200.00 € | H25: 200.00 € | I25: 200.00 € | J25: 200.00 € | K25: 200.00 € | L25: 200.00 € | M25: 200.00 € | N25: 200.00 € | O25: 2,400.00 €
B26: Eventos de marketing | C26: 2,000.00 € | D26: 2,000.00 € | E26: 2,000.00 € | F26: 5,000.00 € | G26: 2,000.00 € | H26: 2,000.00 € | I26: 2,000.00 € | J26: 5,000.00 € | K26: 2,000.00 € | L26: 2,000.00 € | M26: 2,000.00 € | N26: 5,000.00 € | O26: 33,000.00 €
B27: Despesas diversas | C27: 200.00 € | D27: 200.00 € | E27: 200.00 € | F27: 200.00 € | G27: 200.00 € | H27: 200.00 € | I27: 200.00 € | J27: 200.00 € | K27: 200.00 € | L27: 200.00 € | M27: 200.00 € | N27: 200.00 € | O27: 2,400.00 €
B28: Subtotal | C28: =SUBTOTAL(109,PlanoDeMarketing[Jan]) -> 8,100.00 € | D28: =SUBTOTAL(109,PlanoDeMarketing[Fev]) -> 3,100.00 € | E28: =SUBTOTAL(109,PlanoDeMarketing[Mar]) -> 3,100.00 € | F28: =SUBTOTAL(109,PlanoDeMarketing[Abr]) -> 11,100.00 € | G28: =SUBTOTAL(109,PlanoDeMarketing[Mai]) -> 3,100.00 € | H28: =SUBTOTAL(109,PlanoDeMarketing[Jun]) -> 3,900.00 € | I28: =SUBTOTAL(109,PlanoDeMarketing[Jul]) -> 8,100.00 € | J28: =SUBTOTAL(109,PlanoDeMarketing[Ago]) -> 6,100.00 € | K28: =SUBTOTAL(109,PlanoDeMarketing[Set]) -> 3,100.00 € | L28: =SUBTOTAL(109,PlanoDeMarketing[Out]) -> 8,100.00 € | M28: =SUBTOTAL(109,PlanoDeMarketing[Nov]) -> 3,100.00 € | N28: =SUBTOTAL(109,PlanoDeMarketing[Dez]) -> 6,900.00 € | O28: =SUBTOTAL(109,PlanoDeMarketing[ANO]) -> 67,800.00 €
A30: Introduza os Custos de Formação e Deslocações na tabela Plano de Formação e Viagens a partir da célula à direita. A instrução seguinte está na célula A35. | B30: Formação/Deslocações | C30: Jan | D30: Fev | E30: Mar | F30: Abr | G30: Mai | H30: Jun | I30: Jul | J30: Ago | K30: Set | L30: Out | M30: Nov | N30: Dez | O30: ANO
B31: Aulas de formação | C31: 2,000.00 € | D31: 2,000.00 € | E31: 2,000.00 € | F31: 2,000.00 € | G31: 2,000.00 € | H31: 2,000.00 € | I31: 2,000.00 € | J31: 2,000.00 € | K31: 2,000.00 € | L31: 2,000.00 € | M31: 2,000.00 € | N31: 2,000.00 € | O31: =SUM(C31:N31) -> 24,000.00 €
B32: Custos em viagens associadas à formação | C32: 2,000.00 € | D32: 2,000.00 € | E32: 2,000.00 € | F32: 2,000.00 € | G32: 2,000.00 € | H32: 2,000.00 € | I32: 2,000.00 € | J32: 2,000.00 € | K32: 2,000.00 € | L32: 2,000.00 € | M32: 2,000.00 € | N32: 2,000.00 € | O32: =SUM(C32:N32) -> 24,000.00 €
B33: Subtotal | C33: =SUBTOTAL(109,PlanoDeFormaçãoEViagens[Jan]) -> 4,000.00 € | D33: =SUBTOTAL(109,PlanoDeFormaçãoEViagens[Fev]) -> 4,000.00 € | E33: =SUBTOTAL(109,PlanoDeFormaçãoEViagens[Mar]) -> 4,000.00 € | F33: =SUBTOTAL(109,PlanoDeFormaçãoEViagens[Abr]) -> 4,000.00 € | G33: =SUBTOTAL(109,PlanoDeFormaçãoEViagens[Mai]) -> 4,000.00 € | H33: =SUBTOTAL(109,PlanoDeFormaçãoEViagens[Jun]) -> 4,000.00 € | I33: =SUBTOTAL(109,PlanoDeFormaçãoEViagens[Jul]) -> 4,000.00 € | J33: =SUBTOTAL(109,PlanoDeFormaçãoEViagens[Ago]) -> 4,000.00 € | K33: =SUBTOTAL(109,PlanoDeFormaçãoEViagens[Set]) -> 4,000.00 € | L33: =SUBTOTAL(109,PlanoDeFormaçãoEViagens[Out]) -> 4,000.00 € | M33: =SUBTOTAL(109,PlanoDeFormaçãoEViagens[Nov]) -> 4,000.00 € | N33: =SUBTOTAL(109,PlanoDeFormaçãoEViagens[Dez]) -> 4,000.00 € | O33: =SUBTOTAL(109,PlanoDeFormaçãoEViagens[ANO]) -> 48,000.00 €
A35: Os totais são calculados automaticamente na tabela Total Planeado a partir da célula à direita. | B35: TOTAIS | C35: Jan | D35: Fev | E35: Mar | F35: Abr | G35: Mai | H35: Jun | I35: Jul | J35: Ago | K35: Set | L35: Out | M35: Nov | N35: Dez | O35: Ano
B36: Despesas Mensais Planeadas | C36: =PlanoDeFormaçãoEViagens[[#Totals],[Jan]]+PlanoDeMarketing[[#Totals],[Jan]]+PlanoDeEscritório[[#Totals],[Jan]]+PlanoDeColaboradores[[#Totals],[Jan]] -> 131,420.00 € | D36: =PlanoDeFormaçãoEViagens[[#Totals],[Fev]]+PlanoDeMarketing[[#Totals],[Fev]]+PlanoDeEscritório[[#Totals],[Fev]]+PlanoDeColaboradores[[#Totals],[Fev]] -> 126,820.00 € | E36: =PlanoDeFormaçãoEViagens[[#Totals],[Mar]]+PlanoDeMarketing[[#Totals],[Mar]]+PlanoDeEscritório[[#Totals],[Mar]]+PlanoDeColaboradores[[#Totals],[Mar]] -> 126,820.00 € | F36: =PlanoDeFormaçãoEViagens[[#Totals],[Abr]]+PlanoDeMarketing[[#Totals],[Abr]]+PlanoDeEscritório[[#Totals],[Abr]]+PlanoDeColaboradores[[#Totals],[Abr]] -> 137,695.00 € | G36: =PlanoDeFormaçãoEViagens[[#Totals],[Mai]]+PlanoDeMarketing[[#Totals],[Mai]]+PlanoDeEscritório[[#Totals],[Mai]]+PlanoDeColaboradores[[#Totals],[Mai]] -> 129,695.00 € | H36: =PlanoDeFormaçãoEViagens[[#Totals],[Jun]]+PlanoDeMarketing[[#Totals],[Jun]]+PlanoDeEscritório[[#Totals],[Jun]]+PlanoDeColaboradores[[#Totals],[Jun]] -> 130,495.00 € | I36: =PlanoDeFormaçãoEViagens[[#Totals],[Jul]]+PlanoDeMarketing[[#Totals],[Jul]]+PlanoDeEscritório[[#Totals],[Jul]]+PlanoDeColaboradores[[#Totals],[Jul]] -> 134,695.00 € | J36: =PlanoDeFormaçãoEViagens[[#Totals],[Ago]]+PlanoDeMarketing[[#Totals],[Ago]]+PlanoDeEscritório[[#Totals],[Ago]]+PlanoDeColaboradores[[#Totals],[Ago]] -> 138,918.00 € | K36: =PlanoDeFormaçãoEViagens[[#Totals],[Set]]+PlanoDeMarketing[[#Totals],[Set]]+PlanoDeEscritório[[#Totals],[Set]]+PlanoDeColaboradores[[#Totals],[Set]] -> 135,918.00 € | L36: =PlanoDeFormaçãoEViagens[[#Totals],[Out]]+PlanoDeMarketing[[#Totals],[Out]]+PlanoDeEscritório[[#Totals],[Out]]+PlanoDeColaboradores[[#Totals],[Out]] -> 140,918.00 € | M36: =PlanoDeFormaçãoEViagens[[#Totals],[Nov]]+PlanoDeMarketing[[#Totals],[Nov]]+PlanoDeEscritório[[#Totals],[Nov]]+PlanoDeColaboradores[[#Totals],[Nov]] -> 136,218.00 € | N36: =PlanoDeFormaçãoEViagens[[#Totals],[Dez]]+PlanoDeMarketing[[#Totals],[Dez]]+PlanoDeEscritório[[#Totals],[Dez]]+PlanoDeColaboradores[[#Totals],[Dez]] -> 140,018.00 € | O36: =PlanoDeFormaçãoEViagens[[#Totals],[ANO]]+PlanoDeMarketing[[#Totals],[ANO]]+PlanoDeEscritório[[#Totals],[ANO]]+PlanoDeColaboradores[[#Totals],[ANO]] -> 1,609,630.00 €
B37: Despesas Planeadas TOTAIS | C37: =SUM($C$36:C36) -> 131,420.00 € | D37: =SUM($C$36:D36) -> 258,240.00 € | E37: =SUM($C$36:E36) -> 385,060.00 € | F37: =SUM($C$36:F36) -> 522,755.00 € | G37: =SUM($C$36:G36) -> 652,450.00 € | H37: =SUM($C$36:H36) -> 782,945.00 € | I37: =SUM($C$36:I36) -> 917,640.00 € | J37: =SUM($C$36:J36) -> 1,056,558.00 € | K37: =SUM($C$36:K36) -> 1,192,476.00 € | L37: =SUM($C$36:L36) -> 1,333,394.00 € | M37: =SUM($C$36:M36) -> 1,469,612.00 € | N37: =SUM($C$36:N36) -> 1,609,630.00 €

Sheet DESPESAS REAIS
A1: Introduza os Custos com Colaboradores Reais, os Custos de Escritório, os Custos de Marketing e os Custos de Formação ou Deslocações nas respetivas tabelas desta folha de cálculo. Os totais são calculados automaticamente. Encontram-se instruções úteis sobre como utilizar esta folha de cálculo nas células desta coluna. Prima a Seta para Baixo para começar.
A2: O Nome da Empresa é atualizado automaticamente na célula à direita. O título desta folha de cálculo está na célula K2. Introduza o Logótipo na célula N2. | B2: ='DESPESAS PLANEADAS'!B2:D3 -> Nome da Empresa | J2: =titulo_folha_de_cálculo -> Estimativas de Despesas Detalhadas | N2: O marcador de posição de logótipo encontra-se nesta célula.
A3: A sugestão está na célula K3. | J3: As células sombreadas são cálculos.
A4: A etiqueta de Despesas Reais encontra-se na célula à direita, os meses nas células C4 a N4 e a etiqueta de Ano na célula O4. | B4: DESPESAS REAIS | C4: JAN | D4: FEV | E4: MAR | F4: ABR | G4: MAI | H4: JUN | I4: JUL | J4: AGO | K4: SET | L4: OUT | M4: NOV | N4: DEZ | O4: ANO
A5: Introduza os Custos com Colaboradores na tabela Real Colaboradores a partir da célula à direita. A instrução seguinte está na célula A10. | B5: Custos com Colaboradores | C5: Jan | D5: Fev | E5: Mar | F5: Abr | G5: Mai | H5: Jun | I5: Jul | J5: Ago | K5: Set | L5: Out | M5: Nov | N5: Dez | O5: ANO
B6: Salários | C6: 85,000.00 € | D6: 85,000.00 € | E6: 85,000.00 € | F6: 88,000.00 € | G6: 88,000.00 € | H6: 88,000.00 € | O6: =SUM(C6:N6) -> 519,000.00 €
B7: Benefícios | C7: =C6*0.27 -> 22,950.00 € | D7: 22,950.00 € | E7: 22,950.00 € | F7: 23,760.00 € | G7: 23,760.00 € | H7: 23,760.00 € | I7: 0.00 € | J7: 0.00 € | K7: 0.00 € | L7: 0.00 € | M7: 0.00 € | N7: 0.00 € | O7: =SUM(C7:N7) -> 140,130.00 €
B8: Subtotal | C8: =SUBTOTAL(109,RealColaboradores[Jan]) -> 107,950.00 € | D8: =SUBTOTAL(109,RealColaboradores[Fev]) -> 107,950.00 € | E8: =SUBTOTAL(109,RealColaboradores[Mar]) -> 107,950.00 € | F8: =SUBTOTAL(109,RealColaboradores[Abr]) -> 111,760.00 € | G8: =SUBTOTAL(109,RealColaboradores[Mai]) -> 111,760.00 € | H8: =SUBTOTAL(109,RealColaboradores[Jun]) -> 111,760.00 € | I8: =SUBTOTAL(109,RealColaboradores[Jul]) -> 0.00 € | J8: =SUBTOTAL(109,RealColaboradores[Ago]) -> 0.00 € | K8: =SUBTOTAL(109,RealColaboradores[Set]) -> 0.00 € | L8: =SUBTOTAL(109,RealColaboradores[Out]) -> 0.00 € | M8: =SUBTOTAL(109,RealColaboradores[Nov]) -> 0.00 € | N8: =SUBTOTAL(109,RealColaboradores[Dez]) -> 0.00 € | O8: =SUBTOTAL(109,RealColaboradores[ANO]) -> 659,130.00 €
A10: Introduza os Custos de Escritório na tabela Real Escritório a partir da célula à direita. A instrução seguinte está na célula A21. | B10: Custos de Escritório | C10: Jan | D10: Fev | E10: Mar | F10: Abr | G10: Mai | H10: Jun | I10: Jul | J10: Ago | K10: Set | L10: Out | M10: Nov | N10: Dez | O10: ANO
B11: Arrendamento de escritório | C11: 9,800.00 € | D11: 9,800.00 € | E11: 9,800.00 € | F11: 9,800.00 € | G11: 9,800.00 € | H11: 9,800.00 € | O11: =SUM(C11:N11) -> 58,800.00 €
B12: Gás | C12: 4.00 € | D12: 430.00 € | E12: 385.00 € | F12: 230.00 € | G12: 87.00 € | H12: 88.00 € | O12: 1,224.00 €
B13: Eletricidade | C13: 288.00 € | D13: 278.00 € | E13: 268.00 € | F13: 299.00 € | G13: 306.00 € | H13: 290.00 € | O13: 1,729.00 €
B14: Água | C14: 35.00 € | D14: 33.00 € | E14: 34.00 € | F14: 36.00 € | G14: 34.00 € | H14: 36.00 € | O14: 208.00 €
B15: Telefone | C15: 224.00 € | D15: 235.00 € | E15: 265.00 € | F15: 245.00 € | G15: 245.00 € | H15: 220.00 € | O15: 1,434.00 €
B16: Internet | C16: 180.00 € | D16: 180.00 € | E16: 180.00 € | F16: 180.00 € | G16: 180.00 € | H16: 180.00 € | O16: 1,080.00 €
B17: Material de escritório | C17: 256.00 € | D17: 142.00 € | E17: 160.00 € | F17: 221.00 € | G17: 256.00 € | H17: 240.00 € | O17: 1,275.00 €
B18: Segurança | C18: 600.00 € | D18: 600.00 € | E18: 600.00 € | F18: 600.00 € | G18: 600.00 € | H18: 600.00 € | O18: 3,600.00 €
B19: Subtotal | C19: =SUBTOTAL(109,RealEscritório[Jan]) -> 11,387.00 € | D19: =SUBTOTAL(109,RealEscritório[Fev]) -> 11,698.00 € | E19: =SUBTOTAL(109,RealEscritório[Mar]) -> 11,692.00 € | F19: =SUBTOTAL(109,RealEscritório[Abr]) -> 11,611.00 € | G19: =SUBTOTAL(109,RealEscritório[Mai]) -> 11,508.00 € | H19: =SUBTOTAL(109,RealEscritório[Jun]) -> 11,454.00 € | I19: =SUBTOTAL(109,RealEscritório[Jul]) -> 0.00 € | J19: =SUBTOTAL(109,RealEscritório[Ago]) -> 0.00 € | K19: =SUBTOTAL(109,RealEscritório[Set]) -> 0.00 € | L19: =SUBTOTAL(109,RealEscritório[Out]) -> 0.00 € | M19: =SUBTOTAL(109,RealEscritório[Nov]) -> 0.00 € | N19: =SUBTOTAL(109,RealEscritório[Dez]) -> 0.00 € | O19: =SUBTOTAL(109,RealEscritório[ANO]) -> 69,350.00 €
A21: Introduza os Custos de Marketing na tabela Real Marketing a partir da célula à direita. A instrução seguinte está na célula A30. | B21: Custos de Marketing | C21: Jan | D21: Fev | E21: Mar | F21: Abr | G21: Mai | H21: Jun | I21: Jul | J21: Ago | K21: Set | L21: Out | M21: Nov | N21: Dez | O21: ANO
B22: Alojamento do site | C22: 500.00 € | D22: 500.00 € | E22: 500.00 € | F22: 500.00 € | G22: 500.00 € | H22: 500.00 € | O22: =SUM(C22:N22) -> 3,000.00 €
B23: Atualizações ao site | C23: 200.00 € | D23: 200.00 € | E23: 200.00 € | F23: 200.00 € | G23: 200.00 € | H23: 1,500.00 € | O23: 2,500.00 €
B24: Preparação de materiais de anúncio | C24: 4,800.00 € | D24: 0.00 € | E24: 0.00 € | F24: 5,500.00 € | G24: 0.00 € | H24: 0.00 € | O24: 10,300.00 €
B25: Impressão de materiais de anúncio | C25: 100.00 € | D25: 500.00 € | E25: 100.00 € | F25: 100.00 € | G25: 600.00 € | H25: 180.00 € | O25: 1,580.00 €
B26: Eventos de marketing | C26: 1,800.00 € | D26: 2,200.00 € | E26: 2,200.00 € | F26: 4,700.00 € | G26: 1,500.00 € | H26: 2,300.00 € | O26: 14,700.00 €
B27: Despesas diversas | C27: 145.00 € | D27: 156.00 € | E27: 123.00 € | F27: 223.00 € | G27: 187.00 € | H27: 245.00 € | O27: 1,079.00 €
B28: Subtotal | C28: =SUBTOTAL(109,RealMarketing[Jan]) -> 7,545.00 € | D28: =SUBTOTAL(109,RealMarketing[Fev]) -> 3,556.00 € | E28: =SUBTOTAL(109,RealMarketing[Mar]) -> 3,123.00 € | F28: =SUBTOTAL(109,RealMarketing[Abr]) -> 11,223.00 € | G28: =SUBTOTAL(109,RealMarketing[Mai]) -> 2,987.00 € | H28: =SUBTOTAL(109,RealMarketing[Jun]) -> 4,725.00 € | I28: =SUBTOTAL(109,RealMarketing[Jul]) -> 0.00 € | J28: =SUBTOTAL(109,RealMarketing[Ago]) -> 0.00 € | K28: =SUBTOTAL(109,RealMarketing[Set]) -> 0.00 € | L28: =SUBTOTAL(109,RealMarketing[Out]) -> 0.00 € | M28: =SUBTOTAL(109,RealMarketing[Nov]) -> 0.00 € | N28: =SUBTOTAL(109,RealMarketing[Dez]) -> 0.00 € | O28: =SUBTOTAL(109,RealMarketing[ANO]) -> 33,159.00 €
A30: Introduza os Custos de Formação ou Deslocações na tabela Real Formação e Viagens a partir da célula à direita. A instrução seguinte está na célula A35. | B30: Formação/Deslocações | C30: Jan | D30: Fev | E30: Mar | F30: Abr | G30: Mai | H30: Jun | I30: Jul | J30: Ago | K30: Set | L30: Out | M30: Nov | N30: Dez | O30: ANO
B31: Aulas de formação | C31: 1,600.00 € | D31: 2,400.00 € | E31: 1,400.00 € | F31: 1,600.00 € | G31: 1,200.00 € | H31: 2,800.00 € | O31: =SUM(C31:N31) -> 11,000.00 €
B32: Custos em viagens associadas à formação | C32: 1,200.00 € | D32: 2,200.00 € | E32: 1,400.00 € | F32: 1,200.00 € | G32: 800.00 € | H32: 3,500.00 € | O32: =SUM(C32:N32) -> 10,300.00 €
B33: Subtotal | C33: =SUBTOTAL(109,RealFormaçãoEViagens[Jan]) -> 2,800.00 € | D33: =SUBTOTAL(109,RealFormaçãoEViagens[Fev]) -> 4,600.00 € | E33: =SUBTOTAL(109,RealFormaçãoEViagens[Mar]) -> 2,800.00 € | F33: =SUBTOTAL(109,RealFormaçãoEViagens[Abr]) -> 2,800.00 € | G33: =SUBTOTAL(109,RealFormaçãoEViagens[Mai]) -> 2,000.00 € | H33: =SUBTOTAL(109,RealFormaçãoEViagens[Jun]) -> 6,300.00 € | I33: =SUBTOTAL(109,RealFormaçãoEViagens[Jul]) -> 0.00 € | J33: =SUBTOTAL(109,RealFormaçãoEViagens[Ago]) -> 0.00 € | K33: =SUBTOTAL(109,RealFormaçãoEViagens[Set]) -> 0.00 € | L33: =SUBTOTAL(109,RealFormaçãoEViagens[Out]) -> 0.00 € | M33: =SUBTOTAL(109,RealFormaçãoEViagens[Nov]) -> 0.00 € | N33: =SUBTOTAL(109,RealFormaçãoEViagens[Dez]) -> 0.00 € | O33: =SUBTOTAL(109,RealFormaçãoEViagens[ANO]) -> 21,300.00 €
A35: As Despesas Reais Totais são calculadas automaticamente na tabela Total Real a partir da célula à direita. | B35: Despesas Planeadas TOTAIS | C35: Jan | D35: Fev | E35: Mar | F35: Abr | G35: Mai | H35: Jun | I35: Jul | J35: Ago | K35: Set | L35: Out | M35: Nov | N35: Dez | O35: Ano
B36: Despesas Mensais Reais | C36: =RealFormaçãoEViagens[[#Totals],[Jan]]+RealMarketing[[#Totals],[Jan]]+RealEscritório[[#Totals],[Jan]]+RealColaboradores[[#Totals],[Jan]] -> 129,682.00 € | D36: =RealFormaçãoEViagens[[#Totals],[Fev]]+RealMarketing[[#Totals],[Fev]]+RealEscritório[[#Totals],[Fev]]+RealColaboradores[[#Totals],[Fev]] -> 127,804.00 € | E36: =RealFormaçãoEViagens[[#Totals],[Mar]]+RealMarketing[[#Totals],[Mar]]+RealEscritório[[#Totals],[Mar]]+RealColaboradores[[#Totals],[Mar]] -> 125,565.00 € | F36: =RealFormaçãoEViagens[[#Totals],[Abr]]+RealMarketing[[#Totals],[Abr]]+RealEscritório[[#Totals],[Abr]]+RealColaboradores[[#Totals],[Abr]] -> 137,394.00 € | G36: =RealFormaçãoEViagens[[#Totals],[Mai]]+RealMarketing[[#Totals],[Mai]]+RealEscritório[[#Totals],[Mai]]+RealColaboradores[[#Totals],[Mai]] -> 128,255.00 € | H36: =RealFormaçãoEViagens[[#Totals],[Jun]]+RealMarketing[[#Totals],[Jun]]+RealEscritório[[#Totals],[Jun]]+RealColaboradores[[#Totals],[Jun]] -> 134,239.00 € | I36: =RealFormaçãoEViagens[[#Totals],[Jul]]+RealMarketing[[#Totals],[Jul]]+RealEscritório[[#Totals],[Jul]]+RealColaboradores[[#Totals],[Jul]] -> 0.00 € | J36: =RealFormaçãoEViagens[[#Totals],[Ago]]+RealMarketing[[#Totals],[Ago]]+RealEscritório[[#Totals],[Ago]]+RealColaboradores[[#Totals],[Ago]] -> 0.00 € | K36: =RealFormaçãoEViagens[[#Totals],[Set]]+RealMarketing[[#Totals],[Set]]+RealEscritório[[#Totals],[Set]]+RealColaboradores[[#Totals],[Set]] -> 0.00 € | L36: =RealFormaçãoEViagens[[#Totals],[Out]]+RealMarketing[[#Totals],[Out]]+RealEscritório[[#Totals],[Out]]+RealColaboradores[[#Totals],[Out]] -> 0.00 € | M36: =RealFormaçãoEViagens[[#Totals],[Nov]]+RealMarketing[[#Totals],[Nov]]+RealEscritório[[#Totals],[Nov]]+RealColaboradores[[#Totals],[Nov]] -> 0.00 € | N36: =RealFormaçãoEViagens[[#Totals],[Dez]]+RealMarketing[[#Totals],[Dez]]+RealEscritório[[#Totals],[Dez]]+RealColaboradores[[#Totals],[Dez]] -> 0.00 € | O36: =RealFormaçãoEViagens[[#Totals],[ANO]]+RealMarketing[[#Totals],[ANO]]+RealEscritório[[#Totals],[ANO]]+RealColaboradores[[#Totals],[ANO]] -> 782,939.00 €
B37: Despesas Reais TOTAIS | C37: =SUM($C$36:C36) -> 129,682.00 € | D37: =SUM($C$36:D36) -> 257,486.00 € | E37: =SUM($C$36:E36) -> 383,051.00 € | F37: =SUM($C$36:F36) -> 520,445.00 € | G37: =SUM($C$36:G36) -> 648,700.00 € | H37: =SUM($C$36:H36) -> 782,939.00 € | I37: =SUM($C$36:I36) -> 782,939.00 € | J37: =SUM($C$36:J36) -> 782,939.00 € | K37: =SUM($C$36:K36) -> 782,939.00 € | L37: =SUM($C$36:L36) -> 782,939.00 € | M37: =SUM($C$36:M36) -> 782,939.00 € | N37: =SUM($C$36:N36) -> 782,939.00 €

Sheet VARIAÇÕES DE DESPESAS
A1: As Variações de Despesas são calculadas automaticamente nesta folha de cálculo para Custos com Colaboradores, Custos de Escritório, Custos de Marketing e Custos de Formação ou Deslocações nas respetivas tabelas desta folha de cálculo. Encontram-se instruções úteis sobre como utilizar esta folha de cálculo nas células desta coluna. Prima a Seta para Baixo para começar.
A2: O Nome da Empresa é atualizado automaticamente na célula à direita. O título desta folha de cálculo está na célula K2. Introduza o Logótipo na célula N2. | B2: ='DESPESAS PLANEADAS'!B2:D3 -> Nome da Empresa | J2: =titulo_folha_de_cálculo -> Estimativas de Despesas Detalhadas | N2: O marcador de posição de logótipo encontra-se nesta célula.
A3: A sugestão está na célula K3. | J3: As células sombreadas são cálculos.
A4: A etiqueta de Variações de Despesas encontra-se na célula à direita, os meses nas células C4 a N4 e a etiqueta de Ano na célula O4. | B4: VARIAÇÕES DE DESPESAS | C4: JAN | D4: FEV | E4: MAR | F4: ABR | G4: MAI | H4: JUN | I4: JUL | J4: AGO | K4: SET | L4: OUT | M4: NOV | N4: DEZ | O4: ANO
A5: A Variação nos Custos com Colaboradores é calculada automaticamente na tabela Variações de Colaboradores a partir da célula à direita. A instrução seguinte está na célula A10. | B5: Custos com Colaboradores | C5: Jan | D5: Fev | E5: Mar | F5: Abr | G5: Mai | H5: Jun | I5: Jul | J5: Ago | K5: Set | L5: Out | M5: Nov | N5: Dez | O5: ANO
B6: Salários | C6: =INDEX(PlanoDeColaboradores[],MATCH(INDEX(VariaçõesDeColaboradores[],ROW()-ROW(VariaçõesDeColaboradores[[#Headers],[Jan]]),1),INDEX(PlanoDeColaboradores[],,1),0),MATCH(VariaçõesDeColaboradores[[#Headers],[Jan]],PlanoDeColaboradores[#Headers],0))-INDEX(RealColaboradores[],MATCH(INDEX(VariaçõesDeColaboradores[],ROW()-ROW(VariaçõesDeColaboradores[[#Headers],[Jan]]),1),INDEX(PlanoDeColaboradores[],,1),0),MATCH(VariaçõesDeColaboradores[[#Headers],[Jan]],RealColaboradores[#Headers],0)) -> 0.00 € | D6: =INDEX(PlanoDeColaboradores[],MATCH(INDEX(VariaçõesDeColaboradores[],ROW()-ROW(VariaçõesDeColaboradores[[#Headers],[Fev]]),1),INDEX(PlanoDeColaboradores[],,1),0),MATCH(VariaçõesDeColaboradores[[#Headers],[Fev]],PlanoDeColaboradores[#Headers],0))-INDEX(RealColaboradores[],MATCH(INDEX(VariaçõesDeColaboradores[],ROW()-ROW(VariaçõesDeColaboradores[[#Headers],[Fev]]),1),INDEX(PlanoDeColaboradores[],,1),0),MATCH(VariaçõesDeColaboradores[[#Headers],[Fev]],RealColaboradores[#Headers],0)) -> 0.00 € | E6: =INDEX(PlanoDeColaboradores[],MATCH(INDEX(VariaçõesDeColaboradores[],ROW()-ROW(VariaçõesDeColaboradores[[#Headers],[Mar]]),1),INDEX(PlanoDeColaboradores[],,1),0),MATCH(VariaçõesDeColaboradores[[#Headers],[Mar]],PlanoDeColaboradores[#Headers],0))-INDEX(RealColaboradores[],MATCH(INDEX(VariaçõesDeColaboradores[],ROW()-ROW(VariaçõesDeColaboradores[[#Headers],[Mar]]),1),INDEX(PlanoDeColaboradores[],,1),0),MATCH(VariaçõesDeColaboradores[[#Headers],[Mar]],RealColaboradores[#Headers],0)) -> 0.00 € | F6: =INDEX(PlanoDeColaboradores[],MATCH(INDEX(VariaçõesDeColaboradores[],ROW()-ROW(VariaçõesDeColaboradores[[#Headers],[Abr]]),1),INDEX(PlanoDeColaboradores[],,1),0),MATCH(VariaçõesDeColaboradores[[#Headers],[Abr]],PlanoDeColaboradores[#Headers],0))-INDEX(RealColaboradores[],MATCH(INDEX(VariaçõesDeColaboradores[],ROW()-ROW(VariaçõesDeColaboradores[[#Headers],[Abr]]),1),INDEX(PlanoDeColaboradores[],,1),0),MATCH(VariaçõesDeColaboradores[[#Headers],[Abr]],RealColaboradores[#Headers],0)) -> -500.00 € | G6: =INDEX(PlanoDeColaboradores[],MATCH(INDEX(VariaçõesDeColaboradores[],ROW()-ROW(VariaçõesDeColaboradores[[#Headers],[Mai]]),1),INDEX(PlanoDeColaboradores[],,1),0),MATCH(VariaçõesDeColaboradores[[#Headers],[Mai]],PlanoDeColaboradores[#Headers],0))-INDEX(RealColaboradores[],MATCH(INDEX(VariaçõesDeColaboradores[],ROW()-ROW(VariaçõesDeColaboradores[[#Headers],[Mai]]),1),INDEX(PlanoDeColaboradores[],,1),0),MATCH(VariaçõesDeColaboradores[[#Headers],[Mai]],RealColaboradores[#Headers],0)) -> -500.00 € | H6: =INDEX(PlanoDeColaboradores[],MATCH(INDEX(VariaçõesDeColaboradores[],ROW()-ROW(VariaçõesDeColaboradores[[#Headers],[Jun]]),1),INDEX(PlanoDeColaboradores[],,1),0),MATCH(VariaçõesDeColaboradores[[#Headers],[Jun]],PlanoDeColaboradores[#Headers],0))-INDEX(RealColaboradores[],MATCH(INDEX(VariaçõesDeColaboradores[],ROW()-ROW(VariaçõesDeColaboradores[[#Headers],[Jun]]),1),INDEX(PlanoDeColaboradores[],,1),0),MATCH(VariaçõesDeColaboradores[[#Headers],[Jun]],RealColaboradores[#Headers],0)) -> -500.00 € | I6: =INDEX(PlanoDeColaboradores[],MATCH(INDEX(VariaçõesDeColaboradores[],ROW()-ROW(VariaçõesDeColaboradores[[#Headers],[Jul]]),1),INDEX(PlanoDeColaboradores[],,1),0),MATCH(VariaçõesDeColaboradores[[#Headers],[Jul]],PlanoDeColaboradores[#Headers],0))-INDEX(RealColaboradores[],MATCH(INDEX(VariaçõesDeColaboradores[],ROW()-ROW(VariaçõesDeColaboradores[[#Headers],[Jul]]),1),INDEX(PlanoDeColaboradores[],,1),0),MATCH(VariaçõesDeColaboradores[[#Headers],[Jul]],RealColaboradores[#Headers],0)) -> 87,500.00 € | J6: =INDEX(PlanoDeColaboradores[],MATCH(INDEX(VariaçõesDeColaboradores[],ROW()-ROW(VariaçõesDeColaboradores[[#Headers],[Ago]]),1),INDEX(PlanoDeColaboradores[],,1),0),MATCH(VariaçõesDeColaboradores[[#Headers],[Ago]],PlanoDeColaboradores[#Headers],0))-INDEX(RealColaboradores[],MATCH(INDEX(VariaçõesDeColaboradores[],ROW()-ROW(VariaçõesDeColaboradores[[#Headers],[Ago]]),1),INDEX(PlanoDeColaboradores[],,1),0),MATCH(VariaçõesDeColaboradores[[#Headers],[Ago]],RealColaboradores[#Headers],0)) -> 92,400.00 € | K6: =INDEX(PlanoDeColaboradores[],MATCH(INDEX(VariaçõesDeColaboradores[],ROW()-ROW(VariaçõesDeColaboradores[[#Headers],[Set]]),1),INDEX(PlanoDeColaboradores[],,1),0),MATCH(VariaçõesDeColaboradores[[#Headers],[Set]],PlanoDeColaboradores[#Headers],0))-INDEX(RealColaboradores[],MATCH(INDEX(VariaçõesDeColaboradores[],ROW()-ROW(VariaçõesDeColaboradores[[#Headers],[Set]]),1),INDEX(PlanoDeColaboradores[],,1),0),MATCH(VariaçõesDeColaboradores[[#Headers],[Set]],RealColaboradores[#Headers],0)) -> 92,400.00 € | L6: =INDEX(PlanoDeColaboradores[],MATCH(INDEX(VariaçõesDeColaboradores[],ROW()-ROW(VariaçõesDeColaboradores[[#Headers],[Out]]),1),INDEX(PlanoDeColaboradores[],,1),0),MATCH(VariaçõesDeColaboradores[[#Headers],[Out]],PlanoDeColaboradores[#Headers],0))-INDEX(RealColaboradores[],MATCH(INDEX(VariaçõesDeColaboradores[],ROW()-ROW(VariaçõesDeColaboradores[[#Headers],[Out]]),1),INDEX(PlanoDeColaboradores[],,1),0),MATCH(VariaçõesDeColaboradores[[#Headers],[Out]],RealColaboradores[#Headers],0)) -> 92,400.00 € | M6: =INDEX(PlanoDeColaboradores[],MATCH(INDEX(VariaçõesDeColaboradores[],ROW()-ROW(VariaçõesDeColaboradores[[#Headers],[Nov]]),1),INDEX(PlanoDeColaboradores[],,1),0),MATCH(VariaçõesDeColaboradores[[#Headers],[Nov]],PlanoDeColaboradores[#Headers],0))-INDEX(RealColaboradores[],MATCH(INDEX(VariaçõesDeColaboradores[],ROW()-ROW(VariaçõesDeColaboradores[[#Headers],[Nov]]),1),INDEX(PlanoDeColaboradores[],,1),0),MATCH(VariaçõesDeColaboradores[[#Headers],[Nov]],RealColaboradores[#Headers],0)) -> 92,400.00 € | N6: =INDEX(PlanoDeColaboradores[],MATCH(INDEX(VariaçõesDeColaboradores[],ROW()-ROW(VariaçõesDeColaboradores[[#Headers],[Dez]]),1),INDEX(PlanoDeColaboradores[],,1),0),MATCH(VariaçõesDeColaboradores[[#Headers],[Dez]],PlanoDeColaboradores[#Headers],0))-INDEX(RealColaboradores[],MATCH(INDEX(VariaçõesDeColaboradores[],ROW()-ROW(VariaçõesDeColaboradores[[#Headers],[Dez]]),1),INDEX(PlanoDeColaboradores[],,1),0),MATCH(VariaçõesDeColaboradores[[#Headers],[Dez]],RealColaboradores[#Headers],0)) -> 92,400.00 € | O6: =SUM(VariaçõesDeColaboradores[[#This Row],[Jan]:[Dez]]) -> 548,000.00 €
B7: Benefícios | C7: =INDEX(PlanoDeColaboradores[],MATCH(INDEX(VariaçõesDeColaboradores[],ROW()-ROW(VariaçõesDeColaboradores[[#Headers],[Jan]]),1),INDEX(PlanoDeColaboradores[],,1),0),MATCH(VariaçõesDeColaboradores[[#Headers],[Jan]],PlanoDeColaboradores[#Headers],0))-INDEX(RealColaboradores[],MATCH(INDEX(VariaçõesDeColaboradores[],ROW()-ROW(VariaçõesDeColaboradores[[#Headers],[Jan]]),1),INDEX(PlanoDeColaboradores[],,1),0),MATCH(VariaçõesDeColaboradores[[#Headers],[Jan]],RealColaboradores[#Headers],0)) -> 0.00 € | D7: =INDEX(PlanoDeColaboradores[],MATCH(INDEX(VariaçõesDeColaboradores[],ROW()-ROW(VariaçõesDeColaboradores[[#Headers],[Fev]]),1),INDEX(PlanoDeColaboradores[],,1),0),MATCH(VariaçõesDeColaboradores[[#Headers],[Fev]],PlanoDeColaboradores[#Headers],0))-INDEX(RealColaboradores[],MATCH(INDEX(VariaçõesDeColaboradores[],ROW()-ROW(VariaçõesDeColaboradores[[#Headers],[Fev]]),1),INDEX(PlanoDeColaboradores[],,1),0),MATCH(VariaçõesDeColaboradores[[#Headers],[Fev]],RealColaboradores[#Headers],0)) -> 0.00 € | E7: =INDEX(PlanoDeColaboradores[],MATCH(INDEX(VariaçõesDeColaboradores[],ROW()-ROW(VariaçõesDeColaboradores[[#Headers],[Mar]]),1),INDEX(PlanoDeColaboradores[],,1),0),MATCH(VariaçõesDeColaboradores[[#Headers],[Mar]],PlanoDeColaboradores[#Headers],0))-INDEX(RealColaboradores[],MATCH(INDEX(VariaçõesDeColaboradores[],ROW()-ROW(VariaçõesDeColaboradores[[#Headers],[Mar]]),1),INDEX(PlanoDeColaboradores[],,1),0),MATCH(VariaçõesDeColaboradores[[#Headers],[Mar]],RealColaboradores[#Headers],0)) -> 0.00 € | F7: =INDEX(PlanoDeColaboradores[],MATCH(INDEX(VariaçõesDeColaboradores[],ROW()-ROW(VariaçõesDeColaboradores[[#Headers],[Abr]]),1),INDEX(PlanoDeColaboradores[],,1),0),MATCH(VariaçõesDeColaboradores[[#Headers],[Abr]],PlanoDeColaboradores[#Headers],0))-INDEX(RealColaboradores[],MATCH(INDEX(VariaçõesDeColaboradores[],ROW()-ROW(VariaçõesDeColaboradores[[#Headers],[Abr]]),1),INDEX(PlanoDeColaboradores[],,1),0),MATCH(VariaçõesDeColaboradores[[#Headers],[Abr]],RealColaboradores[#Headers],0)) -> -135.00 € | G7: =INDEX(PlanoDeColaboradores[],MATCH(INDEX(VariaçõesDeColaboradores[],ROW()-ROW(VariaçõesDeColaboradores[[#Headers],[Mai]]),1),INDEX(PlanoDeColaboradores[],,1),0),MATCH(VariaçõesDeColaboradores[[#Headers],[Mai]],PlanoDeColaboradores[#Headers],0))-INDEX(RealColaboradores[],MATCH(INDEX(VariaçõesDeColaboradores[],ROW()-ROW(VariaçõesDeColaboradores[[#Headers],[Mai]]),1),INDEX(PlanoDeColaboradores[],,1),0),MATCH(VariaçõesDeColaboradores[[#Headers],[Mai]],RealColaboradores[#Headers],0)) -> -135.00 € | H7: =INDEX(PlanoDeColaboradores[],MATCH(INDEX(VariaçõesDeColaboradores[],ROW()-ROW(VariaçõesDeColaboradores[[#Headers],[Jun]]),1),INDEX(PlanoDeColaboradores[],,1),0),MATCH(VariaçõesDeColaboradores[[#Headers],[Jun]],PlanoDeColaboradores[#Headers],0))-INDEX(RealColaboradores[],MATCH(INDEX(VariaçõesDeColaboradores[],ROW()-ROW(VariaçõesDeColaboradores[[#Headers],[Jun]]),1),INDEX(PlanoDeColaboradores[],,1),0),MATCH(VariaçõesDeColaboradores[[#Headers],[Jun]],RealColaboradores[#Headers],0)) -> -135.00 € | I7: =INDEX(PlanoDeColaboradores[],MATCH(INDEX(VariaçõesDeColaboradores[],ROW()-ROW(VariaçõesDeColaboradores[[#Headers],[Jul]]),1),INDEX(PlanoDeColaboradores[],,1),0),MATCH(VariaçõesDeColaboradores[[#Headers],[Jul]],PlanoDeColaboradores[#Headers],0))-INDEX(RealColaboradores[],MATCH(INDEX(VariaçõesDeColaboradores[],ROW()-ROW(VariaçõesDeColaboradores[[#Headers],[Jul]]),1),INDEX(PlanoDeColaboradores[],,1),0),MATCH(VariaçõesDeColaboradores[[#Headers],[Jul]],RealColaboradores[#Headers],0)) -> 23,625.00 € | J7: =INDEX(PlanoDeColaboradores[],MATCH(INDEX(VariaçõesDeColaboradores[],ROW()-ROW(VariaçõesDeColaboradores[[#Headers],[Ago]]),1),INDEX(PlanoDeColaboradores[],,1),0),MATCH(VariaçõesDeColaboradores[[#Headers],[Ago]],PlanoDeColaboradores[#Headers],0))-INDEX(RealColaboradores[],MATCH(INDEX(VariaçõesDeColaboradores[],ROW()-ROW(VariaçõesDeColaboradores[[#Headers],[Ago]]),1),INDEX(PlanoDeColaboradores[],,1),0),MATCH(VariaçõesDeColaboradores[[#Headers],[Ago]],RealColaboradores[#Headers],0)) -> 24,948.00 € | K7: =INDEX(PlanoDeColaboradores[],MATCH(INDEX(VariaçõesDeColaboradores[],ROW()-ROW(VariaçõesDeColaboradores[[#Headers],[Set]]),1),INDEX(PlanoDeColaboradores[],,1),0),MATCH(VariaçõesDeColaboradores[[#Headers],[Set]],PlanoDeColaboradores[#Headers],0))-INDEX(RealColaboradores[],MATCH(INDEX(VariaçõesDeColaboradores[],ROW()-ROW(VariaçõesDeColaboradores[[#Headers],[Set]]),1),INDEX(PlanoDeColaboradores[],,1),0),MATCH(VariaçõesDeColaboradores[[#Headers],[Set]],RealColaboradores[#Headers],0)) -> 24,948.00 € | L7: =INDEX(PlanoDeColaboradores[],MATCH(INDEX(VariaçõesDeColaboradores[],ROW()-ROW(VariaçõesDeColaboradores[[#Headers],[Out]]),1),INDEX(PlanoDeColaboradores[],,1),0),MATCH(VariaçõesDeColaboradores[[#Headers],[Out]],PlanoDeColaboradores[#Headers],0))-INDEX(RealColaboradores[],MATCH(INDEX(VariaçõesDeColaboradores[],ROW()-ROW(VariaçõesDeColaboradores[[#Headers],[Out]]),1),INDEX(PlanoDeColaboradores[],,1),0),MATCH(VariaçõesDeColaboradores[[#Headers],[Out]],RealColaboradores[#Headers],0)) -> 24,948.00 € | M7: =INDEX(PlanoDeColaboradores[],MATCH(INDEX(VariaçõesDeColaboradores[],ROW()-ROW(VariaçõesDeColaboradores[[#Headers],[Nov]]),1),INDEX(PlanoDeColaboradores[],,1),0),MATCH(VariaçõesDeColaboradores[[#Headers],[Nov]],PlanoDeColaboradores[#Headers],0))-INDEX(RealColaboradores[],MATCH(INDEX(VariaçõesDeColaboradores[],ROW()-ROW(VariaçõesDeColaboradores[[#Headers],[Nov]]),1),INDEX(PlanoDeColaboradores[],,1),0),MATCH(VariaçõesDeColaboradores[[#Headers],[Nov]],RealColaboradores[#Headers],0)) -> 24,948.00 € | N7: =INDEX(PlanoDeColaboradores[],MATCH(INDEX(VariaçõesDeColaboradores[],ROW()-ROW(VariaçõesDeColaboradores[[#Headers],[Dez]]),1),INDEX(PlanoDeColaboradores[],,1),0),MATCH(VariaçõesDeColaboradores[[#Headers],[Dez]],PlanoDeColaboradores[#Headers],0))-INDEX(RealColaboradores[],MATCH(INDEX(VariaçõesDeColaboradores[],ROW()-ROW(VariaçõesDeColaboradores[[#Headers],[Dez]]),1),INDEX(PlanoDeColaboradores[],,1),0),MATCH(VariaçõesDeColaboradores[[#Headers],[Dez]],RealColaboradores[#Headers],0)) -> 24,948.00 € | O7: =SUM(VariaçõesDeColaboradores[[#This Row],[Jan]:[Dez]]) -> 147,960.00 €
B8: Subtotal | C8: =SUBTOTAL(109,VariaçõesDeColaboradores[Jan]) -> 0.00 € | D8: =SUBTOTAL(109,VariaçõesDeColaboradores[Fev]) -> 0.00 € | E8: =SUBTOTAL(109,VariaçõesDeColaboradores[Mar]) -> 0.00 € | F8: =SUBTOTAL(109,VariaçõesDeColaboradores[Abr]) -> -635.00 € | G8: =SUBTOTAL(109,VariaçõesDeColaboradores[Mai]) -> -635.00 € | H8: =SUBTOTAL(109,VariaçõesDeColaboradores[Jun]) -> -635.00 € | I8: =SUBTOTAL(109,VariaçõesDeColaboradores[Jul]) -> 111,125.00 € | J8: =SUBTOTAL(109,VariaçõesDeColaboradores[Ago]) -> 117,348.00 € | K8: =SUBTOTAL(109,VariaçõesDeColaboradores[Set]) -> 117,348.00 € | L8: =SUBTOTAL(109,VariaçõesDeColaboradores[Out]) -> 117,348.00 € | M8: =SUBTOTAL(109,VariaçõesDeColaboradores[Nov]) -> 117,348.00 € | N8: =SUBTOTAL(109,VariaçõesDeColaboradores[Dez]) -> 117,348.00 € | O8: =SUBTOTAL(109,VariaçõesDeColaboradores[ANO]) -> 695,960.00 €
A10: A Variação nos Custos de Escritório é calculada automaticamente na tabela Variações de Escritório a partir da célula à direita. A instrução seguinte está na célula A21. | B10: Custos de Escritório | C10: Jan | D10: Fev | E10: Mar | F10: Abr | G10: Mai | H10: Jun | I10: Jul | J10: Ago | K10: Set | L10: Out | M10: Nov | N10: Dez | O10: ANO
B11: Arrendamento de escritório | C11: =INDEX(PlanoDeEscritório[],MATCH(INDEX(VariaçõesDeEscritório[],ROW()-ROW(VariaçõesDeEscritório[[#Headers],[Jan]]),1),INDEX(PlanoDeEscritório[],,1),0),MATCH(VariaçõesDeEscritório[[#Headers],[Jan]],PlanoDeEscritório[#Headers],0))-INDEX(RealEscritório[],MATCH(INDEX(VariaçõesDeEscritório[],ROW()-ROW(VariaçõesDeEscritório[[#Headers],[Jan]]),1),INDEX(PlanoDeEscritório[],,1),0),MATCH(VariaçõesDeEscritório[[#Headers],[Jan]],RealEscritório[#Headers],0)) -> 0.00 € | D11: =INDEX(PlanoDeEscritório[],MATCH(INDEX(VariaçõesDeEscritório[],ROW()-ROW(VariaçõesDeEscritório[[#Headers],[Fev]]),1),INDEX(PlanoDeEscritório[],,1),0),MATCH(VariaçõesDeEscritório[[#Headers],[Fev]],PlanoDeEscritório[#Headers],0))-INDEX(RealEscritório[],MATCH(INDEX(VariaçõesDeEscritório[],ROW()-ROW(VariaçõesDeEscritório[[#Headers],[Fev]]),1),INDEX(PlanoDeEscritório[],,1),0),MATCH(VariaçõesDeEscritório[[#Headers],[Fev]],RealEscritório[#Headers],0)) -> 0.00 € | E11: =INDEX(PlanoDeEscritório[],MATCH(INDEX(VariaçõesDeEscritório[],ROW()-ROW(VariaçõesDeEscritório[[#Headers],[Mar]]),1),INDEX(PlanoDeEscritório[],,1),0),MATCH(VariaçõesDeEscritório[[#Headers],[Mar]],PlanoDeEscritório[#Headers],0))-INDEX(RealEscritório[],MATCH(INDEX(VariaçõesDeEscritório[],ROW()-ROW(VariaçõesDeEscritório[[#Headers],[Mar]]),1),INDEX(PlanoDeEscritório[],,1),0),MATCH(VariaçõesDeEscritório[[#Headers],[Mar]],RealEscritório[#Headers],0)) -> 0.00 € | F11: =INDEX(PlanoDeEscritório[],MATCH(INDEX(VariaçõesDeEscritório[],ROW()-ROW(VariaçõesDeEscritório[[#Headers],[Abr]]),1),INDEX(PlanoDeEscritório[],,1),0),MATCH(VariaçõesDeEscritório[[#Headers],[Abr]],PlanoDeEscritório[#Headers],0))-INDEX(RealEscritório[],MATCH(INDEX(VariaçõesDeEscritório[],ROW()-ROW(VariaçõesDeEscritório[[#Headers],[Abr]]),1),INDEX(PlanoDeEscritório[],,1),0),MATCH(VariaçõesDeEscritório[[#Headers],[Abr]],RealEscritório[#Headers],0)) -> 0.00 € | G11: =INDEX(PlanoDeEscritório[],MATCH(INDEX(VariaçõesDeEscritório[],ROW()-ROW(VariaçõesDeEscritório[[#Headers],[Mai]]),1),INDEX(PlanoDeEscritório[],,1),0),MATCH(VariaçõesDeEscritório[[#Headers],[Mai]],PlanoDeEscritório[#Headers],0))-INDEX(RealEscritório[],MATCH(INDEX(VariaçõesDeEscritório[],ROW()-ROW(VariaçõesDeEscritório[[#Headers],[Mai]]),1),INDEX(PlanoDeEscritório[],,1),0),MATCH(VariaçõesDeEscritório[[#Headers],[Mai]],RealEscritório[#Headers],0)) -> 0.00 € | H11: =INDEX(PlanoDeEscritório[],MATCH(INDEX(VariaçõesDeEscritório[],ROW()-ROW(VariaçõesDeEscritório[[#Headers],[Jun]]),1),INDEX(PlanoDeEscritório[],,1),0),MATCH(VariaçõesDeEscritório[[#Headers],[Jun]],PlanoDeEscritório[#Headers],0))-INDEX(RealEscritório[],MATCH(INDEX(VariaçõesDeEscritório[],ROW()-ROW(VariaçõesDeEscritório[[#Headers],[Jun]]),1),INDEX(PlanoDeEscritório[],,1),0),MATCH(VariaçõesDeEscritório[[#Headers],[Jun]],RealEscritório[#Headers],0)) -> 0.00 € | I11: =INDEX(PlanoDeEscritório[],MATCH(INDEX(VariaçõesDeEscritório[],ROW()-ROW(VariaçõesDeEscritório[[#Headers],[Jul]]),1),INDEX(PlanoDeEscritório[],,1),0),MATCH(VariaçõesDeEscritório[[#Headers],[Jul]],PlanoDeEscritório[#Headers],0))-INDEX(RealEscritório[],MATCH(INDEX(VariaçõesDeEscritório[],ROW()-ROW(VariaçõesDeEscritório[[#Headers],[Jul]]),1),INDEX(PlanoDeEscritório[],,1),0),MATCH(VariaçõesDeEscritório[[#Headers],[Jul]],RealEscritório[#Headers],0)) -> 9,800.00 € | J11: =INDEX(PlanoDeEscritório[],MATCH(INDEX(VariaçõesDeEscritório[],ROW()-ROW(VariaçõesDeEscritório[[#Headers],[Ago]]),1),INDEX(PlanoDeEscritório[],,1),0),MATCH(VariaçõesDeEscritório[[#Headers],[Ago]],PlanoDeEscritório[#Headers],0))-INDEX(RealEscritório[],MATCH(INDEX(VariaçõesDeEscritório[],ROW()-ROW(VariaçõesDeEscritório[[#Headers],[Ago]]),1),INDEX(PlanoDeEscritório[],,1),0),MATCH(VariaçõesDeEscritório[[#Headers],[Ago]],RealEscritório[#Headers],0)) -> 9,800.00 € | K11: =INDEX(PlanoDeEscritório[],MATCH(INDEX(VariaçõesDeEscritório[],ROW()-ROW(VariaçõesDeEscritório[[#Headers],[Set]]),1),INDEX(PlanoDeEscritório[],,1),0),MATCH(VariaçõesDeEscritório[[#Headers],[Set]],PlanoDeEscritório[#Headers],0))-INDEX(RealEscritório[],MATCH(INDEX(VariaçõesDeEscritório[],ROW()-ROW(VariaçõesDeEscritório[[#Headers],[Set]]),1),INDEX(PlanoDeEscritório[],,1),0),MATCH(VariaçõesDeEscritório[[#Headers],[Set]],RealEscritório[#Headers],0)) -> 9,800.00 € | L11: =INDEX(PlanoDeEscritório[],MATCH(INDEX(VariaçõesDeEscritório[],ROW()-ROW(VariaçõesDeEscritório[[#Headers],[Out]]),1),INDEX(PlanoDeEscritório[],,1),0),MATCH(VariaçõesDeEscritório[[#Headers],[Out]],PlanoDeEscritório[#Headers],0))-INDEX(RealEscritório[],MATCH(INDEX(VariaçõesDeEscritório[],ROW()-ROW(VariaçõesDeEscritório[[#Headers],[Out]]),1),INDEX(PlanoDeEscritório[],,1),0),MATCH(VariaçõesDeEscritório[[#Headers],[Out]],RealEscritório[#Headers],0)) -> 9,800.00 € | M11: =INDEX(PlanoDeEscritório[],MATCH(INDEX(VariaçõesDeEscritório[],ROW()-ROW(VariaçõesDeEscritório[[#Headers],[Nov]]),1),INDEX(PlanoDeEscritório[],,1),0),MATCH(VariaçõesDeEscritório[[#Headers],[Nov]],PlanoDeEscritório[#Headers],0))-INDEX(RealEscritório[],MATCH(INDEX(VariaçõesDeEscritório[],ROW()-ROW(VariaçõesDeEscritório[[#Headers],[Nov]]),1),INDEX(PlanoDeEscritório[],,1),0),MATCH(VariaçõesDeEscritório[[#Headers],[Nov]],RealEscritório[#Headers],0)) -> 9,800.00 € | N11: =INDEX(PlanoDeEscritório[],MATCH(INDEX(VariaçõesDeEscritório[],ROW()-ROW(VariaçõesDeEscritório[[#Headers],[Dez]]),1),INDEX(PlanoDeEscritório[],,1),0),MATCH(VariaçõesDeEscritório[[#Headers],[Dez]],PlanoDeEscritório[#Headers],0))-INDEX(RealEscritório[],MATCH(INDEX(VariaçõesDeEscritório[],ROW()-ROW(VariaçõesDeEscritório[[#Headers],[Dez]]),1),INDEX(PlanoDeEscritório[],,1),0),MATCH(VariaçõesDeEscritório[[#Headers],[Dez]],RealEscritório[#Headers],0)) -> 9,800.00 € | O11: =SUM(VariaçõesDeEscritório[[#This Row],[Jan]:[Dez]]) -> 58,800.00 €
B12: Gás | C12: =INDEX(PlanoDeEscritório[],MATCH(INDEX(VariaçõesDeEscritório[],ROW()-ROW(VariaçõesDeEscritório[[#Headers],[Jan]]),1),INDEX(PlanoDeEscritório[],,1),0),MATCH(VariaçõesDeEscritório[[#Headers],[Jan]],PlanoDeEscritório[#Headers],0))-INDEX(RealEscritório[],MATCH(INDEX(VariaçõesDeEscritório[],ROW()-ROW(VariaçõesDeEscritório[[#Headers],[Jan]]),1),INDEX(PlanoDeEscritório[],,1),0),MATCH(VariaçõesDeEscritório[[#Headers],[Jan]],RealEscritório[#Headers],0)) -> -4.00 € | D12: =INDEX(PlanoDeEscritório[],MATCH(INDEX(VariaçõesDeEscritório[],ROW()-ROW(VariaçõesDeEscritório[[#Headers],[Fev]]),1),INDEX(PlanoDeEscritório[],,1),0),MATCH(VariaçõesDeEscritório[[#Headers],[Fev]],PlanoDeEscritório[#Headers],0))-INDEX(RealEscritório[],MATCH(INDEX(VariaçõesDeEscritório[],ROW()-ROW(VariaçõesDeEscritório[[#Headers],[Fev]]),1),INDEX(PlanoDeEscritório[],,1),0),MATCH(VariaçõesDeEscritório[[#Headers],[Fev]],RealEscritório[#Headers],0)) -> -30.00 € | E12: =INDEX(PlanoDeEscritório[],MATCH(INDEX(VariaçõesDeEscritório[],ROW()-ROW(VariaçõesDeEscritório[[#Headers],[Mar]]),1),INDEX(PlanoDeEscritório[],,1),0),MATCH(VariaçõesDeEscritório[[#Headers],[Mar]],PlanoDeEscritório[#Headers],0))-INDEX(RealEscritório[],MATCH(INDEX(VariaçõesDeEscritório[],ROW()-ROW(VariaçõesDeEscritório[[#Headers],[Mar]]),1),INDEX(PlanoDeEscritório[],,1),0),MATCH(VariaçõesDeEscritório[[#Headers],[Mar]],RealEscritório[#Headers],0)) -> 15.00 € | F12: =INDEX(PlanoDeEscritório[],MATCH(INDEX(VariaçõesDeEscritório[],ROW()-ROW(VariaçõesDeEscritório[[#Headers],[Abr]]),1),INDEX(PlanoDeEscritório[],,1),0),MATCH(VariaçõesDeEscritório[[#Headers],[Abr]],PlanoDeEscritório[#Headers],0))-INDEX(RealEscritório[],MATCH(INDEX(VariaçõesDeEscritório[],ROW()-ROW(VariaçõesDeEscritório[[#Headers],[Abr]]),1),INDEX(PlanoDeEscritório[],,1),0),MATCH(VariaçõesDeEscritório[[#Headers],[Abr]],RealEscritório[#Headers],0)) -> -130.00 € | G12: =INDEX(PlanoDeEscritório[],MATCH(INDEX(VariaçõesDeEscritório[],ROW()-ROW(VariaçõesDeEscritório[[#Headers],[Mai]]),1),INDEX(PlanoDeEscritório[],,1),0),MATCH(VariaçõesDeEscritório[[#Headers],[Mai]],PlanoDeEscritório[#Headers],0))-INDEX(RealEscritório[],MATCH(INDEX(VariaçõesDeEscritório[],ROW()-ROW(VariaçõesDeEscritório[[#Headers],[Mai]]),1),INDEX(PlanoDeEscritório[],,1),0),MATCH(VariaçõesDeEscritório[[#Headers],[Mai]],RealEscritório[#Headers],0)) -> 13.00 € | H12: =INDEX(PlanoDeEscritório[],MATCH(INDEX(VariaçõesDeEscritório[],ROW()-ROW(VariaçõesDeEscritório[[#Headers],[Jun]]),1),INDEX(PlanoDeEscritório[],,1),0),MATCH(VariaçõesDeEscritório[[#Headers],[Jun]],PlanoDeEscritório[#Headers],0))-INDEX(RealEscritório[],MATCH(INDEX(VariaçõesDeEscritório[],ROW()-ROW(VariaçõesDeEscritório[[#Headers],[Jun]]),1),INDEX(PlanoDeEscritório[],,1),0),MATCH(VariaçõesDeEscritório[[#Headers],[Jun]],RealEscritório[#Headers],0)) -> 12.00 € | I12: =INDEX(PlanoDeEscritório[],MATCH(INDEX(VariaçõesDeEscritório[],ROW()-ROW(VariaçõesDeEscritório[[#Headers],[Jul]]),1),INDEX(PlanoDeEscritório[],,1),0),MATCH(VariaçõesDeEscritório[[#Headers],[Jul]],PlanoDeEscritório[#Headers],0))-INDEX(RealEscritório[],MATCH(INDEX(VariaçõesDeEscritório[],ROW()-ROW(VariaçõesDeEscritório[[#Headers],[Jul]]),1),INDEX(PlanoDeEscritório[],,1),0),MATCH(VariaçõesDeEscritório[[#Headers],[Jul]],RealEscritório[#Headers],0)) -> 100.00 € | J12: =INDEX(PlanoDeEscritório[],MATCH(INDEX(VariaçõesDeEscritório[],ROW()-ROW(VariaçõesDeEscritório[[#Headers],[Ago]]),1),INDEX(PlanoDeEscritório[],,1),0),MATCH(VariaçõesDeEscritório[[#Headers],[Ago]],PlanoDeEscritório[#Headers],0))-INDEX(RealEscritório[],MATCH(INDEX(VariaçõesDeEscritório[],ROW()-ROW(VariaçõesDeEscritório[[#Headers],[Ago]]),1),INDEX(PlanoDeEscritório[],,1),0),MATCH(VariaçõesDeEscritório[[#Headers],[Ago]],RealEscritório[#Headers],0)) -> 100.00 € | K12: =INDEX(PlanoDeEscritório[],MATCH(INDEX(VariaçõesDeEscritório[],ROW()-ROW(VariaçõesDeEscritório[[#Headers],[Set]]),1),INDEX(PlanoDeEscritório[],,1),0),MATCH(VariaçõesDeEscritório[[#Headers],[Set]],PlanoDeEscritório[#Headers],0))-INDEX(RealEscritório[],MATCH(INDEX(VariaçõesDeEscritório[],ROW()-ROW(VariaçõesDeEscritório[[#Headers],[Set]]),1),INDEX(PlanoDeEscritório[],,1),0),MATCH(VariaçõesDeEscritório[[#Headers],[Set]],RealEscritório[#Headers],0)) -> 100.00 € | L12: =INDEX(PlanoDeEscritório[],MATCH(INDEX(VariaçõesDeEscritório[],ROW()-ROW(VariaçõesDeEscritório[[#Headers],[Out]]),1),INDEX(PlanoDeEscritório[],,1),0),MATCH(VariaçõesDeEscritório[[#Headers],[Out]],PlanoDeEscritório[#Headers],0))-INDEX(RealEscritório[],MATCH(INDEX(VariaçõesDeEscritório[],ROW()-ROW(VariaçõesDeEscritório[[#Headers],[Out]]),1),INDEX(PlanoDeEscritório[],,1),0),MATCH(VariaçõesDeEscritório[[#Headers],[Out]],RealEscritório[#Headers],0)) -> 100.00 € | M12: =INDEX(PlanoDeEscritório[],MATCH(INDEX(VariaçõesDeEscritório[],ROW()-ROW(VariaçõesDeEscritório[[#Headers],[Nov]]),1),INDEX(PlanoDeEscritório[],,1),0),MATCH(VariaçõesDeEscritório[[#Headers],[Nov]],PlanoDeEscritório[#Headers],0))-INDEX(RealEscritório[],MATCH(INDEX(VariaçõesDeEscritório[],ROW()-ROW(VariaçõesDeEscritório[[#Headers],[Nov]]),1),INDEX(PlanoDeEscritório[],,1),0),MATCH(VariaçõesDeEscritório[[#Headers],[Nov]],RealEscritório[#Headers],0)) -> 400.00 € | N12: =INDEX(PlanoDeEscritório[],MATCH(INDEX(VariaçõesDeEscritório[],ROW()-ROW(VariaçõesDeEscritório[[#Headers],[Dez]]),1),INDEX(PlanoDeEscritório[],,1),0),MATCH(VariaçõesDeEscritório[[#Headers],[Dez]],PlanoDeEscritório[#Headers],0))-INDEX(RealEscritório[],MATCH(INDEX(VariaçõesDeEscritório[],ROW()-ROW(VariaçõesDeEscritório[[#Headers],[Dez]]),1),INDEX(PlanoDeEscritório[],,1),0),MATCH(VariaçõesDeEscritório[[#Headers],[Dez]],RealEscritório[#Headers],0)) -> 400.00 € | O12: =SUM(VariaçõesDeEscritório[[#This Row],[Jan]:[Dez]]) -> 1,076.00 €
B13: Eletricidade | C13: =INDEX(PlanoDeEscritório[],MATCH(INDEX(VariaçõesDeEscritório[],ROW()-ROW(VariaçõesDeEscritório[[#Headers],[Jan]]),1),INDEX(PlanoDeEscritório[],,1),0),MATCH(VariaçõesDeEscritório[[#Headers],[Jan]],PlanoDeEscritório[#Headers],0))-INDEX(RealEscritório[],MATCH(INDEX(VariaçõesDeEscritório[],ROW()-ROW(VariaçõesDeEscritório[[#Headers],[Jan]]),1),INDEX(PlanoDeEscritório[],,1),0),MATCH(VariaçõesDeEscritório[[#Headers],[Jan]],RealEscritório[#Headers],0)) -> 12.00 € | D13: =INDEX(PlanoDeEscritório[],MATCH(INDEX(VariaçõesDeEscritório[],ROW()-ROW(VariaçõesDeEscritório[[#Headers],[Fev]]),1),INDEX(PlanoDeEscritório[],,1),0),MATCH(VariaçõesDeEscritório[[#Headers],[Fev]],PlanoDeEscritório[#Headers],0))-INDEX(RealEscritório[],MATCH(INDEX(VariaçõesDeEscritório[],ROW()-ROW(VariaçõesDeEscritório[[#Headers],[Fev]]),1),INDEX(PlanoDeEscritório[],,1),0),MATCH(VariaçõesDeEscritório[[#Headers],[Fev]],RealEscritório[#Headers],0)) -> 22.00 € | E13: =INDEX(PlanoDeEscritório[],MATCH(INDEX(VariaçõesDeEscritório[],ROW()-ROW(VariaçõesDeEscritório[[#Headers],[Mar]]),1),INDEX(PlanoDeEscritório[],,1),0),MATCH(VariaçõesDeEscritório[[#Headers],[Mar]],PlanoDeEscritório[#Headers],0))-INDEX(RealEscritório[],MATCH(INDEX(VariaçõesDeEscritório[],ROW()-ROW(VariaçõesDeEscritório[[#Headers],[Mar]]),1),INDEX(PlanoDeEscritório[],,1),0),MATCH(VariaçõesDeEscritório[[#Headers],[Mar]],RealEscritório[#Headers],0)) -> 32.00 € | F13: =INDEX(PlanoDeEscritório[],MATCH(INDEX(VariaçõesDeEscritório[],ROW()-ROW(VariaçõesDeEscritório[[#Headers],[Abr]]),1),INDEX(PlanoDeEscritório[],,1),0),MATCH(VariaçõesDeEscritório[[#Headers],[Abr]],PlanoDeEscritório[#Headers],0))-INDEX(RealEscritório[],MATCH(INDEX(VariaçõesDeEscritório[],ROW()-ROW(VariaçõesDeEscritório[[#Headers],[Abr]]),1),INDEX(PlanoDeEscritório[],,1),0),MATCH(VariaçõesDeEscritório[[#Headers],[Abr]],RealEscritório[#Headers],0)) -> 1.00 € | G13: =INDEX(PlanoDeEscritório[],MATCH(INDEX(VariaçõesDeEscritório[],ROW()-ROW(VariaçõesDeEscritório[[#Headers],[Mai]]),1),INDEX(PlanoDeEscritório[],,1),0),MATCH(VariaçõesDeEscritório[[#Headers],[Mai]],PlanoDeEscritório[#Headers],0))-INDEX(RealEscritório[],MATCH(INDEX(VariaçõesDeEscritório[],ROW()-ROW(VariaçõesDeEscritório[[#Headers],[Mai]]),1),INDEX(PlanoDeEscritório[],,1),0),MATCH(VariaçõesDeEscritório[[#Headers],[Mai]],RealEscritório[#Headers],0)) -> -6.00 € | H13: =INDEX(PlanoDeEscritório[],MATCH(INDEX(VariaçõesDeEscritório[],ROW()-ROW(VariaçõesDeEscritório[[#Headers],[Jun]]),1),INDEX(PlanoDeEscritório[],,1),0),MATCH(VariaçõesDeEscritório[[#Headers],[Jun]],PlanoDeEscritório[#Headers],0))-INDEX(RealEscritório[],MATCH(INDEX(VariaçõesDeEscritório[],ROW()-ROW(VariaçõesDeEscritório[[#Headers],[Jun]]),1),INDEX(PlanoDeEscritório[],,1),0),MATCH(VariaçõesDeEscritório[[#Headers],[Jun]],RealEscritório[#Headers],0)) -> 10.00 € | I13: =INDEX(PlanoDeEscritório[],MATCH(INDEX(VariaçõesDeEscritório[],ROW()-ROW(VariaçõesDeEscritório[[#Headers],[Jul]]),1),INDEX(PlanoDeEscritório[],,1),0),MATCH(VariaçõesDeEscritório[[#Headers],[Jul]],PlanoDeEscritório[#Headers],0))-INDEX(RealEscritório[],MATCH(INDEX(VariaçõesDeEscritório[],ROW()-ROW(VariaçõesDeEscritório[[#Headers],[Jul]]),1),INDEX(PlanoDeEscritório[],,1),0),MATCH(VariaçõesDeEscritório[[#Headers],[Jul]],RealEscritório[#Headers],0)) -> 300.00 € | J13: =INDEX(PlanoDeEscritório[],MATCH(INDEX(VariaçõesDeEscritório[],ROW()-ROW(VariaçõesDeEscritório[[#Headers],[Ago]]),1),INDEX(PlanoDeEscritório[],,1),0),MATCH(VariaçõesDeEscritório[[#Headers],[Ago]],PlanoDeEscritório[#Headers],0))-INDEX(RealEscritório[],MATCH(INDEX(VariaçõesDeEscritório[],ROW()-ROW(VariaçõesDeEscritório[[#Headers],[Ago]]),1),INDEX(PlanoDeEscritório[],,1),0),MATCH(VariaçõesDeEscritório[[#Headers],[Ago]],RealEscritório[#Headers],0)) -> 300.00 € | K13: =INDEX(PlanoDeEscritório[],MATCH(INDEX(VariaçõesDeEscritório[],ROW()-ROW(VariaçõesDeEscritório[[#Headers],[Set]]),1),INDEX(PlanoDeEscritório[],,1),0),MATCH(VariaçõesDeEscritório[[#Headers],[Set]],PlanoDeEscritório[#Headers],0))-INDEX(RealEscritório[],MATCH(INDEX(VariaçõesDeEscritório[],ROW()-ROW(VariaçõesDeEscritório[[#Headers],[Set]]),1),INDEX(PlanoDeEscritório[],,1),0),MATCH(VariaçõesDeEscritório[[#Headers],[Set]],RealEscritório[#Headers],0)) -> 300.00 € | L13: =INDEX(PlanoDeEscritório[],MATCH(INDEX(VariaçõesDeEscritório[],ROW()-ROW(VariaçõesDeEscritório[[#Headers],[Out]]),1),INDEX(PlanoDeEscritório[],,1),0),MATCH(VariaçõesDeEscritório[[#Headers],[Out]],PlanoDeEscritório[#Headers],0))-INDEX(RealEscritório[],MATCH(INDEX(VariaçõesDeEscritório[],ROW()-ROW(VariaçõesDeEscritório[[#Headers],[Out]]),1),INDEX(PlanoDeEscritório[],,1),0),MATCH(VariaçõesDeEscritório[[#Headers],[Out]],RealEscritório[#Headers],0)) -> 300.00 € | M13: =INDEX(PlanoDeEscritório[],MATCH(INDEX(VariaçõesDeEscritório[],ROW()-ROW(VariaçõesDeEscritório[[#Headers],[Nov]]),1),INDEX(PlanoDeEscritório[],,1),0),MATCH(VariaçõesDeEscritório[[#Headers],[Nov]],PlanoDeEscritório[#Headers],0))-INDEX(RealEscritório[],MATCH(INDEX(VariaçõesDeEscritório[],ROW()-ROW(VariaçõesDeEscritório[[#Headers],[Nov]]),1),INDEX(PlanoDeEscritório[],,1),0),MATCH(VariaçõesDeEscritório[[#Headers],[Nov]],RealEscritório[#Headers],0)) -> 300.00 € | N13: =INDEX(PlanoDeEscritório[],MATCH(INDEX(VariaçõesDeEscritório[],ROW()-ROW(VariaçõesDeEscritório[[#Headers],[Dez]]),1),INDEX(PlanoDeEscritório[],,1),0),MATCH(VariaçõesDeEscritório[[#Headers],[Dez]],PlanoDeEscritório[#Headers],0))-INDEX(RealEscritório[],MATCH(INDEX(VariaçõesDeEscritório[],ROW()-ROW(VariaçõesDeEscritório[[#Headers],[Dez]]),1),INDEX(PlanoDeEscritório[],,1),0),MATCH(VariaçõesDeEscritório[[#Headers],[Dez]],RealEscritório[#Headers],0)) -> 300.00 € | O13: =SUM(VariaçõesDeEscritório[[#This Row],[Jan]:[Dez]]) -> 1,871.00 €
B14: Água | C14: =INDEX(PlanoDeEscritório[],MATCH(INDEX(VariaçõesDeEscritório[],ROW()-ROW(VariaçõesDeEscritório[[#Headers],[Jan]]),1),INDEX(PlanoDeEscritório[],,1),0),MATCH(VariaçõesDeEscritório[[#Headers],[Jan]],PlanoDeEscritório[#Headers],0))-INDEX(RealEscritório[],MATCH(INDEX(VariaçõesDeEscritório[],ROW()-ROW(VariaçõesDeEscritório[[#Headers],[Jan]]),1),INDEX(PlanoDeEscritório[],,1),0),MATCH(VariaçõesDeEscritório[[#Headers],[Jan]],RealEscritório[#Headers],0)) -> 5.00 € | D14: =INDEX(PlanoDeEscritório[],MATCH(INDEX(VariaçõesDeEscritório[],ROW()-ROW(VariaçõesDeEscritório[[#Headers],[Fev]]),1),INDEX(PlanoDeEscritório[],,1),0),MATCH(VariaçõesDeEscritório[[#Headers],[Fev]],PlanoDeEscritório[#Headers],0))-INDEX(RealEscritório[],MATCH(INDEX(VariaçõesDeEscritório[],ROW()-ROW(VariaçõesDeEscritório[[#Headers],[Fev]]),1),INDEX(PlanoDeEscritório[],,1),0),MATCH(VariaçõesDeEscritório[[#Headers],[Fev]],RealEscritório[#Headers],0)) -> 7.00 € | E14: =INDEX(PlanoDeEscritório[],MATCH(INDEX(VariaçõesDeEscritório[],ROW()-ROW(VariaçõesDeEscritório[[#Headers],[Mar]]),1),INDEX(PlanoDeEscritório[],,1),0),MATCH(VariaçõesDeEscritório[[#Headers],[Mar]],PlanoDeEscritório[#Headers],0))-INDEX(RealEscritório[],MATCH(INDEX(VariaçõesDeEscritório[],ROW()-ROW(VariaçõesDeEscritório[[#Headers],[Mar]]),1),INDEX(PlanoDeEscritório[],,1),0),MATCH(VariaçõesDeEscritório[[#Headers],[Mar]],RealEscritório[#Headers],0)) -> 6.00 € | F14: =INDEX(PlanoDeEscritório[],MATCH(INDEX(VariaçõesDeEscritório[],ROW()-ROW(VariaçõesDeEscritório[[#Headers],[Abr]]),1),INDEX(PlanoDeEscritório[],,1),0),MATCH(VariaçõesDeEscritório[[#Headers],[Abr]],PlanoDeEscritório[#Headers],0))-INDEX(RealEscritório[],MATCH(INDEX(VariaçõesDeEscritório[],ROW()-ROW(VariaçõesDeEscritório[[#Headers],[Abr]]),1),INDEX(PlanoDeEscritório[],,1),0),MATCH(VariaçõesDeEscritório[[#Headers],[Abr]],RealEscritório[#Headers],0)) -> 4.00 € | G14: =INDEX(PlanoDeEscritório[],MATCH(INDEX(VariaçõesDeEscritório[],ROW()-ROW(VariaçõesDeEscritório[[#Headers],[Mai]]),1),INDEX(PlanoDeEscritório[],,1),0),MATCH(VariaçõesDeEscritório[[#Headers],[Mai]],PlanoDeEscritório[#Headers],0))-INDEX(RealEscritório[],MATCH(INDEX(VariaçõesDeEscritório[],ROW()-ROW(VariaçõesDeEscritório[[#Headers],[Mai]]),1),INDEX(PlanoDeEscritório[],,1),0),MATCH(VariaçõesDeEscritório[[#Headers],[Mai]],RealEscritório[#Headers],0)) -> 6.00 € | H14: =INDEX(PlanoDeEscritório[],MATCH(INDEX(VariaçõesDeEscritório[],ROW()-ROW(VariaçõesDeEscritório[[#Headers],[Jun]]),1),INDEX(PlanoDeEscritório[],,1),0),MATCH(VariaçõesDeEscritório[[#Headers],[Jun]],PlanoDeEscritório[#Headers],0))-INDEX(RealEscritório[],MATCH(INDEX(VariaçõesDeEscritório[],ROW()-ROW(VariaçõesDeEscritório[[#Headers],[Jun]]),1),INDEX(PlanoDeEscritório[],,1),0),MATCH(VariaçõesDeEscritório[[#Headers],[Jun]],RealEscritório[#Headers],0)) -> 4.00 € | I14: =INDEX(PlanoDeEscritório[],MATCH(INDEX(VariaçõesDeEscritório[],ROW()-ROW(VariaçõesDeEscritório[[#Headers],[Jul]]),1),INDEX(PlanoDeEscritório[],,1),0),MATCH(VariaçõesDeEscritório[[#Headers],[Jul]],PlanoDeEscritório[#Headers],0))-INDEX(RealEscritório[],MATCH(INDEX(VariaçõesDeEscritório[],ROW()-ROW(VariaçõesDeEscritório[[#Headers],[Jul]]),1),INDEX(PlanoDeEscritório[],,1),0),MATCH(VariaçõesDeEscritório[[#Headers],[Jul]],RealEscritório[#Headers],0)) -> 40.00 € | J14: =INDEX(PlanoDeEscritório[],MATCH(INDEX(VariaçõesDeEscritório[],ROW()-ROW(VariaçõesDeEscritório[[#Headers],[Ago]]),1),INDEX(PlanoDeEscritório[],,1),0),MATCH(VariaçõesDeEscritório[[#Headers],[Ago]],PlanoDeEscritório[#Headers],0))-INDEX(RealEscritório[],MATCH(INDEX(VariaçõesDeEscritório[],ROW()-ROW(VariaçõesDeEscritório[[#Headers],[Ago]]),1),INDEX(PlanoDeEscritório[],,1),0),MATCH(VariaçõesDeEscritório[[#Headers],[Ago]],RealEscritório[#Headers],0)) -> 40.00 € | K14: =INDEX(PlanoDeEscritório[],MATCH(INDEX(VariaçõesDeEscritório[],ROW()-ROW(VariaçõesDeEscritório[[#Headers],[Set]]),1),INDEX(PlanoDeEscritório[],,1),0),MATCH(VariaçõesDeEscritório[[#Headers],[Set]],PlanoDeEscritório[#Headers],0))-INDEX(RealEscritório[],MATCH(INDEX(VariaçõesDeEscritório[],ROW()-ROW(VariaçõesDeEscritório[[#Headers],[Set]]),1),INDEX(PlanoDeEscritório[],,1),0),MATCH(VariaçõesDeEscritório[[#Headers],[Set]],RealEscritório[#Headers],0)) -> 40.00 € | L14: =INDEX(PlanoDeEscritório[],MATCH(INDEX(VariaçõesDeEscritório[],ROW()-ROW(VariaçõesDeEscritório[[#Headers],[Out]]),1),INDEX(PlanoDeEscritório[],,1),0),MATCH(VariaçõesDeEscritório[[#Headers],[Out]],PlanoDeEscritório[#Headers],0))-INDEX(RealEscritório[],MATCH(INDEX(VariaçõesDeEscritório[],ROW()-ROW(VariaçõesDeEscritório[[#Headers],[Out]]),1),INDEX(PlanoDeEscritório[],,1),0),MATCH(VariaçõesDeEscritório[[#Headers],[Out]],RealEscritório[#Headers],0)) -> 40.00 € | M14: =INDEX(PlanoDeEscritório[],MATCH(INDEX(VariaçõesDeEscritório[],ROW()-ROW(VariaçõesDeEscritório[[#Headers],[Nov]]),1),INDEX(PlanoDeEscritório[],,1),0),MATCH(VariaçõesDeEscritório[[#Headers],[Nov]],PlanoDeEscritório[#Headers],0))-INDEX(RealEscritório[],MATCH(INDEX(VariaçõesDeEscritório[],ROW()-ROW(VariaçõesDeEscritório[[#Headers],[Nov]]),1),INDEX(PlanoDeEscritório[],,1),0),MATCH(VariaçõesDeEscritório[[#Headers],[Nov]],RealEscritório[#Headers],0)) -> 40.00 € | N14: =INDEX(PlanoDeEscritório[],MATCH(INDEX(VariaçõesDeEscritório[],ROW()-ROW(VariaçõesDeEscritório[[#Headers],[Dez]]),1),INDEX(PlanoDeEscritório[],,1),0),MATCH(VariaçõesDeEscritório[[#Headers],[Dez]],PlanoDeEscritório[#Headers],0))-INDEX(RealEscritório[],MATCH(INDEX(VariaçõesDeEscritório[],ROW()-ROW(VariaçõesDeEscritório[[#Headers],[Dez]]),1),INDEX(PlanoDeEscritório[],,1),0),MATCH(VariaçõesDeEscritório[[#Headers],[Dez]],RealEscritório[#Headers],0)) -> 40.00 € | O14: =SUM(VariaçõesDeEscritório[[#This Row],[Jan]:[Dez]]) -> 272.00 €
B15: Telefone | C15: =INDEX(PlanoDeEscritório[],MATCH(INDEX(VariaçõesDeEscritório[],ROW()-ROW(VariaçõesDeEscritório[[#Headers],[Jan]]),1),INDEX(PlanoDeEscritório[],,1),0),MATCH(VariaçõesDeEscritório[[#Headers],[Jan]],PlanoDeEscritório[#Headers],0))-INDEX(RealEscritório[],MATCH(INDEX(VariaçõesDeEscritório[],ROW()-ROW(VariaçõesDeEscritório[[#Headers],[Jan]]),1),INDEX(PlanoDeEscritório[],,1),0),MATCH(VariaçõesDeEscritório[[#Headers],[Jan]],RealEscritório[#Headers],0)) -> 26.00 € | D15: =INDEX(PlanoDeEscritório[],MATCH(INDEX(VariaçõesDeEscritório[],ROW()-ROW(VariaçõesDeEscritório[[#Headers],[Fev]]),1),INDEX(PlanoDeEscritório[],,1),0),MATCH(VariaçõesDeEscritório[[#Headers],[Fev]],PlanoDeEscritório[#Headers],0))-INDEX(RealEscritório[],MATCH(INDEX(VariaçõesDeEscritório[],ROW()-ROW(VariaçõesDeEscritório[[#Headers],[Fev]]),1),INDEX(PlanoDeEscritório[],,1),0),MATCH(VariaçõesDeEscritório[[#Headers],[Fev]],RealEscritório[#Headers],0)) -> 15.00 € | E15: =INDEX(PlanoDeEscritório[],MATCH(INDEX(VariaçõesDeEscritório[],ROW()-ROW(VariaçõesDeEscritório[[#Headers],[Mar]]),1),INDEX(PlanoDeEscritório[],,1),0),MATCH(VariaçõesDeEscritório[[#Headers],[Mar]],PlanoDeEscritório[#Headers],0))-INDEX(RealEscritório[],MATCH(INDEX(VariaçõesDeEscritório[],ROW()-ROW(VariaçõesDeEscritório[[#Headers],[Mar]]),1),INDEX(PlanoDeEscritório[],,1),0),MATCH(VariaçõesDeEscritório[[#Headers],[Mar]],RealEscritório[#Headers],0)) -> -15.00 € | F15: =INDEX(PlanoDeEscritório[],MATCH(INDEX(VariaçõesDeEscritório[],ROW()-ROW(VariaçõesDeEscritório[[#Headers],[Abr]]),1),INDEX(PlanoDeEscritório[],,1),0),MATCH(VariaçõesDeEscritório[[#Headers],[Abr]],PlanoDeEscritório[#Headers],0))-INDEX(RealEscritório[],MATCH(INDEX(VariaçõesDeEscritório[],ROW()-ROW(VariaçõesDeEscritório[[#Headers],[Abr]]),1),INDEX(PlanoDeEscritório[],,1),0),MATCH(VariaçõesDeEscritório[[#Headers],[Abr]],RealEscritório[#Headers],0)) -> 5.00 € | G15: =INDEX(PlanoDeEscritório[],MATCH(INDEX(VariaçõesDeEscritório[],ROW()-ROW(VariaçõesDeEscritório[[#Headers],[Mai]]),1),INDEX(PlanoDeEscritório[],,1),0),MATCH(VariaçõesDeEscritório[[#Headers],[Mai]],PlanoDeEscritório[#Headers],0))-INDEX(RealEscritório[],MATCH(INDEX(VariaçõesDeEscritório[],ROW()-ROW(VariaçõesDeEscritório[[#Headers],[Mai]]),1),INDEX(PlanoDeEscritório[],,1),0),MATCH(VariaçõesDeEscritório[[#Headers],[Mai]],RealEscritório[#Headers],0)) -> 5.00 € | H15: =INDEX(PlanoDeEscritório[],MATCH(INDEX(VariaçõesDeEscritório[],ROW()-ROW(VariaçõesDeEscritório[[#Headers],[Jun]]),1),INDEX(PlanoDeEscritório[],,1),0),MATCH(VariaçõesDeEscritório[[#Headers],[Jun]],PlanoDeEscritório[#Headers],0))-INDEX(RealEscritório[],MATCH(INDEX(VariaçõesDeEscritório[],ROW()-ROW(VariaçõesDeEscritório[[#Headers],[Jun]]),1),INDEX(PlanoDeEscritório[],,1),0),MATCH(VariaçõesDeEscritório[[#Headers],[Jun]],RealEscritório[#Headers],0)) -> 30.00 € | I15: =INDEX(PlanoDeEscritório[],MATCH(INDEX(VariaçõesDeEscritório[],ROW()-ROW(VariaçõesDeEscritório[[#Headers],[Jul]]),1),INDEX(PlanoDeEscritório[],,1),0),MATCH(VariaçõesDeEscritório[[#Headers],[Jul]],PlanoDeEscritório[#Headers],0))-INDEX(RealEscritório[],MATCH(INDEX(VariaçõesDeEscritório[],ROW()-ROW(VariaçõesDeEscritório[[#Headers],[Jul]]),1),INDEX(PlanoDeEscritório[],,1),0),MATCH(VariaçõesDeEscritório[[#Headers],[Jul]],RealEscritório[#Headers],0)) -> 250.00 € | J15: =INDEX(PlanoDeEscritório[],MATCH(INDEX(VariaçõesDeEscritório[],ROW()-ROW(VariaçõesDeEscritório[[#Headers],[Ago]]),1),INDEX(PlanoDeEscritório[],,1),0),MATCH(VariaçõesDeEscritório[[#Headers],[Ago]],PlanoDeEscritório[#Headers],0))-INDEX(RealEscritório[],MATCH(INDEX(VariaçõesDeEscritório[],ROW()-ROW(VariaçõesDeEscritório[[#Headers],[Ago]]),1),INDEX(PlanoDeEscritório[],,1),0),MATCH(VariaçõesDeEscritório[[#Headers],[Ago]],RealEscritório[#Headers],0)) -> 250.00 € | K15: =INDEX(PlanoDeEscritório[],MATCH(INDEX(VariaçõesDeEscritório[],ROW()-ROW(VariaçõesDeEscritório[[#Headers],[Set]]),1),INDEX(PlanoDeEscritório[],,1),0),MATCH(VariaçõesDeEscritório[[#Headers],[Set]],PlanoDeEscritório[#Headers],0))-INDEX(RealEscritório[],MATCH(INDEX(VariaçõesDeEscritório[],ROW()-ROW(VariaçõesDeEscritório[[#Headers],[Set]]),1),INDEX(PlanoDeEscritório[],,1),0),MATCH(VariaçõesDeEscritório[[#Headers],[Set]],RealEscritório[#Headers],0)) -> 250.00 € | L15: =INDEX(PlanoDeEscritório[],MATCH(INDEX(VariaçõesDeEscritório[],ROW()-ROW(VariaçõesDeEscritório[[#Headers],[Out]]),1),INDEX(PlanoDeEscritório[],,1),0),MATCH(VariaçõesDeEscritório[[#Headers],[Out]],PlanoDeEscritório[#Headers],0))-INDEX(RealEscritório[],MATCH(INDEX(VariaçõesDeEscritório[],ROW()-ROW(VariaçõesDeEscritório[[#Headers],[Out]]),1),INDEX(PlanoDeEscritório[],,1),0),MATCH(VariaçõesDeEscritório[[#Headers],[Out]],RealEscritório[#Headers],0)) -> 250.00 € | M15: =INDEX(PlanoDeEscritório[],MATCH(INDEX(VariaçõesDeEscritório[],ROW()-ROW(VariaçõesDeEscritório[[#Headers],[Nov]]),1),INDEX(PlanoDeEscritório[],,1),0),MATCH(VariaçõesDeEscritório[[#Headers],[Nov]],PlanoDeEscritório[#Headers],0))-INDEX(RealEscritório[],MATCH(INDEX(VariaçõesDeEscritório[],ROW()-ROW(VariaçõesDeEscritório[[#Headers],[Nov]]),1),INDEX(PlanoDeEscritório[],,1),0),MATCH(VariaçõesDeEscritório[[#Headers],[Nov]],RealEscritório[#Headers],0)) -> 250.00 € | N15: =INDEX(PlanoDeEscritório[],MATCH(INDEX(VariaçõesDeEscritório[],ROW()-ROW(VariaçõesDeEscritório[[#Headers],[Dez]]),1),INDEX(PlanoDeEscritório[],,1),0),MATCH(VariaçõesDeEscritório[[#Headers],[Dez]],PlanoDeEscritório[#Headers],0))-INDEX(RealEscritório[],MATCH(INDEX(VariaçõesDeEscritório[],ROW()-ROW(VariaçõesDeEscritório[[#Headers],[Dez]]),1),INDEX(PlanoDeEscritório[],,1),0),MATCH(VariaçõesDeEscritório[[#Headers],[Dez]],RealEscritório[#Headers],0)) -> 250.00 € | O15: =SUM(VariaçõesDeEscritório[[#This Row],[Jan]:[Dez]]) -> 1,566.00 €
B16: Internet | C16: =INDEX(PlanoDeEscritório[],MATCH(INDEX(VariaçõesDeEscritório[],ROW()-ROW(VariaçõesDeEscritório[[#Headers],[Jan]]),1),INDEX(PlanoDeEscritório[],,1),0),MATCH(VariaçõesDeEscritório[[#Headers],[Jan]],PlanoDeEscritório[#Headers],0))-INDEX(RealEscritório[],MATCH(INDEX(VariaçõesDeEscritório[],ROW()-ROW(VariaçõesDeEscritório[[#Headers],[Jan]]),1),INDEX(PlanoDeEscritório[],,1),0),MATCH(VariaçõesDeEscritório[[#Headers],[Jan]],RealEscritório[#Headers],0)) -> 0.00 € | D16: =INDEX(PlanoDeEscritório[],MATCH(INDEX(VariaçõesDeEscritório[],ROW()-ROW(VariaçõesDeEscritório[[#Headers],[Fev]]),1),INDEX(PlanoDeEscritório[],,1),0),MATCH(VariaçõesDeEscritório[[#Headers],[Fev]],PlanoDeEscritório[#Headers],0))-INDEX(RealEscritório[],MATCH(INDEX(VariaçõesDeEscritório[],ROW()-ROW(VariaçõesDeEscritório[[#Headers],[Fev]]),1),INDEX(PlanoDeEscritório[],,1),0),MATCH(VariaçõesDeEscritório[[#Headers],[Fev]],RealEscritório[#Headers],0)) -> 0.00 € | E16: =INDEX(PlanoDeEscritório[],MATCH(INDEX(VariaçõesDeEscritório[],ROW()-ROW(VariaçõesDeEscritório[[#Headers],[Mar]]),1),INDEX(PlanoDeEscritório[],,1),0),MATCH(VariaçõesDeEscritório[[#Headers],[Mar]],PlanoDeEscritório[#Headers],0))-INDEX(RealEscritório[],MATCH(INDEX(VariaçõesDeEscritório[],ROW()-ROW(VariaçõesDeEscritório[[#Headers],[Mar]]),1),INDEX(PlanoDeEscritório[],,1),0),MATCH(VariaçõesDeEscritório[[#Headers],[Mar]],RealEscritório[#Headers],0)) -> 0.00 € | F16: =INDEX(PlanoDeEscritório[],MATCH(INDEX(VariaçõesDeEscritório[],ROW()-ROW(VariaçõesDeEscritório[[#Headers],[Abr]]),1),INDEX(PlanoDeEscritório[],,1),0),MATCH(VariaçõesDeEscritório[[#Headers],[Abr]],PlanoDeEscritório[#Headers],0))-INDEX(RealEscritório[],MATCH(INDEX(VariaçõesDeEscritório[],ROW()-ROW(VariaçõesDeEscritório[[#Headers],[Abr]]),1),INDEX(PlanoDeEscritório[],,1),0),MATCH(VariaçõesDeEscritório[[#Headers],[Abr]],RealEscritório[#Headers],0)) -> 0.00 € | G16: =INDEX(PlanoDeEscritório[],MATCH(INDEX(VariaçõesDeEscritório[],ROW()-ROW(VariaçõesDeEscritório[[#Headers],[Mai]]),1),INDEX(PlanoDeEscritório[],,1),0),MATCH(VariaçõesDeEscritório[[#Headers],[Mai]],PlanoDeEscritório[#Headers],0))-INDEX(RealEscritório[],MATCH(INDEX(VariaçõesDeEscritório[],ROW()-ROW(VariaçõesDeEscritório[[#Headers],[Mai]]),1),INDEX(PlanoDeEscritório[],,1),0),MATCH(VariaçõesDeEscritório[[#Headers],[Mai]],RealEscritório[#Headers],0)) -> 0.00 € | H16: =INDEX(PlanoDeEscritório[],MATCH(INDEX(VariaçõesDeEscritório[],ROW()-ROW(VariaçõesDeEscritório[[#Headers],[Jun]]),1),INDEX(PlanoDeEscritório[],,1),0),MATCH(VariaçõesDeEscritório[[#Headers],[Jun]],PlanoDeEscritório[#Headers],0))-INDEX(RealEscritório[],MATCH(INDEX(VariaçõesDeEscritório[],ROW()-ROW(VariaçõesDeEscritório[[#Headers],[Jun]]),1),INDEX(PlanoDeEscritório[],,1),0),MATCH(VariaçõesDeEscritório[[#Headers],[Jun]],RealEscritório[#Headers],0)) -> 0.00 € | I16: =INDEX(PlanoDeEscritório[],MATCH(INDEX(VariaçõesDeEscritório[],ROW()-ROW(VariaçõesDeEscritório[[#Headers],[Jul]]),1),INDEX(PlanoDeEscritório[],,1),0),MATCH(VariaçõesDeEscritório[[#Headers],[Jul]],PlanoDeEscritório[#Headers],0))-INDEX(RealEscritório[],MATCH(INDEX(VariaçõesDeEscritório[],ROW()-ROW(VariaçõesDeEscritório[[#Headers],[Jul]]),1),INDEX(PlanoDeEscritório[],,1),0),MATCH(VariaçõesDeEscritório[[#Headers],[Jul]],RealEscritório[#Headers],0)) -> 180.00 € | J16: =INDEX(PlanoDeEscritório[],MATCH(INDEX(VariaçõesDeEscritório[],ROW()-ROW(VariaçõesDeEscritório[[#Headers],[Ago]]),1),INDEX(PlanoDeEscritório[],,1),0),MATCH(VariaçõesDeEscritório[[#Headers],[Ago]],PlanoDeEscritório[#Headers],0))-INDEX(RealEscritório[],MATCH(INDEX(VariaçõesDeEscritório[],ROW()-ROW(VariaçõesDeEscritório[[#Headers],[Ago]]),1),INDEX(PlanoDeEscritório[],,1),0),MATCH(VariaçõesDeEscritório[[#Headers],[Ago]],RealEscritório[#Headers],0)) -> 180.00 € | K16: =INDEX(PlanoDeEscritório[],MATCH(INDEX(VariaçõesDeEscritório[],ROW()-ROW(VariaçõesDeEscritório[[#Headers],[Set]]),1),INDEX(PlanoDeEscritório[],,1),0),MATCH(VariaçõesDeEscritório[[#Headers],[Set]],PlanoDeEscritório[#Headers],0))-INDEX(RealEscritório[],MATCH(INDEX(VariaçõesDeEscritório[],ROW()-ROW(VariaçõesDeEscritório[[#Headers],[Set]]),1),INDEX(PlanoDeEscritório[],,1),0),MATCH(VariaçõesDeEscritório[[#Headers],[Set]],RealEscritório[#Headers],0)) -> 180.00 € | L16: =INDEX(PlanoDeEscritório[],MATCH(INDEX(VariaçõesDeEscritório[],ROW()-ROW(VariaçõesDeEscritório[[#Headers],[Out]]),1),INDEX(PlanoDeEscritório[],,1),0),MATCH(VariaçõesDeEscritório[[#Headers],[Out]],PlanoDeEscritório[#Headers],0))-INDEX(RealEscritório[],MATCH(INDEX(VariaçõesDeEscritório[],ROW()-ROW(VariaçõesDeEscritório[[#Headers],[Out]]),1),INDEX(PlanoDeEscritório[],,1),0),MATCH(VariaçõesDeEscritório[[#Headers],[Out]],RealEscritório[#Headers],0)) -> 180.00 € | M16: =INDEX(PlanoDeEscritório[],MATCH(INDEX(VariaçõesDeEscritório[],ROW()-ROW(VariaçõesDeEscritório[[#Headers],[Nov]]),1),INDEX(PlanoDeEscritório[],,1),0),MATCH(VariaçõesDeEscritório[[#Headers],[Nov]],PlanoDeEscritório[#Headers],0))-INDEX(RealEscritório[],MATCH(INDEX(VariaçõesDeEscritório[],ROW()-ROW(VariaçõesDeEscritório[[#Headers],[Nov]]),1),INDEX(PlanoDeEscritório[],,1),0),MATCH(VariaçõesDeEscritório[[#Headers],[Nov]],RealEscritório[#Headers],0)) -> 180.00 € | N16: =INDEX(PlanoDeEscritório[],MATCH(INDEX(VariaçõesDeEscritório[],ROW()-ROW(VariaçõesDeEscritório[[#Headers],[Dez]]),1),INDEX(PlanoDeEscritório[],,1),0),MATCH(VariaçõesDeEscritório[[#Headers],[Dez]],PlanoDeEscritório[#Headers],0))-INDEX(RealEscritório[],MATCH(INDEX(VariaçõesDeEscritório[],ROW()-ROW(VariaçõesDeEscritório[[#Headers],[Dez]]),1),INDEX(PlanoDeEscritório[],,1),0),MATCH(VariaçõesDeEscritório[[#Headers],[Dez]],RealEscritório[#Headers],0)) -> 180.00 € | O16: =SUM(VariaçõesDeEscritório[[#This Row],[Jan]:[Dez]]) -> 1,080.00 €
B17: Material de escritório | C17: =INDEX(PlanoDeEscritório[],MATCH(INDEX(VariaçõesDeEscritório[],ROW()-ROW(VariaçõesDeEscritório[[#Headers],[Jan]]),1),INDEX(PlanoDeEscritório[],,1),0),MATCH(VariaçõesDeEscritório[[#Headers],[Jan]],PlanoDeEscritório[#Headers],0))-INDEX(RealEscritório[],MATCH(INDEX(VariaçõesDeEscritório[],ROW()-ROW(VariaçõesDeEscritório[[#Headers],[Jan]]),1),INDEX(PlanoDeEscritório[],,1),0),MATCH(VariaçõesDeEscritório[[#Headers],[Jan]],RealEscritório[#Headers],0)) -> -56.00 € | D17: =INDEX(PlanoDeEscritório[],MATCH(INDEX(VariaçõesDeEscritório[],ROW()-ROW(VariaçõesDeEscritório[[#Headers],[Fev]]),1),INDEX(PlanoDeEscritório[],,1),0),MATCH(VariaçõesDeEscritório[[#Headers],[Fev]],PlanoDeEscritório[#Headers],0))-INDEX(RealEscritório[],MATCH(INDEX(VariaçõesDeEscritório[],ROW()-ROW(VariaçõesDeEscritório[[#Headers],[Fev]]),1),INDEX(PlanoDeEscritório[],,1),0),MATCH(VariaçõesDeEscritório[[#Headers],[Fev]],RealEscritório[#Headers],0)) -> 58.00 € | E17: =INDEX(PlanoDeEscritório[],MATCH(INDEX(VariaçõesDeEscritório[],ROW()-ROW(VariaçõesDeEscritório[[#Headers],[Mar]]),1),INDEX(PlanoDeEscritório[],,1),0),MATCH(VariaçõesDeEscritório[[#Headers],[Mar]],PlanoDeEscritório[#Headers],0))-INDEX(RealEscritório[],MATCH(INDEX(VariaçõesDeEscritório[],ROW()-ROW(VariaçõesDeEscritório[[#Headers],[Mar]]),1),INDEX(PlanoDeEscritório[],,1),0),MATCH(VariaçõesDeEscritório[[#Headers],[Mar]],RealEscritório[#Headers],0)) -> 40.00 € | F17: =INDEX(PlanoDeEscritório[],MATCH(INDEX(VariaçõesDeEscritório[],ROW()-ROW(VariaçõesDeEscritório[[#Headers],[Abr]]),1),INDEX(PlanoDeEscritório[],,1),0),MATCH(VariaçõesDeEscritório[[#Headers],[Abr]],PlanoDeEscritório[#Headers],0))-INDEX(RealEscritório[],MATCH(INDEX(VariaçõesDeEscritório[],ROW()-ROW(VariaçõesDeEscritório[[#Headers],[Abr]]),1),INDEX(PlanoDeEscritório[],,1),0),MATCH(VariaçõesDeEscritório[[#Headers],[Abr]],RealEscritório[#Headers],0)) -> -21.00 € | G17: =INDEX(PlanoDeEscritório[],MATCH(INDEX(VariaçõesDeEscritório[],ROW()-ROW(VariaçõesDeEscritório[[#Headers],[Mai]]),1),INDEX(PlanoDeEscritório[],,1),0),MATCH(VariaçõesDeEscritório[[#Headers],[Mai]],PlanoDeEscritório[#Headers],0))-INDEX(RealEscritório[],MATCH(INDEX(VariaçõesDeEscritório[],ROW()-ROW(VariaçõesDeEscritório[[#Headers],[Mai]]),1),INDEX(PlanoDeEscritório[],,1),0),MATCH(VariaçõesDeEscritório[[#Headers],[Mai]],RealEscritório[#Headers],0)) -> -56.00 € | H17: =INDEX(PlanoDeEscritório[],MATCH(INDEX(VariaçõesDeEscritório[],ROW()-ROW(VariaçõesDeEscritório[[#Headers],[Jun]]),1),INDEX(PlanoDeEscritório[],,1),0),MATCH(VariaçõesDeEscritório[[#Headers],[Jun]],PlanoDeEscritório[#Headers],0))-INDEX(RealEscritório[],MATCH(INDEX(VariaçõesDeEscritório[],ROW()-ROW(VariaçõesDeEscritório[[#Headers],[Jun]]),1),INDEX(PlanoDeEscritório[],,1),0),MATCH(VariaçõesDeEscritório[[#Headers],[Jun]],RealEscritório[#Headers],0)) -> -40.00 € | I17: =INDEX(PlanoDeEscritório[],MATCH(INDEX(VariaçõesDeEscritório[],ROW()-ROW(VariaçõesDeEscritório[[#Headers],[Jul]]),1),INDEX(PlanoDeEscritório[],,1),0),MATCH(VariaçõesDeEscritório[[#Headers],[Jul]],PlanoDeEscritório[#Headers],0))-INDEX(RealEscritório[],MATCH(INDEX(VariaçõesDeEscritório[],ROW()-ROW(VariaçõesDeEscritório[[#Headers],[Jul]]),1),INDEX(PlanoDeEscritório[],,1),0),MATCH(VariaçõesDeEscritório[[#Headers],[Jul]],RealEscritório[#Headers],0)) -> 200.00 € | J17: =INDEX(PlanoDeEscritório[],MATCH(INDEX(VariaçõesDeEscritório[],ROW()-ROW(VariaçõesDeEscritório[[#Headers],[Ago]]),1),INDEX(PlanoDeEscritório[],,1),0),MATCH(VariaçõesDeEscritório[[#Headers],[Ago]],PlanoDeEscritório[#Headers],0))-INDEX(RealEscritório[],MATCH(INDEX(VariaçõesDeEscritório[],ROW()-ROW(VariaçõesDeEscritório[[#Headers],[Ago]]),1),INDEX(PlanoDeEscritório[],,1),0),MATCH(VariaçõesDeEscritório[[#Headers],[Ago]],RealEscritório[#Headers],0)) -> 200.00 € | K17: =INDEX(PlanoDeEscritório[],MATCH(INDEX(VariaçõesDeEscritório[],ROW()-ROW(VariaçõesDeEscritório[[#Headers],[Set]]),1),INDEX(PlanoDeEscritório[],,1),0),MATCH(VariaçõesDeEscritório[[#Headers],[Set]],PlanoDeEscritório[#Headers],0))-INDEX(RealEscritório[],MATCH(INDEX(VariaçõesDeEscritório[],ROW()-ROW(VariaçõesDeEscritório[[#Headers],[Set]]),1),INDEX(PlanoDeEscritório[],,1),0),MATCH(VariaçõesDeEscritório[[#Headers],[Set]],RealEscritório[#Headers],0)) -> 200.00 € | L17: =INDEX(PlanoDeEscritório[],MATCH(INDEX(VariaçõesDeEscritório[],ROW()-ROW(VariaçõesDeEscritório[[#Headers],[Out]]),1),INDEX(PlanoDeEscritório[],,1),0),MATCH(VariaçõesDeEscritório[[#Headers],[Out]],PlanoDeEscritório[#Headers],0))-INDEX(RealEscritório[],MATCH(INDEX(VariaçõesDeEscritório[],ROW()-ROW(VariaçõesDeEscritório[[#Headers],[Out]]),1),INDEX(PlanoDeEscritório[],,1),0),MATCH(VariaçõesDeEscritório[[#Headers],[Out]],RealEscritório[#Headers],0)) -> 200.00 € | M17: =INDEX(PlanoDeEscritório[],MATCH(INDEX(VariaçõesDeEscritório[],ROW()-ROW(VariaçõesDeEscritório[[#Headers],[Nov]]),1),INDEX(PlanoDeEscritório[],,1),0),MATCH(VariaçõesDeEscritório[[#Headers],[Nov]],PlanoDeEscritório[#Headers],0))-INDEX(RealEscritório[],MATCH(INDEX(VariaçõesDeEscritório[],ROW()-ROW(VariaçõesDeEscritório[[#Headers],[Nov]]),1),INDEX(PlanoDeEscritório[],,1),0),MATCH(VariaçõesDeEscritório[[#Headers],[Nov]],RealEscritório[#Headers],0)) -> 200.00 € | N17: =INDEX(PlanoDeEscritório[],MATCH(INDEX(VariaçõesDeEscritório[],ROW()-ROW(VariaçõesDeEscritório[[#Headers],[Dez]]),1),INDEX(PlanoDeEscritório[],,1),0),MATCH(VariaçõesDeEscritório[[#Headers],[Dez]],PlanoDeEscritório[#Headers],0))-INDEX(RealEscritório[],MATCH(INDEX(VariaçõesDeEscritório[],ROW()-ROW(VariaçõesDeEscritório[[#Headers],[Dez]]),1),INDEX(PlanoDeEscritório[],,1),0),MATCH(VariaçõesDeEscritório[[#Headers],[Dez]],RealEscritório[#Headers],0)) -> 200.00 € | O17: =SUM(VariaçõesDeEscritório[[#This Row],[Jan]:[Dez]]) -> 1,125.00 €
B18: Segurança | C18: =INDEX(PlanoDeEscritório[],MATCH(INDEX(VariaçõesDeEscritório[],ROW()-ROW(VariaçõesDeEscritório[[#Headers],[Jan]]),1),INDEX(PlanoDeEscritório[],,1),0),MATCH(VariaçõesDeEscritório[[#Headers],[Jan]],PlanoDeEscritório[#Headers],0))-INDEX(RealEscritório[],MATCH(INDEX(VariaçõesDeEscritório[],ROW()-ROW(VariaçõesDeEscritório[[#Headers],[Jan]]),1),INDEX(PlanoDeEscritório[],,1),0),MATCH(VariaçõesDeEscritório[[#Headers],[Jan]],RealEscritório[#Headers],0)) -> 0.00 € | D18: =INDEX(PlanoDeEscritório[],MATCH(INDEX(VariaçõesDeEscritório[],ROW()-ROW(VariaçõesDeEscritório[[#Headers],[Fev]]),1),INDEX(PlanoDeEscritório[],,1),0),MATCH(VariaçõesDeEscritório[[#Headers],[Fev]],PlanoDeEscritório[#Headers],0))-INDEX(RealEscritório[],MATCH(INDEX(VariaçõesDeEscritório[],ROW()-ROW(VariaçõesDeEscritório[[#Headers],[Fev]]),1),INDEX(PlanoDeEscritório[],,1),0),MATCH(VariaçõesDeEscritório[[#Headers],[Fev]],RealEscritório[#Headers],0)) -> 0.00 € | E18: =INDEX(PlanoDeEscritório[],MATCH(INDEX(VariaçõesDeEscritório[],ROW()-ROW(VariaçõesDeEscritório[[#Headers],[Mar]]),1),INDEX(PlanoDeEscritório[],,1),0),MATCH(VariaçõesDeEscritório[[#Headers],[Mar]],PlanoDeEscritório[#Headers],0))-INDEX(RealEscritório[],MATCH(INDEX(VariaçõesDeEscritório[],ROW()-ROW(VariaçõesDeEscritório[[#Headers],[Mar]]),1),INDEX(PlanoDeEscritório[],,1),0),MATCH(VariaçõesDeEscritório[[#Headers],[Mar]],RealEscritório[#Headers],0)) -> 0.00 € | F18: =INDEX(PlanoDeEscritório[],MATCH(INDEX(VariaçõesDeEscritório[],ROW()-ROW(VariaçõesDeEscritório[[#Headers],[Abr]]),1),INDEX(PlanoDeEscritório[],,1),0),MATCH(VariaçõesDeEscritório[[#Headers],[Abr]],PlanoDeEscritório[#Headers],0))-INDEX(RealEscritório[],MATCH(INDEX(VariaçõesDeEscritório[],ROW()-ROW(VariaçõesDeEscritório[[#Headers],[Abr]]),1),INDEX(PlanoDeEscritório[],,1),0),MATCH(VariaçõesDeEscritório[[#Headers],[Abr]],RealEscritório[#Headers],0)) -> 0.00 € | G18: =INDEX(PlanoDeEscritório[],MATCH(INDEX(VariaçõesDeEscritório[],ROW()-ROW(VariaçõesDeEscritório[[#Headers],[Mai]]),1),INDEX(PlanoDeEscritório[],,1),0),MATCH(VariaçõesDeEscritório[[#Headers],[Mai]],PlanoDeEscritório[#Headers],0))-INDEX(RealEscritório[],MATCH(INDEX(VariaçõesDeEscritório[],ROW()-ROW(VariaçõesDeEscritório[[#Headers],[Mai]]),1),INDEX(PlanoDeEscritório[],,1),0),MATCH(VariaçõesDeEscritório[[#Headers],[Mai]],RealEscritório[#Headers],0)) -> 0.00 € | H18: =INDEX(PlanoDeEscritório[],MATCH(INDEX(VariaçõesDeEscritório[],ROW()-ROW(VariaçõesDeEscritório[[#Headers],[Jun]]),1),INDEX(PlanoDeEscritório[],,1),0),MATCH(VariaçõesDeEscritório[[#Headers],[Jun]],PlanoDeEscritório[#Headers],0))-INDEX(RealEscritório[],MATCH(INDEX(VariaçõesDeEscritório[],ROW()-ROW(VariaçõesDeEscritório[[#Headers],[Jun]]),1),INDEX(PlanoDeEscritório[],,1),0),MATCH(VariaçõesDeEscritório[[#Headers],[Jun]],RealEscritório[#Headers],0)) -> 0.00 € | I18: =INDEX(PlanoDeEscritório[],MATCH(INDEX(VariaçõesDeEscritório[],ROW()-ROW(VariaçõesDeEscritório[[#Headers],[Jul]]),1),INDEX(PlanoDeEscritório[],,1),0),MATCH(VariaçõesDeEscritório[[#Headers],[Jul]],PlanoDeEscritório[#Headers],0))-INDEX(RealEscritório[],MATCH(INDEX(VariaçõesDeEscritório[],ROW()-ROW(VariaçõesDeEscritório[[#Headers],[Jul]]),1),INDEX(PlanoDeEscritório[],,1),0),MATCH(VariaçõesDeEscritório[[#Headers],[Jul]],RealEscritório[#Headers],0)) -> 600.00 € | J18: =INDEX(PlanoDeEscritório[],MATCH(INDEX(VariaçõesDeEscritório[],ROW()-ROW(VariaçõesDeEscritório[[#Headers],[Ago]]),1),INDEX(PlanoDeEscritório[],,1),0),MATCH(VariaçõesDeEscritório[[#Headers],[Ago]],PlanoDeEscritório[#Headers],0))-INDEX(RealEscritório[],MATCH(INDEX(VariaçõesDeEscritório[],ROW()-ROW(VariaçõesDeEscritório[[#Headers],[Ago]]),1),INDEX(PlanoDeEscritório[],,1),0),MATCH(VariaçõesDeEscritório[[#Headers],[Ago]],RealEscritório[#Headers],0)) -> 600.00 € | K18: =INDEX(PlanoDeEscritório[],MATCH(INDEX(VariaçõesDeEscritório[],ROW()-ROW(VariaçõesDeEscritório[[#Headers],[Set]]),1),INDEX(PlanoDeEscritório[],,1),0),MATCH(VariaçõesDeEscritório[[#Headers],[Set]],PlanoDeEscritório[#Headers],0))-INDEX(RealEscritório[],MATCH(INDEX(VariaçõesDeEscritório[],ROW()-ROW(VariaçõesDeEscritório[[#Headers],[Set]]),1),INDEX(PlanoDeEscritório[],,1),0),MATCH(VariaçõesDeEscritório[[#Headers],[Set]],RealEscritório[#Headers],0)) -> 600.00 € | L18: =INDEX(PlanoDeEscritório[],MATCH(INDEX(VariaçõesDeEscritório[],ROW()-ROW(VariaçõesDeEscritório[[#Headers],[Out]]),1),INDEX(PlanoDeEscritório[],,1),0),MATCH(VariaçõesDeEscritório[[#Headers],[Out]],PlanoDeEscritório[#Headers],0))-INDEX(RealEscritório[],MATCH(INDEX(VariaçõesDeEscritório[],ROW()-ROW(VariaçõesDeEscritório[[#Headers],[Out]]),1),INDEX(PlanoDeEscritório[],,1),0),MATCH(VariaçõesDeEscritório[[#Headers],[Out]],RealEscritório[#Headers],0)) -> 600.00 € | M18: =INDEX(PlanoDeEscritório[],MATCH(INDEX(VariaçõesDeEscritório[],ROW()-ROW(VariaçõesDeEscritório[[#Headers],[Nov]]),1),INDEX(PlanoDeEscritório[],,1),0),MATCH(VariaçõesDeEscritório[[#Headers],[Nov]],PlanoDeEscritório[#Headers],0))-INDEX(RealEscritório[],MATCH(INDEX(VariaçõesDeEscritório[],ROW()-ROW(VariaçõesDeEscritório[[#Headers],[Nov]]),1),INDEX(PlanoDeEscritório[],,1),0),MATCH(VariaçõesDeEscritório[[#Headers],[Nov]],RealEscritório[#Headers],0)) -> 600.00 € | N18: =INDEX(PlanoDeEscritório[],MATCH(INDEX(VariaçõesDeEscritório[],ROW()-ROW(VariaçõesDeEscritório[[#Headers],[Dez]]),1),INDEX(PlanoDeEscritório[],,1),0),MATCH(VariaçõesDeEscritório[[#Headers],[Dez]],PlanoDeEscritório[#Headers],0))-INDEX(RealEscritório[],MATCH(INDEX(VariaçõesDeEscritório[],ROW()-ROW(VariaçõesDeEscritório[[#Headers],[Dez]]),1),INDEX(PlanoDeEscritório[],,1),0),MATCH(VariaçõesDeEscritório[[#Headers],[Dez]],RealEscritório[#Headers],0)) -> 600.00 € | O18: =SUM(VariaçõesDeEscritório[[#This Row],[Jan]:[Dez]]) -> 3,600.00 €
B19: Subtotal | C19: =SUBTOTAL(109,VariaçõesDeEscritório[Jan]) -> -17.00 € | D19: =SUBTOTAL(109,VariaçõesDeEscritório[Fev]) -> 72.00 € | E19: =SUBTOTAL(109,VariaçõesDeEscritório[Mar]) -> 78.00 € | F19: =SUBTOTAL(109,VariaçõesDeEscritório[Abr]) -> -141.00 € | G19: =SUBTOTAL(109,VariaçõesDeEscritório[Mai]) -> -38.00 € | H19: =SUBTOTAL(109,VariaçõesDeEscritório[Jun]) -> 16.00 € | I19: =SUBTOTAL(109,VariaçõesDeEscritório[Jul]) -> 11,470.00 € | J19: =SUBTOTAL(109,VariaçõesDeEscritório[Ago]) -> 11,470.00 € | K19: =SUBTOTAL(109,VariaçõesDeEscritório[Set]) -> 11,470.00 € | L19: =SUBTOTAL(109,VariaçõesDeEscritório[Out]) -> 11,470.00 € | M19: =SUBTOTAL(109,VariaçõesDeEscritório[Nov]) -> 11,770.00 € | N19: =SUBTOTAL(109,VariaçõesDeEscritório[Dez]) -> 11,770.00 € | O19: =SUBTOTAL(109,VariaçõesDeEscritório[ANO]) -> 69,390.00 €
A21: A Variação nos Custos de Marketing é calculada automaticamente na tabela Variações de Marketing a partir da célula à direita. A instrução seguinte está na célula A30. | B21: Custos de Marketing | C21: Jan | D21: Fev | E21: Mar | F21: Abr | G21: Mai | H21: Jun | I21: Jul | J21: Ago | K21: Set | L21: Out | M21: Nov | N21: Dez | O21: ANO
B22: Alojamento do site | C22: =INDEX(PlanoDeMarketing[],MATCH(INDEX(VariaçõesDeMarketing[],ROW()-ROW(VariaçõesDeMarketing[[#Headers],[Jan]]),1),INDEX(PlanoDeMarketing[],,1),0),MATCH(VariaçõesDeMarketing[[#Headers],[Jan]],PlanoDeMarketing[#Headers],0))-INDEX(RealMarketing[],MATCH(INDEX(VariaçõesDeMarketing[],ROW()-ROW(VariaçõesDeMarketing[[#Headers],[Jan]]),1),INDEX(PlanoDeMarketing[],,1),0),MATCH(VariaçõesDeMarketing[[#Headers],[Jan]],RealMarketing[#Headers],0)) -> 0.00 € | D22: =INDEX(PlanoDeMarketing[],MATCH(INDEX(VariaçõesDeMarketing[],ROW()-ROW(VariaçõesDeMarketing[[#Headers],[Fev]]),1),INDEX(PlanoDeMarketing[],,1),0),MATCH(VariaçõesDeMarketing[[#Headers],[Fev]],PlanoDeMarketing[#Headers],0))-INDEX(RealMarketing[],MATCH(INDEX(VariaçõesDeMarketing[],ROW()-ROW(VariaçõesDeMarketing[[#Headers],[Fev]]),1),INDEX(PlanoDeMarketing[],,1),0),MATCH(VariaçõesDeMarketing[[#Headers],[Fev]],RealMarketing[#Headers],0)) -> 0.00 € | E22: =INDEX(PlanoDeMarketing[],MATCH(INDEX(VariaçõesDeMarketing[],ROW()-ROW(VariaçõesDeMarketing[[#Headers],[Mar]]),1),INDEX(PlanoDeMarketing[],,1),0),MATCH(VariaçõesDeMarketing[[#Headers],[Mar]],PlanoDeMarketing[#Headers],0))-INDEX(RealMarketing[],MATCH(INDEX(VariaçõesDeMarketing[],ROW()-ROW(VariaçõesDeMarketing[[#Headers],[Mar]]),1),INDEX(PlanoDeMarketing[],,1),0),MATCH(VariaçõesDeMarketing[[#Headers],[Mar]],RealMarketing[#Headers],0)) -> 0.00 € | F22: =INDEX(PlanoDeMarketing[],MATCH(INDEX(VariaçõesDeMarketing[],ROW()-ROW(VariaçõesDeMarketing[[#Headers],[Abr]]),1),INDEX(PlanoDeMarketing[],,1),0),MATCH(VariaçõesDeMarketing[[#Headers],[Abr]],PlanoDeMarketing[#Headers],0))-INDEX(RealMarketing[],MATCH(INDEX(VariaçõesDeMarketing[],ROW()-ROW(VariaçõesDeMarketing[[#Headers],[Abr]]),1),INDEX(PlanoDeMarketing[],,1),0),MATCH(VariaçõesDeMarketing[[#Headers],[Abr]],RealMarketing[#Headers],0)) -> 0.00 € | G22: =INDEX(PlanoDeMarketing[],MATCH(INDEX(VariaçõesDeMarketing[],ROW()-ROW(VariaçõesDeMarketing[[#Headers],[Mai]]),1),INDEX(PlanoDeMarketing[],,1),0),MATCH(VariaçõesDeMarketing[[#Headers],[Mai]],PlanoDeMarketing[#Headers],0))-INDEX(RealMarketing[],MATCH(INDEX(VariaçõesDeMarketing[],ROW()-ROW(VariaçõesDeMarketing[[#Headers],[Mai]]),1),INDEX(PlanoDeMarketing[],,1),0),MATCH(VariaçõesDeMarketing[[#Headers],[Mai]],RealMarketing[#Headers],0)) -> 0.00 € | H22: =INDEX(PlanoDeMarketing[],MATCH(INDEX(VariaçõesDeMarketing[],ROW()-ROW(VariaçõesDeMarketing[[#Headers],[Jun]]),1),INDEX(PlanoDeMarketing[],,1),0),MATCH(VariaçõesDeMarketing[[#Headers],[Jun]],PlanoDeMarketing[#Headers],0))-INDEX(RealMarketing[],MATCH(INDEX(VariaçõesDeMarketing[],ROW()-ROW(VariaçõesDeMarketing[[#Headers],[Jun]]),1),INDEX(PlanoDeMarketing[],,1),0),MATCH(VariaçõesDeMarketing[[#Headers],[Jun]],RealMarketing[#Headers],0)) -> 0.00 € | I22: =INDEX(PlanoDeMarketing[],MATCH(INDEX(VariaçõesDeMarketing[],ROW()-ROW(VariaçõesDeMarketing[[#Headers],[Jul]]),1),INDEX(PlanoDeMarketing[],,1),0),MATCH(VariaçõesDeMarketing[[#Headers],[Jul]],PlanoDeMarketing[#Headers],0))-INDEX(RealMarketing[],MATCH(INDEX(VariaçõesDeMarketing[],ROW()-ROW(VariaçõesDeMarketing[[#Headers],[Jul]]),1),INDEX(PlanoDeMarketing[],,1),0),MATCH(VariaçõesDeMarketing[[#Headers],[Jul]],RealMarketing[#Headers],0)) -> 500.00 € | J22: =INDEX(PlanoDeMarketing[],MATCH(INDEX(VariaçõesDeMarketing[],ROW()-ROW(VariaçõesDeMarketing[[#Headers],[Ago]]),1),INDEX(PlanoDeMarketing[],,1),0),MATCH(VariaçõesDeMarketing[[#Headers],[Ago]],PlanoDeMarketing[#Headers],0))-INDEX(RealMarketing[],MATCH(INDEX(VariaçõesDeMarketing[],ROW()-ROW(VariaçõesDeMarketing[[#Headers],[Ago]]),1),INDEX(PlanoDeMarketing[],,1),0),MATCH(VariaçõesDeMarketing[[#Headers],[Ago]],RealMarketing[#Headers],0)) -> 500.00 € | K22: =INDEX(PlanoDeMarketing[],MATCH(INDEX(VariaçõesDeMarketing[],ROW()-ROW(VariaçõesDeMarketing[[#Headers],[Set]]),1),INDEX(PlanoDeMarketing[],,1),0),MATCH(VariaçõesDeMarketing[[#Headers],[Set]],PlanoDeMarketing[#Headers],0))-INDEX(RealMarketing[],MATCH(INDEX(VariaçõesDeMarketing[],ROW()-ROW(VariaçõesDeMarketing[[#Headers],[Set]]),1),INDEX(PlanoDeMarketing[],,1),0),MATCH(VariaçõesDeMarketing[[#Headers],[Set]],RealMarketing[#Headers],0)) -> 500.00 € | L22: =INDEX(PlanoDeMarketing[],MATCH(INDEX(VariaçõesDeMarketing[],ROW()-ROW(VariaçõesDeMarketing[[#Headers],[Out]]),1),INDEX(PlanoDeMarketing[],,1),0),MATCH(VariaçõesDeMarketing[[#Headers],[Out]],PlanoDeMarketing[#Headers],0))-INDEX(RealMarketing[],MATCH(INDEX(VariaçõesDeMarketing[],ROW()-ROW(VariaçõesDeMarketing[[#Headers],[Out]]),1),INDEX(PlanoDeMarketing[],,1),0),MATCH(VariaçõesDeMarketing[[#Headers],[Out]],RealMarketing[#Headers],0)) -> 500.00 € | M22: =INDEX(PlanoDeMarketing[],MATCH(INDEX(VariaçõesDeMarketing[],ROW()-ROW(VariaçõesDeMarketing[[#Headers],[Nov]]),1),INDEX(PlanoDeMarketing[],,1),0),MATCH(VariaçõesDeMarketing[[#Headers],[Nov]],PlanoDeMarketing[#Headers],0))-INDEX(RealMarketing[],MATCH(INDEX(VariaçõesDeMarketing[],ROW()-ROW(VariaçõesDeMarketing[[#Headers],[Nov]]),1),INDEX(PlanoDeMarketing[],,1),0),MATCH(VariaçõesDeMarketing[[#Headers],[Nov]],RealMarketing[#Headers],0)) -> 500.00 € | N22: =INDEX(PlanoDeMarketing[],MATCH(INDEX(VariaçõesDeMarketing[],ROW()-ROW(VariaçõesDeMarketing[[#Headers],[Dez]]),1),INDEX(PlanoDeMarketing[],,1),0),MATCH(VariaçõesDeMarketing[[#Headers],[Dez]],PlanoDeMarketing[#Headers],0))-INDEX(RealMarketing[],MATCH(INDEX(VariaçõesDeMarketing[],ROW()-ROW(VariaçõesDeMarketing[[#Headers],[Dez]]),1),INDEX(PlanoDeMarketing[],,1),0),MATCH(VariaçõesDeMarketing[[#Headers],[Dez]],RealMarketing[#Headers],0)) -> 500.00 € | O22: =SUM(VariaçõesDeMarketing[[#This Row],[Jan]:[Dez]]) -> 3,000.00 €
B23: Atualizações ao site | C23: =INDEX(PlanoDeMarketing[],MATCH(INDEX(VariaçõesDeMarketing[],ROW()-ROW(VariaçõesDeMarketing[[#Headers],[Jan]]),1),INDEX(PlanoDeMarketing[],,1),0),MATCH(VariaçõesDeMarketing[[#Headers],[Jan]],PlanoDeMarketing[#Headers],0))-INDEX(RealMarketing[],MATCH(INDEX(VariaçõesDeMarketing[],ROW()-ROW(VariaçõesDeMarketing[[#Headers],[Jan]]),1),INDEX(PlanoDeMarketing[],,1),0),MATCH(VariaçõesDeMarketing[[#Headers],[Jan]],RealMarketing[#Headers],0)) -> 0.00 € | D23: =INDEX(PlanoDeMarketing[],MATCH(INDEX(VariaçõesDeMarketing[],ROW()-ROW(VariaçõesDeMarketing[[#Headers],[Fev]]),1),INDEX(PlanoDeMarketing[],,1),0),MATCH(VariaçõesDeMarketing[[#Headers],[Fev]],PlanoDeMarketing[#Headers],0))-INDEX(RealMarketing[],MATCH(INDEX(VariaçõesDeMarketing[],ROW()-ROW(VariaçõesDeMarketing[[#Headers],[Fev]]),1),INDEX(PlanoDeMarketing[],,1),0),MATCH(VariaçõesDeMarketing[[#Headers],[Fev]],RealMarketing[#Headers],0)) -> 0.00 € | E23: =INDEX(PlanoDeMarketing[],MATCH(INDEX(VariaçõesDeMarketing[],ROW()-ROW(VariaçõesDeMarketing[[#Headers],[Mar]]),1),INDEX(PlanoDeMarketing[],,1),0),MATCH(VariaçõesDeMarketing[[#Headers],[Mar]],PlanoDeMarketing[#Headers],0))-INDEX(RealMarketing[],MATCH(INDEX(VariaçõesDeMarketing[],ROW()-ROW(VariaçõesDeMarketing[[#Headers],[Mar]]),1),INDEX(PlanoDeMarketing[],,1),0),MATCH(VariaçõesDeMarketing[[#Headers],[Mar]],RealMarketing[#Headers],0)) -> 0.00 € | F23: =INDEX(PlanoDeMarketing[],MATCH(INDEX(VariaçõesDeMarketing[],ROW()-ROW(VariaçõesDeMarketing[[#Headers],[Abr]]),1),INDEX(PlanoDeMarketing[],,1),0),MATCH(VariaçõesDeMarketing[[#Headers],[Abr]],PlanoDeMarketing[#Headers],0))-INDEX(RealMarketing[],MATCH(INDEX(VariaçõesDeMarketing[],ROW()-ROW(VariaçõesDeMarketing[[#Headers],[Abr]]),1),INDEX(PlanoDeMarketing[],,1),0),MATCH(VariaçõesDeMarketing[[#Headers],[Abr]],RealMarketing[#Headers],0)) -> 0.00 € | G23: =INDEX(PlanoDeMarketing[],MATCH(INDEX(VariaçõesDeMarketing[],ROW()-ROW(VariaçõesDeMarketing[[#Headers],[Mai]]),1),INDEX(PlanoDeMarketing[],,1),0),MATCH(VariaçõesDeMarketing[[#Headers],[Mai]],PlanoDeMarketing[#Headers],0))-INDEX(RealMarketing[],MATCH(INDEX(VariaçõesDeMarketing[],ROW()-ROW(VariaçõesDeMarketing[[#Headers],[Mai]]),1),INDEX(PlanoDeMarketing[],,1),0),MATCH(VariaçõesDeMarketing[[#Headers],[Mai]],RealMarketing[#Headers],0)) -> 0.00 € | H23: =INDEX(PlanoDeMarketing[],MATCH(INDEX(VariaçõesDeMarketing[],ROW()-ROW(VariaçõesDeMarketing[[#Headers],[Jun]]),1),INDEX(PlanoDeMarketing[],,1),0),MATCH(VariaçõesDeMarketing[[#Headers],[Jun]],PlanoDeMarketing[#Headers],0))-INDEX(RealMarketing[],MATCH(INDEX(VariaçõesDeMarketing[],ROW()-ROW(VariaçõesDeMarketing[[#Headers],[Jun]]),1),INDEX(PlanoDeMarketing[],,1),0),MATCH(VariaçõesDeMarketing[[#Headers],[Jun]],RealMarketing[#Headers],0)) -> -500.00 € | I23: =INDEX(PlanoDeMarketing[],MATCH(INDEX(VariaçõesDeMarketing[],ROW()-ROW(VariaçõesDeMarketing[[#Headers],[Jul]]),1),INDEX(PlanoDeMarketing[],,1),0),MATCH(VariaçõesDeMarketing[[#Headers],[Jul]],PlanoDeMarketing[#Headers],0))-INDEX(RealMarketing[],MATCH(INDEX(VariaçõesDeMarketing[],ROW()-ROW(VariaçõesDeMarketing[[#Headers],[Jul]]),1),INDEX(PlanoDeMarketing[],,1),0),MATCH(VariaçõesDeMarketing[[#Headers],[Jul]],RealMarketing[#Headers],0)) -> 200.00 € | J23: =INDEX(PlanoDeMarketing[],MATCH(INDEX(VariaçõesDeMarketing[],ROW()-ROW(VariaçõesDeMarketing[[#Headers],[Ago]]),1),INDEX(PlanoDeMarketing[],,1),0),MATCH(VariaçõesDeMarketing[[#Headers],[Ago]],PlanoDeMarketing[#Headers],0))-INDEX(RealMarketing[],MATCH(INDEX(VariaçõesDeMarketing[],ROW()-ROW(VariaçõesDeMarketing[[#Headers],[Ago]]),1),INDEX(PlanoDeMarketing[],,1),0),MATCH(VariaçõesDeMarketing[[#Headers],[Ago]],RealMarketing[#Headers],0)) -> 200.00 € | K23: =INDEX(PlanoDeMarketing[],MATCH(INDEX(VariaçõesDeMarketing[],ROW()-ROW(VariaçõesDeMarketing[[#Headers],[Set]]),1),INDEX(PlanoDeMarketing[],,1),0),MATCH(VariaçõesDeMarketing[[#Headers],[Set]],PlanoDeMarketing[#Headers],0))-INDEX(RealMarketing[],MATCH(INDEX(VariaçõesDeMarketing[],ROW()-ROW(VariaçõesDeMarketing[[#Headers],[Set]]),1),INDEX(PlanoDeMarketing[],,1),0),MATCH(VariaçõesDeMarketing[[#Headers],[Set]],RealMarketing[#Headers],0)) -> 200.00 € | L23: =INDEX(PlanoDeMarketing[],MATCH(INDEX(VariaçõesDeMarketing[],ROW()-ROW(VariaçõesDeMarketing[[#Headers],[Out]]),1),INDEX(PlanoDeMarketing[],,1),0),MATCH(VariaçõesDeMarketing[[#Headers],[Out]],PlanoDeMarketing[#Headers],0))-INDEX(RealMarketing[],MATCH(INDEX(VariaçõesDeMarketing[],ROW()-ROW(VariaçõesDeMarketing[[#Headers],[Out]]),1),INDEX(PlanoDeMarketing[],,1),0),MATCH(VariaçõesDeMarketing[[#Headers],[Out]],RealMarketing[#Headers],0)) -> 200.00 € | M23: =INDEX(PlanoDeMarketing[],MATCH(INDEX(VariaçõesDeMarketing[],ROW()-ROW(VariaçõesDeMarketing[[#Headers],[Nov]]),1),INDEX(PlanoDeMarketing[],,1),0),MATCH(VariaçõesDeMarketing[[#Headers],[Nov]],PlanoDeMarketing[#Headers],0))-INDEX(RealMarketing[],MATCH(INDEX(VariaçõesDeMarketing[],ROW()-ROW(VariaçõesDeMarketing[[#Headers],[Nov]]),1),INDEX(PlanoDeMarketing[],,1),0),MATCH(VariaçõesDeMarketing[[#Headers],[Nov]],RealMarketing[#Headers],0)) -> 200.00 € | N23: =INDEX(PlanoDeMarketing[],MATCH(INDEX(VariaçõesDeMarketing[],ROW()-ROW(VariaçõesDeMarketing[[#Headers],[Dez]]),1),INDEX(PlanoDeMarketing[],,1),0),MATCH(VariaçõesDeMarketing[[#Headers],[Dez]],PlanoDeMarketing[#Headers],0))-INDEX(RealMarketing[],MATCH(INDEX(VariaçõesDeMarketing[],ROW()-ROW(VariaçõesDeMarketing[[#Headers],[Dez]]),1),INDEX(PlanoDeMarketing[],,1),0),MATCH(VariaçõesDeMarketing[[#Headers],[Dez]],RealMarketing[#Headers],0)) -> 1,000.00 € | O23: =SUM(VariaçõesDeMarketing[[#This Row],[Jan]:[Dez]]) -> 1,500.00 €
B24: Preparação de materiais de anúncio | C24: =INDEX(PlanoDeMarketing[],MATCH(INDEX(VariaçõesDeMarketing[],ROW()-ROW(VariaçõesDeMarketing[[#Headers],[Jan]]),1),INDEX(PlanoDeMarketing[],,1),0),MATCH(VariaçõesDeMarketing[[#Headers],[Jan]],PlanoDeMarketing[#Headers],0))-INDEX(RealMarketing[],MATCH(INDEX(VariaçõesDeMarketing[],ROW()-ROW(VariaçõesDeMarketing[[#Headers],[Jan]]),1),INDEX(PlanoDeMarketing[],,1),0),MATCH(VariaçõesDeMarketing[[#Headers],[Jan]],RealMarketing[#Headers],0)) -> 200.00 € | D24: =INDEX(PlanoDeMarketing[],MATCH(INDEX(VariaçõesDeMarketing[],ROW()-ROW(VariaçõesDeMarketing[[#Headers],[Fev]]),1),INDEX(PlanoDeMarketing[],,1),0),MATCH(VariaçõesDeMarketing[[#Headers],[Fev]],PlanoDeMarketing[#Headers],0))-INDEX(RealMarketing[],MATCH(INDEX(VariaçõesDeMarketing[],ROW()-ROW(VariaçõesDeMarketing[[#Headers],[Fev]]),1),INDEX(PlanoDeMarketing[],,1),0),MATCH(VariaçõesDeMarketing[[#Headers],[Fev]],RealMarketing[#Headers],0)) -> 0.00 € | E24: =INDEX(PlanoDeMarketing[],MATCH(INDEX(VariaçõesDeMarketing[],ROW()-ROW(VariaçõesDeMarketing[[#Headers],[Mar]]),1),INDEX(PlanoDeMarketing[],,1),0),MATCH(VariaçõesDeMarketing[[#Headers],[Mar]],PlanoDeMarketing[#Headers],0))-INDEX(RealMarketing[],MATCH(INDEX(VariaçõesDeMarketing[],ROW()-ROW(VariaçõesDeMarketing[[#Headers],[Mar]]),1),INDEX(PlanoDeMarketing[],,1),0),MATCH(VariaçõesDeMarketing[[#Headers],[Mar]],RealMarketing[#Headers],0)) -> 0.00 € | F24: =INDEX(PlanoDeMarketing[],MATCH(INDEX(VariaçõesDeMarketing[],ROW()-ROW(VariaçõesDeMarketing[[#Headers],[Abr]]),1),INDEX(PlanoDeMarketing[],,1),0),MATCH(VariaçõesDeMarketing[[#Headers],[Abr]],PlanoDeMarketing[#Headers],0))-INDEX(RealMarketing[],MATCH(INDEX(VariaçõesDeMarketing[],ROW()-ROW(VariaçõesDeMarketing[[#Headers],[Abr]]),1),INDEX(PlanoDeMarketing[],,1),0),MATCH(VariaçõesDeMarketing[[#Headers],[Abr]],RealMarketing[#Headers],0)) -> -500.00 € | G24: =INDEX(PlanoDeMarketing[],MATCH(INDEX(VariaçõesDeMarketing[],ROW()-ROW(VariaçõesDeMarketing[[#Headers],[Mai]]),1),INDEX(PlanoDeMarketing[],,1),0),MATCH(VariaçõesDeMarketing[[#Headers],[Mai]],PlanoDeMarketing[#Headers],0))-INDEX(RealMarketing[],MATCH(INDEX(VariaçõesDeMarketing[],ROW()-ROW(VariaçõesDeMarketing[[#Headers],[Mai]]),1),INDEX(PlanoDeMarketing[],,1),0),MATCH(VariaçõesDeMarketing[[#Headers],[Mai]],RealMarketing[#Headers],0)) -> 0.00 € | H24: =INDEX(PlanoDeMarketing[],MATCH(INDEX(VariaçõesDeMarketing[],ROW()-ROW(VariaçõesDeMarketing[[#Headers],[Jun]]),1),INDEX(PlanoDeMarketing[],,1),0),MATCH(VariaçõesDeMarketing[[#Headers],[Jun]],PlanoDeMarketing[#Headers],0))-INDEX(RealMarketing[],MATCH(INDEX(VariaçõesDeMarketing[],ROW()-ROW(VariaçõesDeMarketing[[#Headers],[Jun]]),1),INDEX(PlanoDeMarketing[],,1),0),MATCH(VariaçõesDeMarketing[[#Headers],[Jun]],RealMarketing[#Headers],0)) -> 0.00 € | I24: =INDEX(PlanoDeMarketing[],MATCH(INDEX(VariaçõesDeMarketing[],ROW()-ROW(VariaçõesDeMarketing[[#Headers],[Jul]]),1),INDEX(PlanoDeMarketing[],,1),0),MATCH(VariaçõesDeMarketing[[#Headers],[Jul]],PlanoDeMarketing[#Headers],0))-INDEX(RealMarketing[],MATCH(INDEX(VariaçõesDeMarketing[],ROW()-ROW(VariaçõesDeMarketing[[#Headers],[Jul]]),1),INDEX(PlanoDeMarketing[],,1),0),MATCH(VariaçõesDeMarketing[[#Headers],[Jul]],RealMarketing[#Headers],0)) -> 5,000.00 € | J24: =INDEX(PlanoDeMarketing[],MATCH(INDEX(VariaçõesDeMarketing[],ROW()-ROW(VariaçõesDeMarketing[[#Headers],[Ago]]),1),INDEX(PlanoDeMarketing[],,1),0),MATCH(VariaçõesDeMarketing[[#Headers],[Ago]],PlanoDeMarketing[#Headers],0))-INDEX(RealMarketing[],MATCH(INDEX(VariaçõesDeMarketing[],ROW()-ROW(VariaçõesDeMarketing[[#Headers],[Ago]]),1),INDEX(PlanoDeMarketing[],,1),0),MATCH(VariaçõesDeMarketing[[#Headers],[Ago]],RealMarketing[#Headers],0)) -> 0.00 € | K24: =INDEX(PlanoDeMarketing[],MATCH(INDEX(VariaçõesDeMarketing[],ROW()-ROW(VariaçõesDeMarketing[[#Headers],[Set]]),1),INDEX(PlanoDeMarketing[],,1),0),MATCH(VariaçõesDeMarketing[[#Headers],[Set]],PlanoDeMarketing[#Headers],0))-INDEX(RealMarketing[],MATCH(INDEX(VariaçõesDeMarketing[],ROW()-ROW(VariaçõesDeMarketing[[#Headers],[Set]]),1),INDEX(PlanoDeMarketing[],,1),0),MATCH(VariaçõesDeMarketing[[#Headers],[Set]],RealMarketing[#Headers],0)) -> 0.00 € | L24: =INDEX(PlanoDeMarketing[],MATCH(INDEX(VariaçõesDeMarketing[],ROW()-ROW(VariaçõesDeMarketing[[#Headers],[Out]]),1),INDEX(PlanoDeMarketing[],,1),0),MATCH(VariaçõesDeMarketing[[#Headers],[Out]],PlanoDeMarketing[#Headers],0))-INDEX(RealMarketing[],MATCH(INDEX(VariaçõesDeMarketing[],ROW()-ROW(VariaçõesDeMarketing[[#Headers],[Out]]),1),INDEX(PlanoDeMarketing[],,1),0),MATCH(VariaçõesDeMarketing[[#Headers],[Out]],RealMarketing[#Headers],0)) -> 5,000.00 € | M24: =INDEX(PlanoDeMarketing[],MATCH(INDEX(VariaçõesDeMarketing[],ROW()-ROW(VariaçõesDeMarketing[[#Headers],[Nov]]),1),INDEX(PlanoDeMarketing[],,1),0),MATCH(VariaçõesDeMarketing[[#Headers],[Nov]],PlanoDeMarketing[#Headers],0))-INDEX(RealMarketing[],MATCH(INDEX(VariaçõesDeMarketing[],ROW()-ROW(VariaçõesDeMarketing[[#Headers],[Nov]]),1),INDEX(PlanoDeMarketing[],,1),0),MATCH(VariaçõesDeMarketing[[#Headers],[Nov]],RealMarketing[#Headers],0)) -> 0.00 € | N24: =INDEX(PlanoDeMarketing[],MATCH(INDEX(VariaçõesDeMarketing[],ROW()-ROW(VariaçõesDeMarketing[[#Headers],[Dez]]),1),INDEX(PlanoDeMarketing[],,1),0),MATCH(VariaçõesDeMarketing[[#Headers],[Dez]],PlanoDeMarketing[#Headers],0))-INDEX(RealMarketing[],MATCH(INDEX(VariaçõesDeMarketing[],ROW()-ROW(VariaçõesDeMarketing[[#Headers],[Dez]]),1),INDEX(PlanoDeMarketing[],,1),0),MATCH(VariaçõesDeMarketing[[#Headers],[Dez]],RealMarketing[#Headers],0)) -> 0.00 € | O24: =SUM(VariaçõesDeMarketing[[#This Row],[Jan]:[Dez]]) -> 9,700.00 €
B25: Impressão de materiais de anúncio | C25: =INDEX(PlanoDeMarketing[],MATCH(INDEX(VariaçõesDeMarketing[],ROW()-ROW(VariaçõesDeMarketing[[#Headers],[Jan]]),1),INDEX(PlanoDeMarketing[],,1),0),MATCH(VariaçõesDeMarketing[[#Headers],[Jan]],PlanoDeMarketing[#Headers],0))-INDEX(RealMarketing[],MATCH(INDEX(VariaçõesDeMarketing[],ROW()-ROW(VariaçõesDeMarketing[[#Headers],[Jan]]),1),INDEX(PlanoDeMarketing[],,1),0),MATCH(VariaçõesDeMarketing[[#Headers],[Jan]],RealMarketing[#Headers],0)) -> 100.00 € | D25: =INDEX(PlanoDeMarketing[],MATCH(INDEX(VariaçõesDeMarketing[],ROW()-ROW(VariaçõesDeMarketing[[#Headers],[Fev]]),1),INDEX(PlanoDeMarketing[],,1),0),MATCH(VariaçõesDeMarketing[[#Headers],[Fev]],PlanoDeMarketing[#Headers],0))-INDEX(RealMarketing[],MATCH(INDEX(VariaçõesDeMarketing[],ROW()-ROW(VariaçõesDeMarketing[[#Headers],[Fev]]),1),INDEX(PlanoDeMarketing[],,1),0),MATCH(VariaçõesDeMarketing[[#Headers],[Fev]],RealMarketing[#Headers],0)) -> -300.00 € | E25: =INDEX(PlanoDeMarketing[],MATCH(INDEX(VariaçõesDeMarketing[],ROW()-ROW(VariaçõesDeMarketing[[#Headers],[Mar]]),1),INDEX(PlanoDeMarketing[],,1),0),MATCH(VariaçõesDeMarketing[[#Headers],[Mar]],PlanoDeMarketing[#Headers],0))-INDEX(RealMarketing[],MATCH(INDEX(VariaçõesDeMarketing[],ROW()-ROW(VariaçõesDeMarketing[[#Headers],[Mar]]),1),INDEX(PlanoDeMarketing[],,1),0),MATCH(VariaçõesDeMarketing[[#Headers],[Mar]],RealMarketing[#Headers],0)) -> 100.00 € | F25: =INDEX(PlanoDeMarketing[],MATCH(INDEX(VariaçõesDeMarketing[],ROW()-ROW(VariaçõesDeMarketing[[#Headers],[Abr]]),1),INDEX(PlanoDeMarketing[],,1),0),MATCH(VariaçõesDeMarketing[[#Headers],[Abr]],PlanoDeMarketing[#Headers],0))-INDEX(RealMarketing[],MATCH(INDEX(VariaçõesDeMarketing[],ROW()-ROW(VariaçõesDeMarketing[[#Headers],[Abr]]),1),INDEX(PlanoDeMarketing[],,1),0),MATCH(VariaçõesDeMarketing[[#Headers],[Abr]],RealMarketing[#Headers],0)) -> 100.00 € | G25: =INDEX(PlanoDeMarketing[],MATCH(INDEX(VariaçõesDeMarketing[],ROW()-ROW(VariaçõesDeMarketing[[#Headers],[Mai]]),1),INDEX(PlanoDeMarketing[],,1),0),MATCH(VariaçõesDeMarketing[[#Headers],[Mai]],PlanoDeMarketing[#Headers],0))-INDEX(RealMarketing[],MATCH(INDEX(VariaçõesDeMarketing[],ROW()-ROW(VariaçõesDeMarketing[[#Headers],[Mai]]),1),INDEX(PlanoDeMarketing[],,1),0),MATCH(VariaçõesDeMarketing[[#Headers],[Mai]],RealMarketing[#Headers],0)) -> -400.00 € | H25: =INDEX(PlanoDeMarketing[],MATCH(INDEX(VariaçõesDeMarketing[],ROW()-ROW(VariaçõesDeMarketing[[#Headers],[Jun]]),1),INDEX(PlanoDeMarketing[],,1),0),MATCH(VariaçõesDeMarketing[[#Headers],[Jun]],PlanoDeMarketing[#Headers],0))-INDEX(RealMarketing[],MATCH(INDEX(VariaçõesDeMarketing[],ROW()-ROW(VariaçõesDeMarketing[[#Headers],[Jun]]),1),INDEX(PlanoDeMarketing[],,1),0),MATCH(VariaçõesDeMarketing[[#Headers],[Jun]],RealMarketing[#Headers],0)) -> 20.00 € | I25: =INDEX(PlanoDeMarketing[],MATCH(INDEX(VariaçõesDeMarketing[],ROW()-ROW(VariaçõesDeMarketing[[#Headers],[Jul]]),1),INDEX(PlanoDeMarketing[],,1),0),MATCH(VariaçõesDeMarketing[[#Headers],[Jul]],PlanoDeMarketing[#Headers],0))-INDEX(RealMarketing[],MATCH(INDEX(VariaçõesDeMarketing[],ROW()-ROW(VariaçõesDeMarketing[[#Headers],[Jul]]),1),INDEX(PlanoDeMarketing[],,1),0),MATCH(VariaçõesDeMarketing[[#Headers],[Jul]],RealMarketing[#Headers],0)) -> 200.00 € | J25: =INDEX(PlanoDeMarketing[],MATCH(INDEX(VariaçõesDeMarketing[],ROW()-ROW(VariaçõesDeMarketing[[#Headers],[Ago]]),1),INDEX(PlanoDeMarketing[],,1),0),MATCH(VariaçõesDeMarketing[[#Headers],[Ago]],PlanoDeMarketing[#Headers],0))-INDEX(RealMarketing[],MATCH(INDEX(VariaçõesDeMarketing[],ROW()-ROW(VariaçõesDeMarketing[[#Headers],[Ago]]),1),INDEX(PlanoDeMarketing[],,1),0),MATCH(VariaçõesDeMarketing[[#Headers],[Ago]],RealMarketing[#Headers],0)) -> 200.00 € | K25: =INDEX(PlanoDeMarketing[],MATCH(INDEX(VariaçõesDeMarketing[],ROW()-ROW(VariaçõesDeMarketing[[#Headers],[Set]]),1),INDEX(PlanoDeMarketing[],,1),0),MATCH(VariaçõesDeMarketing[[#Headers],[Set]],PlanoDeMarketing[#Headers],0))-INDEX(RealMarketing[],MATCH(INDEX(VariaçõesDeMarketing[],ROW()-ROW(VariaçõesDeMarketing[[#Headers],[Set]]),1),INDEX(PlanoDeMarketing[],,1),0),MATCH(VariaçõesDeMarketing[[#Headers],[Set]],RealMarketing[#Headers],0)) -> 200.00 € | L25: =INDEX(PlanoDeMarketing[],MATCH(INDEX(VariaçõesDeMarketing[],ROW()-ROW(VariaçõesDeMarketing[[#Headers],[Out]]),1),INDEX(PlanoDeMarketing[],,1),0),MATCH(VariaçõesDeMarketing[[#Headers],[Out]],PlanoDeMarketing[#Headers],0))-INDEX(RealMarketing[],MATCH(INDEX(VariaçõesDeMarketing[],ROW()-ROW(VariaçõesDeMarketing[[#Headers],[Out]]),1),INDEX(PlanoDeMarketing[],,1),0),MATCH(VariaçõesDeMarketing[[#Headers],[Out]],RealMarketing[#Headers],0)) -> 200.00 € | M25: =INDEX(PlanoDeMarketing[],MATCH(INDEX(VariaçõesDeMarketing[],ROW()-ROW(VariaçõesDeMarketing[[#Headers],[Nov]]),1),INDEX(PlanoDeMarketing[],,1),0),MATCH(VariaçõesDeMarketing[[#Headers],[Nov]],PlanoDeMarketing[#Headers],0))-INDEX(RealMarketing[],MATCH(INDEX(VariaçõesDeMarketing[],ROW()-ROW(VariaçõesDeMarketing[[#Headers],[Nov]]),1),INDEX(PlanoDeMarketing[],,1),0),MATCH(VariaçõesDeMarketing[[#Headers],[Nov]],RealMarketing[#Headers],0)) -> 200.00 € | N25: =INDEX(PlanoDeMarketing[],MATCH(INDEX(VariaçõesDeMarketing[],ROW()-ROW(VariaçõesDeMarketing[[#Headers],[Dez]]),1),INDEX(PlanoDeMarketing[],,1),0),MATCH(VariaçõesDeMarketing[[#Headers],[Dez]],PlanoDeMarketing[#Headers],0))-INDEX(RealMarketing[],MATCH(INDEX(VariaçõesDeMarketing[],ROW()-ROW(VariaçõesDeMarketing[[#Headers],[Dez]]),1),INDEX(PlanoDeMarketing[],,1),0),MATCH(VariaçõesDeMarketing[[#Headers],[Dez]],RealMarketing[#Headers],0)) -> 200.00 € | O25: =SUM(VariaçõesDeMarketing[[#This Row],[Jan]:[Dez]]) -> 820.00 €
B26: Eventos de marketing | C26: =INDEX(PlanoDeMarketing[],MATCH(INDEX(VariaçõesDeMarketing[],ROW()-ROW(VariaçõesDeMarketing[[#Headers],[Jan]]),1),INDEX(PlanoDeMarketing[],,1),0),MATCH(VariaçõesDeMarketing[[#Headers],[Jan]],PlanoDeMarketing[#Headers],0))-INDEX(RealMarketing[],MATCH(INDEX(VariaçõesDeMarketing[],ROW()-ROW(VariaçõesDeMarketing[[#Headers],[Jan]]),1),INDEX(PlanoDeMarketing[],,1),0),MATCH(VariaçõesDeMarketing[[#Headers],[Jan]],RealMarketing[#Headers],0)) -> 200.00 € | D26: =INDEX(PlanoDeMarketing[],MATCH(INDEX(VariaçõesDeMarketing[],ROW()-ROW(VariaçõesDeMarketing[[#Headers],[Fev]]),1),INDEX(PlanoDeMarketing[],,1),0),MATCH(VariaçõesDeMarketing[[#Headers],[Fev]],PlanoDeMarketing[#Headers],0))-INDEX(RealMarketing[],MATCH(INDEX(VariaçõesDeMarketing[],ROW()-ROW(VariaçõesDeMarketing[[#Headers],[Fev]]),1),INDEX(PlanoDeMarketing[],,1),0),MATCH(VariaçõesDeMarketing[[#Headers],[Fev]],RealMarketing[#Headers],0)) -> -200.00 € | E26: =INDEX(PlanoDeMarketing[],MATCH(INDEX(VariaçõesDeMarketing[],ROW()-ROW(VariaçõesDeMarketing[[#Headers],[Mar]]),1),INDEX(PlanoDeMarketing[],,1),0),MATCH(VariaçõesDeMarketing[[#Headers],[Mar]],PlanoDeMarketing[#Headers],0))-INDEX(RealMarketing[],MATCH(INDEX(VariaçõesDeMarketing[],ROW()-ROW(VariaçõesDeMarketing[[#Headers],[Mar]]),1),INDEX(PlanoDeMarketing[],,1),0),MATCH(VariaçõesDeMarketing[[#Headers],[Mar]],RealMarketing[#Headers],0)) -> -200.00 € | F26: =INDEX(PlanoDeMarketing[],MATCH(INDEX(VariaçõesDeMarketing[],ROW()-ROW(VariaçõesDeMarketing[[#Headers],[Abr]]),1),INDEX(PlanoDeMarketing[],,1),0),MATCH(VariaçõesDeMarketing[[#Headers],[Abr]],PlanoDeMarketing[#Headers],0))-INDEX(RealMarketing[],MATCH(INDEX(VariaçõesDeMarketing[],ROW()-ROW(VariaçõesDeMarketing[[#Headers],[Abr]]),1),INDEX(PlanoDeMarketing[],,1),0),MATCH(VariaçõesDeMarketing[[#Headers],[Abr]],RealMarketing[#Headers],0)) -> 300.00 € | G26: =INDEX(PlanoDeMarketing[],MATCH(INDEX(VariaçõesDeMarketing[],ROW()-ROW(VariaçõesDeMarketing[[#Headers],[Mai]]),1),INDEX(PlanoDeMarketing[],,1),0),MATCH(VariaçõesDeMarketing[[#Headers],[Mai]],PlanoDeMarketing[#Headers],0))-INDEX(RealMarketing[],MATCH(INDEX(VariaçõesDeMarketing[],ROW()-ROW(VariaçõesDeMarketing[[#Headers],[Mai]]),1),INDEX(PlanoDeMarketing[],,1),0),MATCH(VariaçõesDeMarketing[[#Headers],[Mai]],RealMarketing[#Headers],0)) -> 500.00 € | H26: =INDEX(PlanoDeMarketing[],MATCH(INDEX(VariaçõesDeMarketing[],ROW()-ROW(VariaçõesDeMarketing[[#Headers],[Jun]]),1),INDEX(PlanoDeMarketing[],,1),0),MATCH(VariaçõesDeMarketing[[#Headers],[Jun]],PlanoDeMarketing[#Headers],0))-INDEX(RealMarketing[],MATCH(INDEX(VariaçõesDeMarketing[],ROW()-ROW(VariaçõesDeMarketing[[#Headers],[Jun]]),1),INDEX(PlanoDeMarketing[],,1),0),MATCH(VariaçõesDeMarketing[[#Headers],[Jun]],RealMarketing[#Headers],0)) -> -300.00 € | I26: =INDEX(PlanoDeMarketing[],MATCH(INDEX(VariaçõesDeMarketing[],ROW()-ROW(VariaçõesDeMarketing[[#Headers],[Jul]]),1),INDEX(PlanoDeMarketing[],,1),0),MATCH(VariaçõesDeMarketing[[#Headers],[Jul]],PlanoDeMarketing[#Headers],0))-INDEX(RealMarketing[],MATCH(INDEX(VariaçõesDeMarketing[],ROW()-ROW(VariaçõesDeMarketing[[#Headers],[Jul]]),1),INDEX(PlanoDeMarketing[],,1),0),MATCH(VariaçõesDeMarketing[[#Headers],[Jul]],RealMarketing[#Headers],0)) -> 2,000.00 € | J26: =INDEX(PlanoDeMarketing[],MATCH(INDEX(VariaçõesDeMarketing[],ROW()-ROW(VariaçõesDeMarketing[[#Headers],[Ago]]),1),INDEX(PlanoDeMarketing[],,1),0),MATCH(VariaçõesDeMarketing[[#Headers],[Ago]],PlanoDeMarketing[#Headers],0))-INDEX(RealMarketing[],MATCH(INDEX(VariaçõesDeMarketing[],ROW()-ROW(VariaçõesDeMarketing[[#Headers],[Ago]]),1),INDEX(PlanoDeMarketing[],,1),0),MATCH(VariaçõesDeMarketing[[#Headers],[Ago]],RealMarketing[#Headers],0)) -> 5,000.00 € | K26: =INDEX(PlanoDeMarketing[],MATCH(INDEX(VariaçõesDeMarketing[],ROW()-ROW(VariaçõesDeMarketing[[#Headers],[Set]]),1),INDEX(PlanoDeMarketing[],,1),0),MATCH(VariaçõesDeMarketing[[#Headers],[Set]],PlanoDeMarketing[#Headers],0))-INDEX(RealMarketing[],MATCH(INDEX(VariaçõesDeMarketing[],ROW()-ROW(VariaçõesDeMarketing[[#Headers],[Set]]),1),INDEX(PlanoDeMarketing[],,1),0),MATCH(VariaçõesDeMarketing[[#Headers],[Set]],RealMarketing[#Headers],0)) -> 2,000.00 € | L26: =INDEX(PlanoDeMarketing[],MATCH(INDEX(VariaçõesDeMarketing[],ROW()-ROW(VariaçõesDeMarketing[[#Headers],[Out]]),1),INDEX(PlanoDeMarketing[],,1),0),MATCH(VariaçõesDeMarketing[[#Headers],[Out]],PlanoDeMarketing[#Headers],0))-INDEX(RealMarketing[],MATCH(INDEX(VariaçõesDeMarketing[],ROW()-ROW(VariaçõesDeMarketing[[#Headers],[Out]]),1),INDEX(PlanoDeMarketing[],,1),0),MATCH(VariaçõesDeMarketing[[#Headers],[Out]],RealMarketing[#Headers],0)) -> 2,000.00 € | M26: =INDEX(PlanoDeMarketing[],MATCH(INDEX(VariaçõesDeMarketing[],ROW()-ROW(VariaçõesDeMarketing[[#Headers],[Nov]]),1),INDEX(PlanoDeMarketing[],,1),0),MATCH(VariaçõesDeMarketing[[#Headers],[Nov]],PlanoDeMarketing[#Headers],0))-INDEX(RealMarketing[],MATCH(INDEX(VariaçõesDeMarketing[],ROW()-ROW(VariaçõesDeMarketing[[#Headers],[Nov]]),1),INDEX(PlanoDeMarketing[],,1),0),MATCH(VariaçõesDeMarketing[[#Headers],[Nov]],RealMarketing[#Headers],0)) -> 2,000.00 € | N26: =INDEX(PlanoDeMarketing[],MATCH(INDEX(VariaçõesDeMarketing[],ROW()-ROW(VariaçõesDeMarketing[[#Headers],[Dez]]),1),INDEX(PlanoDeMarketing[],,1),0),MATCH(VariaçõesDeMarketing[[#Headers],[Dez]],PlanoDeMarketing[#Headers],0))-INDEX(RealMarketing[],MATCH(INDEX(VariaçõesDeMarketing[],ROW()-ROW(VariaçõesDeMarketing[[#Headers],[Dez]]),1),INDEX(PlanoDeMarketing[],,1),0),MATCH(VariaçõesDeMarketing[[#Headers],[Dez]],RealMarketing[#Headers],0)) -> 5,000.00 € | O26: =SUM(VariaçõesDeMarketing[[#This Row],[Jan]:[Dez]]) -> 18,300.00 €
B27: Despesas diversas | C27: =INDEX(PlanoDeMarketing[],MATCH(INDEX(VariaçõesDeMarketing[],ROW()-ROW(VariaçõesDeMarketing[[#Headers],[Jan]]),1),INDEX(PlanoDeMarketing[],,1),0),MATCH(VariaçõesDeMarketing[[#Headers],[Jan]],PlanoDeMarketing[#Headers],0))-INDEX(RealMarketing[],MATCH(INDEX(VariaçõesDeMarketing[],ROW()-ROW(VariaçõesDeMarketing[[#Headers],[Jan]]),1),INDEX(PlanoDeMarketing[],,1),0),MATCH(VariaçõesDeMarketing[[#Headers],[Jan]],RealMarketing[#Headers],0)) -> 55.00 € | D27: =INDEX(PlanoDeMarketing[],MATCH(INDEX(VariaçõesDeMarketing[],ROW()-ROW(VariaçõesDeMarketing[[#Headers],[Fev]]),1),INDEX(PlanoDeMarketing[],,1),0),MATCH(VariaçõesDeMarketing[[#Headers],[Fev]],PlanoDeMarketing[#Headers],0))-INDEX(RealMarketing[],MATCH(INDEX(VariaçõesDeMarketing[],ROW()-ROW(VariaçõesDeMarketing[[#Headers],[Fev]]),1),INDEX(PlanoDeMarketing[],,1),0),MATCH(VariaçõesDeMarketing[[#Headers],[Fev]],RealMarketing[#Headers],0)) -> 44.00 € | E27: =INDEX(PlanoDeMarketing[],MATCH(INDEX(VariaçõesDeMarketing[],ROW()-ROW(VariaçõesDeMarketing[[#Headers],[Mar]]),1),INDEX(PlanoDeMarketing[],,1),0),MATCH(VariaçõesDeMarketing[[#Headers],[Mar]],PlanoDeMarketing[#Headers],0))-INDEX(RealMarketing[],MATCH(INDEX(VariaçõesDeMarketing[],ROW()-ROW(VariaçõesDeMarketing[[#Headers],[Mar]]),1),INDEX(PlanoDeMarketing[],,1),0),MATCH(VariaçõesDeMarketing[[#Headers],[Mar]],RealMarketing[#Headers],0)) -> 77.00 € | F27: =INDEX(PlanoDeMarketing[],MATCH(INDEX(VariaçõesDeMarketing[],ROW()-ROW(VariaçõesDeMarketing[[#Headers],[Abr]]),1),INDEX(PlanoDeMarketing[],,1),0),MATCH(VariaçõesDeMarketing[[#Headers],[Abr]],PlanoDeMarketing[#Headers],0))-INDEX(RealMarketing[],MATCH(INDEX(VariaçõesDeMarketing[],ROW()-ROW(VariaçõesDeMarketing[[#Headers],[Abr]]),1),INDEX(PlanoDeMarketing[],,1),0),MATCH(VariaçõesDeMarketing[[#Headers],[Abr]],RealMarketing[#Headers],0)) -> -23.00 € | G27: =INDEX(PlanoDeMarketing[],MATCH(INDEX(VariaçõesDeMarketing[],ROW()-ROW(VariaçõesDeMarketing[[#Headers],[Mai]]),1),INDEX(PlanoDeMarketing[],,1),0),MATCH(VariaçõesDeMarketing[[#Headers],[Mai]],PlanoDeMarketing[#Headers],0))-INDEX(RealMarketing[],MATCH(INDEX(VariaçõesDeMarketing[],ROW()-ROW(VariaçõesDeMarketing[[#Headers],[Mai]]),1),INDEX(PlanoDeMarketing[],,1),0),MATCH(VariaçõesDeMarketing[[#Headers],[Mai]],RealMarketing[#Headers],0)) -> 13.00 € | H27: =INDEX(PlanoDeMarketing[],MATCH(INDEX(VariaçõesDeMarketing[],ROW()-ROW(VariaçõesDeMarketing[[#Headers],[Jun]]),1),INDEX(PlanoDeMarketing[],,1),0),MATCH(VariaçõesDeMarketing[[#Headers],[Jun]],PlanoDeMarketing[#Headers],0))-INDEX(RealMarketing[],MATCH(INDEX(VariaçõesDeMarketing[],ROW()-ROW(VariaçõesDeMarketing[[#Headers],[Jun]]),1),INDEX(PlanoDeMarketing[],,1),0),MATCH(VariaçõesDeMarketing[[#Headers],[Jun]],RealMarketing[#Headers],0)) -> -45.00 € | I27: =INDEX(PlanoDeMarketing[],MATCH(INDEX(VariaçõesDeMarketing[],ROW()-ROW(VariaçõesDeMarketing[[#Headers],[Jul]]),1),INDEX(PlanoDeMarketing[],,1),0),MATCH(VariaçõesDeMarketing[[#Headers],[Jul]],PlanoDeMarketing[#Headers],0))-INDEX(RealMarketing[],MATCH(INDEX(VariaçõesDeMarketing[],ROW()-ROW(VariaçõesDeMarketing[[#Headers],[Jul]]),1),INDEX(PlanoDeMarketing[],,1),0),MATCH(VariaçõesDeMarketing[[#Headers],[Jul]],RealMarketing[#Headers],0)) -> 200.00 € | J27: =INDEX(PlanoDeMarketing[],MATCH(INDEX(VariaçõesDeMarketing[],ROW()-ROW(VariaçõesDeMarketing[[#Headers],[Ago]]),1),INDEX(PlanoDeMarketing[],,1),0),MATCH(VariaçõesDeMarketing[[#Headers],[Ago]],PlanoDeMarketing[#Headers],0))-INDEX(RealMarketing[],MATCH(INDEX(VariaçõesDeMarketing[],ROW()-ROW(VariaçõesDeMarketing[[#Headers],[Ago]]),1),INDEX(PlanoDeMarketing[],,1),0),MATCH(VariaçõesDeMarketing[[#Headers],[Ago]],RealMarketing[#Headers],0)) -> 200.00 € | K27: =INDEX(PlanoDeMarketing[],MATCH(INDEX(VariaçõesDeMarketing[],ROW()-ROW(VariaçõesDeMarketing[[#Headers],[Set]]),1),INDEX(PlanoDeMarketing[],,1),0),MATCH(VariaçõesDeMarketing[[#Headers],[Set]],PlanoDeMarketing[#Headers],0))-INDEX(RealMarketing[],MATCH(INDEX(VariaçõesDeMarketing[],ROW()-ROW(VariaçõesDeMarketing[[#Headers],[Set]]),1),INDEX(PlanoDeMarketing[],,1),0),MATCH(VariaçõesDeMarketing[[#Headers],[Set]],RealMarketing[#Headers],0)) -> 200.00 € | L27: =INDEX(PlanoDeMarketing[],MATCH(INDEX(VariaçõesDeMarketing[],ROW()-ROW(VariaçõesDeMarketing[[#Headers],[Out]]),1),INDEX(PlanoDeMarketing[],,1),0),MATCH(VariaçõesDeMarketing[[#Headers],[Out]],PlanoDeMarketing[#Headers],0))-INDEX(RealMarketing[],MATCH(INDEX(VariaçõesDeMarketing[],ROW()-ROW(VariaçõesDeMarketing[[#Headers],[Out]]),1),INDEX(PlanoDeMarketing[],,1),0),MATCH(VariaçõesDeMarketing[[#Headers],[Out]],RealMarketing[#Headers],0)) -> 200.00 € | M27: =INDEX(PlanoDeMarketing[],MATCH(INDEX(VariaçõesDeMarketing[],ROW()-ROW(VariaçõesDeMarketing[[#Headers],[Nov]]),1),INDEX(PlanoDeMarketing[],,1),0),MATCH(VariaçõesDeMarketing[[#Headers],[Nov]],PlanoDeMarketing[#Headers],0))-INDEX(RealMarketing[],MATCH(INDEX(VariaçõesDeMarketing[],ROW()-ROW(VariaçõesDeMarketing[[#Headers],[Nov]]),1),INDEX(PlanoDeMarketing[],,1),0),MATCH(VariaçõesDeMarketing[[#Headers],[Nov]],RealMarketing[#Headers],0)) -> 200.00 € | N27: =INDEX(PlanoDeMarketing[],MATCH(INDEX(VariaçõesDeMarketing[],ROW()-ROW(VariaçõesDeMarketing[[#Headers],[Dez]]),1),INDEX(PlanoDeMarketing[],,1),0),MATCH(VariaçõesDeMarketing[[#Headers],[Dez]],PlanoDeMarketing[#Headers],0))-INDEX(RealMarketing[],MATCH(INDEX(VariaçõesDeMarketing[],ROW()-ROW(VariaçõesDeMarketing[[#Headers],[Dez]]),1),INDEX(PlanoDeMarketing[],,1),0),MATCH(VariaçõesDeMarketing[[#Headers],[Dez]],RealMarketing[#Headers],0)) -> 200.00 € | O27: =SUM(VariaçõesDeMarketing[[#This Row],[Jan]:[Dez]]) -> 1,321.00 €
B28: Subtotal | C28: =SUBTOTAL(109,VariaçõesDeMarketing[Jan]) -> 555.00 € | D28: =SUBTOTAL(109,VariaçõesDeMarketing[Fev]) -> -456.00 € | E28: =SUBTOTAL(109,VariaçõesDeMarketing[Mar]) -> -23.00 € | F28: =SUBTOTAL(109,VariaçõesDeMarketing[Abr]) -> -123.00 € | G28: =SUBTOTAL(109,VariaçõesDeMarketing[Mai]) -> 113.00 € | H28: =SUBTOTAL(109,VariaçõesDeMarketing[Jun]) -> -825.00 € | I28: =SUBTOTAL(109,VariaçõesDeMarketing[Jul]) -> 8,100.00 € | J28: =SUBTOTAL(109,VariaçõesDeMarketing[Ago]) -> 6,100.00 € | K28: =SUBTOTAL(109,VariaçõesDeMarketing[Set]) -> 3,100.00 € | L28: =SUBTOTAL(109,VariaçõesDeMarketing[Out]) -> 8,100.00 € | M28: =SUBTOTAL(109,VariaçõesDeMarketing[Nov]) -> 3,100.00 € | N28: =SUBTOTAL(109,VariaçõesDeMarketing[Dez]) -> 6,900.00 € | O28: =SUBTOTAL(109,VariaçõesDeMarketing[ANO]) -> 34,641.00 €
A30: A Variação nos Custos de Formação e Deslocações é calculada automaticamente na tabela Variações de Formação e Viagens a partir da célula à direita. A instrução seguinte está na célula A35. | B30: Formação/Deslocações | C30: Jan | D30: Fev | E30: Mar | F30: Abr | G30: Mai | H30: Jun | I30: Jul | J30: Ago | K30: Set | L30: Out | M30: Nov | N30: Dez | O30: ANO
B31: Aulas de formação | C31: =INDEX(PlanoDeFormaçãoEViagens[],MATCH(INDEX(VariaçõesDeFormaçãoEViagens[],ROW()-ROW(VariaçõesDeFormaçãoEViagens[[#Headers],[Jan]]),1),INDEX(PlanoDeFormaçãoEViagens[],,1),0),MATCH(VariaçõesDeFormaçãoEViagens[[#Headers],[Jan]],PlanoDeFormaçãoEViagens[#Headers],0))-INDEX(RealFormaçãoEViagens[],MATCH(INDEX(VariaçõesDeFormaçãoEViagens[],ROW()-ROW(VariaçõesDeFormaçãoEViagens[[#Headers],[Jan]]),1),INDEX(PlanoDeFormaçãoEViagens[],,1),0),MATCH(VariaçõesDeFormaçãoEViagens[[#Headers],[Jan]],RealFormaçãoEViagens[#Headers],0)) -> 400.00 € | D31: =INDEX(PlanoDeFormaçãoEViagens[],MATCH(INDEX(VariaçõesDeFormaçãoEViagens[],ROW()-ROW(VariaçõesDeFormaçãoEViagens[[#Headers],[Fev]]),1),INDEX(PlanoDeFormaçãoEViagens[],,1),0),MATCH(VariaçõesDeFormaçãoEViagens[[#Headers],[Fev]],PlanoDeFormaçãoEViagens[#Headers],0))-INDEX(RealFormaçãoEViagens[],MATCH(INDEX(VariaçõesDeFormaçãoEViagens[],ROW()-ROW(VariaçõesDeFormaçãoEViagens[[#Headers],[Fev]]),1),INDEX(PlanoDeFormaçãoEViagens[],,1),0),MATCH(VariaçõesDeFormaçãoEViagens[[#Headers],[Fev]],RealFormaçãoEViagens[#Headers],0)) -> -400.00 € | E31: =INDEX(PlanoDeFormaçãoEViagens[],MATCH(INDEX(VariaçõesDeFormaçãoEViagens[],ROW()-ROW(VariaçõesDeFormaçãoEViagens[[#Headers],[Mar]]),1),INDEX(PlanoDeFormaçãoEViagens[],,1),0),MATCH(VariaçõesDeFormaçãoEViagens[[#Headers],[Mar]],PlanoDeFormaçãoEViagens[#Headers],0))-INDEX(RealFormaçãoEViagens[],MATCH(INDEX(VariaçõesDeFormaçãoEViagens[],ROW()-ROW(VariaçõesDeFormaçãoEViagens[[#Headers],[Mar]]),1),INDEX(PlanoDeFormaçãoEViagens[],,1),0),MATCH(VariaçõesDeFormaçãoEViagens[[#Headers],[Mar]],RealFormaçãoEViagens[#Headers],0)) -> 600.00 € | F31: =INDEX(PlanoDeFormaçãoEViagens[],MATCH(INDEX(VariaçõesDeFormaçãoEViagens[],ROW()-ROW(VariaçõesDeFormaçãoEViagens[[#Headers],[Abr]]),1),INDEX(PlanoDeFormaçãoEViagens[],,1),0),MATCH(VariaçõesDeFormaçãoEViagens[[#Headers],[Abr]],PlanoDeFormaçãoEViagens[#Headers],0))-INDEX(RealFormaçãoEViagens[],MATCH(INDEX(VariaçõesDeFormaçãoEViagens[],ROW()-ROW(VariaçõesDeFormaçãoEViagens[[#Headers],[Abr]]),1),INDEX(PlanoDeFormaçãoEViagens[],,1),0),MATCH(VariaçõesDeFormaçãoEViagens[[#Headers],[Abr]],RealFormaçãoEViagens[#Headers],0)) -> 400.00 € | G31: =INDEX(PlanoDeFormaçãoEViagens[],MATCH(INDEX(VariaçõesDeFormaçãoEViagens[],ROW()-ROW(VariaçõesDeFormaçãoEViagens[[#Headers],[Mai]]),1),INDEX(PlanoDeFormaçãoEViagens[],,1),0),MATCH(VariaçõesDeFormaçãoEViagens[[#Headers],[Mai]],PlanoDeFormaçãoEViagens[#Headers],0))-INDEX(RealFormaçãoEViagens[],MATCH(INDEX(VariaçõesDeFormaçãoEViagens[],ROW()-ROW(VariaçõesDeFormaçãoEViagens[[#Headers],[Mai]]),1),INDEX(PlanoDeFormaçãoEViagens[],,1),0),MATCH(VariaçõesDeFormaçãoEViagens[[#Headers],[Mai]],RealFormaçãoEViagens[#Headers],0)) -> 800.00 € | H31: =INDEX(PlanoDeFormaçãoEViagens[],MATCH(INDEX(VariaçõesDeFormaçãoEViagens[],ROW()-ROW(VariaçõesDeFormaçãoEViagens[[#Headers],[Jun]]),1),INDEX(PlanoDeFormaçãoEViagens[],,1),0),MATCH(VariaçõesDeFormaçãoEViagens[[#Headers],[Jun]],PlanoDeFormaçãoEViagens[#Headers],0))-INDEX(RealFormaçãoEViagens[],MATCH(INDEX(VariaçõesDeFormaçãoEViagens[],ROW()-ROW(VariaçõesDeFormaçãoEViagens[[#Headers],[Jun]]),1),INDEX(PlanoDeFormaçãoEViagens[],,1),0),MATCH(VariaçõesDeFormaçãoEViagens[[#Headers],[Jun]],RealFormaçãoEViagens[#Headers],0)) -> -800.00 € | I31: =INDEX(PlanoDeFormaçãoEViagens[],MATCH(INDEX(VariaçõesDeFormaçãoEViagens[],ROW()-ROW(VariaçõesDeFormaçãoEViagens[[#Headers],[Jul]]),1),INDEX(PlanoDeFormaçãoEViagens[],,1),0),MATCH(VariaçõesDeFormaçãoEViagens[[#Headers],[Jul]],PlanoDeFormaçãoEViagens[#Headers],0))-INDEX(RealFormaçãoEViagens[],MATCH(INDEX(VariaçõesDeFormaçãoEViagens[],ROW()-ROW(VariaçõesDeFormaçãoEViagens[[#Headers],[Jul]]),1),INDEX(PlanoDeFormaçãoEViagens[],,1),0),MATCH(VariaçõesDeFormaçãoEViagens[[#Headers],[Jul]],RealFormaçãoEViagens[#Headers],0)) -> 2,000.00 € | J31: =INDEX(PlanoDeFormaçãoEViagens[],MATCH(INDEX(VariaçõesDeFormaçãoEViagens[],ROW()-ROW(VariaçõesDeFormaçãoEViagens[[#Headers],[Ago]]),1),INDEX(PlanoDeFormaçãoEViagens[],,1),0),MATCH(VariaçõesDeFormaçãoEViagens[[#Headers],[Ago]],PlanoDeFormaçãoEViagens[#Headers],0))-INDEX(RealFormaçãoEViagens[],MATCH(INDEX(VariaçõesDeFormaçãoEViagens[],ROW()-ROW(VariaçõesDeFormaçãoEViagens[[#Headers],[Ago]]),1),INDEX(PlanoDeFormaçãoEViagens[],,1),0),MATCH(VariaçõesDeFormaçãoEViagens[[#Headers],[Ago]],RealFormaçãoEViagens[#Headers],0)) -> 2,000.00 € | K31: =INDEX(PlanoDeFormaçãoEViagens[],MATCH(INDEX(VariaçõesDeFormaçãoEViagens[],ROW()-ROW(VariaçõesDeFormaçãoEViagens[[#Headers],[Set]]),1),INDEX(PlanoDeFormaçãoEViagens[],,1),0),MATCH(VariaçõesDeFormaçãoEViagens[[#Headers],[Set]],PlanoDeFormaçãoEViagens[#Headers],0))-INDEX(RealFormaçãoEViagens[],MATCH(INDEX(VariaçõesDeFormaçãoEViagens[],ROW()-ROW(VariaçõesDeFormaçãoEViagens[[#Headers],[Set]]),1),INDEX(PlanoDeFormaçãoEViagens[],,1),0),MATCH(VariaçõesDeFormaçãoEViagens[[#Headers],[Set]],RealFormaçãoEViagens[#Headers],0)) -> 2,000.00 € | L31: =INDEX(PlanoDeFormaçãoEViagens[],MATCH(INDEX(VariaçõesDeFormaçãoEViagens[],ROW()-ROW(VariaçõesDeFormaçãoEViagens[[#Headers],[Out]]),1),INDEX(PlanoDeFormaçãoEViagens[],,1),0),MATCH(VariaçõesDeFormaçãoEViagens[[#Headers],[Out]],PlanoDeFormaçãoEViagens[#Headers],0))-INDEX(RealFormaçãoEViagens[],MATCH(INDEX(VariaçõesDeFormaçãoEViagens[],ROW()-ROW(VariaçõesDeFormaçãoEViagens[[#Headers],[Out]]),1),INDEX(PlanoDeFormaçãoEViagens[],,1),0),MATCH(VariaçõesDeFormaçãoEViagens[[#Headers],[Out]],RealFormaçãoEViagens[#Headers],0)) -> 2,000.00 € | M31: =INDEX(PlanoDeFormaçãoEViagens[],MATCH(INDEX(VariaçõesDeFormaçãoEViagens[],ROW()-ROW(VariaçõesDeFormaçãoEViagens[[#Headers],[Nov]]),1),INDEX(PlanoDeFormaçãoEViagens[],,1),0),MATCH(VariaçõesDeFormaçãoEViagens[[#Headers],[Nov]],PlanoDeFormaçãoEViagens[#Headers],0))-INDEX(RealFormaçãoEViagens[],MATCH(INDEX(VariaçõesDeFormaçãoEViagens[],ROW()-ROW(VariaçõesDeFormaçãoEViagens[[#Headers],[Nov]]),1),INDEX(PlanoDeFormaçãoEViagens[],,1),0),MATCH(VariaçõesDeFormaçãoEViagens[[#Headers],[Nov]],RealFormaçãoEViagens[#Headers],0)) -> 2,000.00 € | N31: =INDEX(PlanoDeFormaçãoEViagens[],MATCH(INDEX(VariaçõesDeFormaçãoEViagens[],ROW()-ROW(VariaçõesDeFormaçãoEViagens[[#Headers],[Dez]]),1),INDEX(PlanoDeFormaçãoEViagens[],,1),0),MATCH(VariaçõesDeFormaçãoEViagens[[#Headers],[Dez]],PlanoDeFormaçãoEViagens[#Headers],0))-INDEX(RealFormaçãoEViagens[],MATCH(INDEX(VariaçõesDeFormaçãoEViagens[],ROW()-ROW(VariaçõesDeFormaçãoEViagens[[#Headers],[Dez]]),1),INDEX(PlanoDeFormaçãoEViagens[],,1),0),MATCH(VariaçõesDeFormaçãoEViagens[[#Headers],[Dez]],RealFormaçãoEViagens[#Headers],0)) -> 2,000.00 € | O31: =SUM(VariaçõesDeFormaçãoEViagens[[#This Row],[Jan]:[Dez]]) -> 13,000.00 €
B32: Custos em viagens associadas à formação | C32: =INDEX(PlanoDeFormaçãoEViagens[],MATCH(INDEX(VariaçõesDeFormaçãoEViagens[],ROW()-ROW(VariaçõesDeFormaçãoEViagens[[#Headers],[Jan]]),1),INDEX(PlanoDeFormaçãoEViagens[],,1),0),MATCH(VariaçõesDeFormaçãoEViagens[[#Headers],[Jan]],PlanoDeFormaçãoEViagens[#Headers],0))-INDEX(RealFormaçãoEViagens[],MATCH(INDEX(VariaçõesDeFormaçãoEViagens[],ROW()-ROW(VariaçõesDeFormaçãoEViagens[[#Headers],[Jan]]),1),INDEX(PlanoDeFormaçãoEViagens[],,1),0),MATCH(VariaçõesDeFormaçãoEViagens[[#Headers],[Jan]],RealFormaçãoEViagens[#Headers],0)) -> 800.00 € | D32: =INDEX(PlanoDeFormaçãoEViagens[],MATCH(INDEX(VariaçõesDeFormaçãoEViagens[],ROW()-ROW(VariaçõesDeFormaçãoEViagens[[#Headers],[Fev]]),1),INDEX(PlanoDeFormaçãoEViagens[],,1),0),MATCH(VariaçõesDeFormaçãoEViagens[[#Headers],[Fev]],PlanoDeFormaçãoEViagens[#Headers],0))-INDEX(RealFormaçãoEViagens[],MATCH(INDEX(VariaçõesDeFormaçãoEViagens[],ROW()-ROW(VariaçõesDeFormaçãoEViagens[[#Headers],[Fev]]),1),INDEX(PlanoDeFormaçãoEViagens[],,1),0),MATCH(VariaçõesDeFormaçãoEViagens[[#Headers],[Fev]],RealFormaçãoEViagens[#Headers],0)) -> -200.00 € | E32: =INDEX(PlanoDeFormaçãoEViagens[],MATCH(INDEX(VariaçõesDeFormaçãoEViagens[],ROW()-ROW(VariaçõesDeFormaçãoEViagens[[#Headers],[Mar]]),1),INDEX(PlanoDeFormaçãoEViagens[],,1),0),MATCH(VariaçõesDeFormaçãoEViagens[[#Headers],[Mar]],PlanoDeFormaçãoEViagens[#Headers],0))-INDEX(RealFormaçãoEViagens[],MATCH(INDEX(VariaçõesDeFormaçãoEViagens[],ROW()-ROW(VariaçõesDeFormaçãoEViagens[[#Headers],[Mar]]),1),INDEX(PlanoDeFormaçãoEViagens[],,1),0),MATCH(VariaçõesDeFormaçãoEViagens[[#Headers],[Mar]],RealFormaçãoEViagens[#Headers],0)) -> 600.00 € | F32: =INDEX(PlanoDeFormaçãoEViagens[],MATCH(INDEX(VariaçõesDeFormaçãoEViagens[],ROW()-ROW(VariaçõesDeFormaçãoEViagens[[#Headers],[Abr]]),1),INDEX(PlanoDeFormaçãoEViagens[],,1),0),MATCH(VariaçõesDeFormaçãoEViagens[[#Headers],[Abr]],PlanoDeFormaçãoEViagens[#Headers],0))-INDEX(RealFormaçãoEViagens[],MATCH(INDEX(VariaçõesDeFormaçãoEViagens[],ROW()-ROW(VariaçõesDeFormaçãoEViagens[[#Headers],[Abr]]),1),INDEX(PlanoDeFormaçãoEViagens[],,1),0),MATCH(VariaçõesDeFormaçãoEViagens[[#Headers],[Abr]],RealFormaçãoEViagens[#Headers],0)) -> 800.00 € | G32: =INDEX(PlanoDeFormaçãoEViagens[],MATCH(INDEX(VariaçõesDeFormaçãoEViagens[],ROW()-ROW(VariaçõesDeFormaçãoEViagens[[#Headers],[Mai]]),1),INDEX(PlanoDeFormaçãoEViagens[],,1),0),MATCH(VariaçõesDeFormaçãoEViagens[[#Headers],[Mai]],PlanoDeFormaçãoEViagens[#Headers],0))-INDEX(RealFormaçãoEViagens[],MATCH(INDEX(VariaçõesDeFormaçãoEViagens[],ROW()-ROW(VariaçõesDeFormaçãoEViagens[[#Headers],[Mai]]),1),INDEX(PlanoDeFormaçãoEViagens[],,1),0),MATCH(VariaçõesDeFormaçãoEViagens[[#Headers],[Mai]],RealFormaçãoEViagens[#Headers],0)) -> 1,200.00 € | H32: =INDEX(PlanoDeFormaçãoEViagens[],MATCH(INDEX(VariaçõesDeFormaçãoEViagens[],ROW()-ROW(VariaçõesDeFormaçãoEViagens[[#Headers],[Jun]]),1),INDEX(PlanoDeFormaçãoEViagens[],,1),0),MATCH(VariaçõesDeFormaçãoEViagens[[#Headers],[Jun]],PlanoDeFormaçãoEViagens[#Headers],0))-INDEX(RealFormaçãoEViagens[],MATCH(INDEX(VariaçõesDeFormaçãoEViagens[],ROW()-ROW(VariaçõesDeFormaçãoEViagens[[#Headers],[Jun]]),1),INDEX(PlanoDeFormaçãoEViagens[],,1),0),MATCH(VariaçõesDeFormaçãoEViagens[[#Headers],[Jun]],RealFormaçãoEViagens[#Headers],0)) -> -1,500.00 € | I32: =INDEX(PlanoDeFormaçãoEViagens[],MATCH(INDEX(VariaçõesDeFormaçãoEViagens[],ROW()-ROW(VariaçõesDeFormaçãoEViagens[[#Headers],[Jul]]),1),INDEX(PlanoDeFormaçãoEViagens[],,1),0),MATCH(VariaçõesDeFormaçãoEViagens[[#Headers],[Jul]],PlanoDeFormaçãoEViagens[#Headers],0))-INDEX(RealFormaçãoEViagens[],MATCH(INDEX(VariaçõesDeFormaçãoEViagens[],ROW()-ROW(VariaçõesDeFormaçãoEViagens[[#Headers],[Jul]]),1),INDEX(PlanoDeFormaçãoEViagens[],,1),0),MATCH(VariaçõesDeFormaçãoEViagens[[#Headers],[Jul]],RealFormaçãoEViagens[#Headers],0)) -> 2,000.00 € | J32: =INDEX(PlanoDeFormaçãoEViagens[],MATCH(INDEX(VariaçõesDeFormaçãoEViagens[],ROW()-ROW(VariaçõesDeFormaçãoEViagens[[#Headers],[Ago]]),1),INDEX(PlanoDeFormaçãoEViagens[],,1),0),MATCH(VariaçõesDeFormaçãoEViagens[[#Headers],[Ago]],PlanoDeFormaçãoEViagens[#Headers],0))-INDEX(RealFormaçãoEViagens[],MATCH(INDEX(VariaçõesDeFormaçãoEViagens[],ROW()-ROW(VariaçõesDeFormaçãoEViagens[[#Headers],[Ago]]),1),INDEX(PlanoDeFormaçãoEViagens[],,1),0),MATCH(VariaçõesDeFormaçãoEViagens[[#Headers],[Ago]],RealFormaçãoEViagens[#Headers],0)) -> 2,000.00 € | K32: =INDEX(PlanoDeFormaçãoEViagens[],MATCH(INDEX(VariaçõesDeFormaçãoEViagens[],ROW()-ROW(VariaçõesDeFormaçãoEViagens[[#Headers],[Set]]),1),INDEX(PlanoDeFormaçãoEViagens[],,1),0),MATCH(VariaçõesDeFormaçãoEViagens[[#Headers],[Set]],PlanoDeFormaçãoEViagens[#Headers],0))-INDEX(RealFormaçãoEViagens[],MATCH(INDEX(VariaçõesDeFormaçãoEViagens[],ROW()-ROW(VariaçõesDeFormaçãoEViagens[[#Headers],[Set]]),1),INDEX(PlanoDeFormaçãoEViagens[],,1),0),MATCH(VariaçõesDeFormaçãoEViagens[[#Headers],[Set]],RealFormaçãoEViagens[#Headers],0)) -> 2,000.00 € | L32: =INDEX(PlanoDeFormaçãoEViagens[],MATCH(INDEX(VariaçõesDeFormaçãoEViagens[],ROW()-ROW(VariaçõesDeFormaçãoEViagens[[#Headers],[Out]]),1),INDEX(PlanoDeFormaçãoEViagens[],,1),0),MATCH(VariaçõesDeFormaçãoEViagens[[#Headers],[Out]],PlanoDeFormaçãoEViagens[#Headers],0))-INDEX(RealFormaçãoEViagens[],MATCH(INDEX(VariaçõesDeFormaçãoEViagens[],ROW()-ROW(VariaçõesDeFormaçãoEViagens[[#Headers],[Out]]),1),INDEX(PlanoDeFormaçãoEViagens[],,1),0),MATCH(VariaçõesDeFormaçãoEViagens[[#Headers],[Out]],RealFormaçãoEViagens[#Headers],0)) -> 2,000.00 € | M32: =INDEX(PlanoDeFormaçãoEViagens[],MATCH(INDEX(VariaçõesDeFormaçãoEViagens[],ROW()-ROW(VariaçõesDeFormaçãoEViagens[[#Headers],[Nov]]),1),INDEX(PlanoDeFormaçãoEViagens[],,1),0),MATCH(VariaçõesDeFormaçãoEViagens[[#Headers],[Nov]],PlanoDeFormaçãoEViagens[#Headers],0))-INDEX(RealFormaçãoEViagens[],MATCH(INDEX(VariaçõesDeFormaçãoEViagens[],ROW()-ROW(VariaçõesDeFormaçãoEViagens[[#Headers],[Nov]]),1),INDEX(PlanoDeFormaçãoEViagens[],,1),0),MATCH(VariaçõesDeFormaçãoEViagens[[#Headers],[Nov]],RealFormaçãoEViagens[#Headers],0)) -> 2,000.00 € | N32: =INDEX(PlanoDeFormaçãoEViagens[],MATCH(INDEX(VariaçõesDeFormaçãoEViagens[],ROW()-ROW(VariaçõesDeFormaçãoEViagens[[#Headers],[Dez]]),1),INDEX(PlanoDeFormaçãoEViagens[],,1),0),MATCH(VariaçõesDeFormaçãoEViagens[[#Headers],[Dez]],PlanoDeFormaçãoEViagens[#Headers],0))-INDEX(RealFormaçãoEViagens[],MATCH(INDEX(VariaçõesDeFormaçãoEViagens[],ROW()-ROW(VariaçõesDeFormaçãoEViagens[[#Headers],[Dez]]),1),INDEX(PlanoDeFormaçãoEViagens[],,1),0),MATCH(VariaçõesDeFormaçãoEViagens[[#Headers],[Dez]],RealFormaçãoEViagens[#Headers],0)) -> 2,000.00 € | O32: =SUM(VariaçõesDeFormaçãoEViagens[[#This Row],[Jan]:[Dez]]) -> 13,700.00 €
B33: Subtotal | C33: =SUBTOTAL(109,VariaçõesDeFormaçãoEViagens[Jan]) -> 1,200.00 € | D33: =SUBTOTAL(109,VariaçõesDeFormaçãoEViagens[Fev]) -> -600.00 € | E33: =SUBTOTAL(109,VariaçõesDeFormaçãoEViagens[Mar]) -> 1,200.00 € | F33: =SUBTOTAL(109,VariaçõesDeFormaçãoEViagens[Abr]) -> 1,200.00 € | G33: =SUBTOTAL(109,VariaçõesDeFormaçãoEViagens[Mai]) -> 2,000.00 € | H33: =SUBTOTAL(109,VariaçõesDeFormaçãoEViagens[Jun]) -> -2,300.00 € | I33: =SUBTOTAL(109,VariaçõesDeFormaçãoEViagens[Jul]) -> 4,000.00 € | J33: =SUBTOTAL(109,VariaçõesDeFormaçãoEViagens[Ago]) -> 4,000.00 € | K33: =SUBTOTAL(109,VariaçõesDeFormaçãoEViagens[Set]) -> 4,000.00 € | L33: =SUBTOTAL(109,VariaçõesDeFormaçãoEViagens[Out]) -> 4,000.00 € | M33: =SUBTOTAL(109,VariaçõesDeFormaçãoEViagens[Nov]) -> 4,000.00 € | N33: =SUBTOTAL(109,VariaçõesDeFormaçãoEViagens[Dez]) -> 4,000.00 € | O33: =SUBTOTAL(109,VariaçõesDeFormaçãoEViagens[ANO]) -> 26,700.00 €
A35: As Variações de Despesas são calculadas automaticamente na tabela Variações Totais a partir da célula à direita. | B35: TOTAIS | C35: Jan | D35: Fev | E35: Mar | F35: Abr | G35: Mai | H35: Jun | I35: Jul | J35: Ago | K35: Set | L35: Out | M35: Nov | N35: Dez | O35: Ano
B36: Despesas Mensais Reais | C36: =VariaçõesDeFormaçãoEViagens[[#Totals],[Jan]]+VariaçõesDeMarketing[[#Totals],[Jan]]+VariaçõesDeEscritório[[#Totals],[Jan]]+VariaçõesDeColaboradores[[#Totals],[Jan]] -> 1,738.00 € | D36: =VariaçõesDeFormaçãoEViagens[[#Totals],[Fev]]+VariaçõesDeMarketing[[#Totals],[Fev]]+VariaçõesDeEscritório[[#Totals],[Fev]]+VariaçõesDeColaboradores[[#Totals],[Fev]] -> -984.00 € | E36: =VariaçõesDeFormaçãoEViagens[[#Totals],[Mar]]+VariaçõesDeMarketing[[#Totals],[Mar]]+VariaçõesDeEscritório[[#Totals],[Mar]]+VariaçõesDeColaboradores[[#Totals],[Mar]] -> 1,255.00 € | F36: =VariaçõesDeFormaçãoEViagens[[#Totals],[Abr]]+VariaçõesDeMarketing[[#Totals],[Abr]]+VariaçõesDeEscritório[[#Totals],[Abr]]+VariaçõesDeColaboradores[[#Totals],[Abr]] -> 301.00 € | G36: =VariaçõesDeFormaçãoEViagens[[#Totals],[Mai]]+VariaçõesDeMarketing[[#Totals],[Mai]]+VariaçõesDeEscritório[[#Totals],[Mai]]+VariaçõesDeColaboradores[[#Totals],[Mai]] -> 1,440.00 € | H36: =VariaçõesDeFormaçãoEViagens[[#Totals],[Jun]]+VariaçõesDeMarketing[[#Totals],[Jun]]+VariaçõesDeEscritório[[#Totals],[Jun]]+VariaçõesDeColaboradores[[#Totals],[Jun]] -> -3,744.00 € | I36: =VariaçõesDeFormaçãoEViagens[[#Totals],[Jul]]+VariaçõesDeMarketing[[#Totals],[Jul]]+VariaçõesDeEscritório[[#Totals],[Jul]]+VariaçõesDeColaboradores[[#Totals],[Jul]] -> 134,695.00 € | J36: =VariaçõesDeFormaçãoEViagens[[#Totals],[Ago]]+VariaçõesDeMarketing[[#Totals],[Ago]]+VariaçõesDeEscritório[[#Totals],[Ago]]+VariaçõesDeColaboradores[[#Totals],[Ago]] -> 138,918.00 € | K36: =VariaçõesDeFormaçãoEViagens[[#Totals],[Set]]+VariaçõesDeMarketing[[#Totals],[Set]]+VariaçõesDeEscritório[[#Totals],[Set]]+VariaçõesDeColaboradores[[#Totals],[Set]] -> 135,918.00 € | L36: =VariaçõesDeFormaçãoEViagens[[#Totals],[Out]]+VariaçõesDeMarketing[[#Totals],[Out]]+VariaçõesDeEscritório[[#Totals],[Out]]+VariaçõesDeColaboradores[[#Totals],[Out]] -> 140,918.00 € | M36: =VariaçõesDeFormaçãoEViagens[[#Totals],[Nov]]+VariaçõesDeMarketing[[#Totals],[Nov]]+VariaçõesDeEscritório[[#Totals],[Nov]]+VariaçõesDeColaboradores[[#Totals],[Nov]] -> 136,218.00 € | N36: =VariaçõesDeFormaçãoEViagens[[#Totals],[Dez]]+VariaçõesDeMarketing[[#Totals],[Dez]]+VariaçõesDeEscritório[[#Totals],[Dez]]+VariaçõesDeColaboradores[[#Totals],[Dez]] -> 140,018.00 € | O36: =VariaçõesDeFormaçãoEViagens[[#Totals],[ANO]]+VariaçõesDeMarketing[[#Totals],[ANO]]+VariaçõesDeEscritório[[#Totals],[ANO]]+VariaçõesDeColaboradores[[#Totals],[ANO]] -> 826,691.00 €
B37: Despesas Reais TOTAIS | C37: =SUM($C$36:C36) -> 1,738.00 € | D37: =SUM($C$36:D36) -> 754.00 € | E37: =SUM($C$36:E36) -> 2,009.00 € | F37: =SUM($C$36:F36) -> 2,310.00 € | G37: =SUM($C$36:G36) -> 3,750.00 € | H37: =SUM($C$36:H36) -> 6.00 € | I37: =SUM($C$36:I36) -> 134,701.00 € | J37: =SUM($C$36:J36) -> 273,619.00 € | K37: =SUM($C$36:K36) -> 409,537.00 € | L37: =SUM($C$36:L36) -> 550,455.00 € | M37: =SUM($C$36:M36) -> 686,673.00 € | N37: =SUM($C$36:N36) -> 826,691.00 €

Sheet ANÁLISE DE DESPESAS
A1: As Despesas Anuais Planeadas e Reais, as Variações de Despesas e a Percentagem de Variação são atualizadas automaticamente para cada Categoria de Despesa nesta folha de cálculo. Encontram-se instruções úteis sobre como utilizar esta folha de cálculo nas células desta coluna. Prima a Seta para Baixo para começar.
A2: O Nome da Empresa é atualizado automaticamente na célula à direita. Introduza o Logótipo na célula F2. | B2: ='DESPESAS PLANEADAS'!B2:D3 -> Nome da Empresa | F2: O marcador de posição de logótipo encontra-se nesta célula.
A3: O título desta folha de cálculo está na célula E3. A instrução seguinte está na célula A5. | E3: =titulo_folha_de_cálculo -> Estimativas de Despesas Detalhadas
A5: As Despesas Planeadas, as Despesas Reais, a Variações de Despesas e a Percentagem de Variação são calculadas automaticamente na tabela Análise a partir da célula à direita. A instrução seguinte está na célula A12. | B5: Categoria de Despesas | C5: Despesas Planeadas | D5: Despesas Reais | E5: Variações de Despesas | F5: Percentagem de Variação
B6: Custos com Colaboradores | C6: =PlanoDeColaboradores[[#Totals],[ANO]] -> 1,355,090.00 € | D6: =RealColaboradores[[#Totals],[ANO]] -> 659,130.00 € | E6: =C6-D6 -> 695,960.00 € | F6: =E6/C6 -> 51%
B7: ='DESPESAS PLANEADAS'!B10 -> Custos de Escritório | C7: =PlanoDeEscritório[[#Totals],[ANO]] -> 138,740.00 € | D7: =RealEscritório[[#Totals],[ANO]] -> 69,350.00 € | E7: =C7-D7 -> 69,390.00 € | F7: =E7/C7 -> 50%
B8: ='DESPESAS PLANEADAS'!B21 -> Custos de Marketing | C8: =PlanoDeMarketing[[#Totals],[ANO]] -> 67,800.00 € | D8: =RealMarketing[[#Totals],[ANO]] -> 33,159.00 € | E8: =C8-D8 -> 34,641.00 € | F8: =E8/C8 -> 51%
B9: ='DESPESAS PLANEADAS'!B30 -> Formação/Deslocações | C9: =PlanoDeFormaçãoEViagens[[#Totals],[ANO]] -> 48,000.00 € | D9: =RealFormaçãoEViagens[[#Totals],[ANO]] -> 21,300.00 € | E9: =C9-D9 -> 26,700.00 € | F9: =E9/C9 -> 56%
B10: ='DESPESAS PLANEADAS'!B35 -> TOTAIS | C10: ='DESPESAS PLANEADAS'!O36 -> 1,609,630.00 € | D10: ='DESPESAS REAIS'!O36 -> 782,939.00 € | E10: =C10-D10 -> 826,691.00 € | F10: =E10/C10 -> 51%
A12: O gráfico circular Despesas Planeadas encontra-se na célula à direita e o gráfico circular Despesas Reais encontra-se na célula D12. A instrução seguinte está na célula A14. | B12: O gráfico circular com as despesas planeadas nas diversas categorias encontra-se nesta célula. | D12: O gráfico circular com as despesas reais incorridas nas diversas categorias encontra-se nesta célula.
A14: O Gráfico com Despesas Mensais Planeadas, Reais e a respetiva Variação encontra-se na célula à direita.
